Workbook

Sheet Earnings Model
B2: By obtaining this model you are deemed to have read and agreed to our Terms of Use. Visit our website for details: https://www.gutenbergresearch.com/terms-of-use.html
B3: Blue cells = Contributor estimates
B4: Purple cells = Company guidance (updated 7/25/2019) | BC4: GR
B5: Orange cells = Consensus estimates (updated 7/25/2019)
B6: Implied P/E 12-month target value | C6: =C373 -> 102.6305008
B7: Implied DCF 12-month target value | C7: =C407 -> 109.3374485
B8: Implied average target value | C8: =(0.5*C6)+(0.5*C7) -> 105.9839746
B10: Base Case
B12: Nike Income Statement | D12: Aug-14 | E12: Nov-14 | F12: Feb-15 | G12: May-15 | H12: May-15 | I12: Aug-15 | J12: Nov-15 | K12: Feb-16 | L12: May-16 | M12: May-16 | N12: Aug-16 | O12: Nov-16 | P12: Feb-17 | Q12: May-17 | R12: May-17 | S12: Aug-17 | T12: Nov-17 | U12: Feb-18 | V12: May-18 | W12: May-18 | X12: Aug-18 | Y12: Nov-18 | Z12: Feb-19 | AA12: May-19 | AB12: May-19 | AC12: Aug-19 | AD12: Nov-19 | AE12: Feb-20 | AF12: May-20 | AG12: May-20 | AH12: Aug-20 | AI12: Nov-20 | AJ12: Feb-21 | AK12: May-21 | AL12: May-21 | AM12: Aug-22 | AN12: Nov-22 | AO12: Feb-22 | AP12: May-22 | AQ12: May-22
B13: (Dollars in millions, except per share data) | D13: F1Q15 | E13: F2Q15 | F13: F3Q15 | G13: F4Q15 | H13: FY 2015 | I13: F1Q16 | J13: F2Q16 | K13: F3Q16 | L13: F4Q16 | M13: FY 2016 | N13: F1Q17 | O13: F2Q17 | P13: F3Q17 | Q13: F4Q17 | R13: FY 2017 | S13: F1Q18 | T13: F2Q18 | U13: F3Q18 | V13: F4Q18 | W13: FY 2018 | X13: F1Q19 | Y13: F2Q19 | Z13: F3Q19 | AA13: F4Q19 | AB13: FY 2019 | AC13: F1Q20E | AD13: F2Q20E | AE13: F3Q20E | AF13: F4Q20E | AG13: FY 2020 E | AH13: F1Q21E | AI13: F2Q21E | AJ13: F3Q21E | AK13: F4Q21E | AL13: FY 2021 E | AM13: F1Q22E | AN13: F2Q22E | AO13: F3Q22E | AP13: F4Q22E | AQ13: FY 2022 E
B14: Revenues | D14: 7982 | E14: 7380 | F14: 7460 | G14: 7779 | H14: =SUM(D14:G14) -> 30601 | I14: 8414 | J14: 7686 | K14: 8032 | L14: 8244 | M14: =SUM(I14:L14) -> 32376 | N14: 9061 | O14: 8180 | P14: 8432 | Q14: 8677 | R14: =SUM(N14:Q14) -> 34350 | S14: 9070 | T14: 8554 | U14: 8984 | V14: 9789 | W14: =SUM(S14:V14) -> 36397 | X14: 9948 | Y14: 9374 | Z14: 9611 | AA14: 10184 | AB14: =SUM(X14:AA14) -> 39117 | AC14: =AC41+AC51+AC61+AC71+AC75+AC80+AC85 -> 10306.58317 | AD14: =AD41+AD51+AD61+AD71+AD75+AD80+AD85 -> 10104.7331 | AE14: =AE41+AE51+AE61+AE71+AE75+AE80+AE85 -> 10493.80466 | AF14: 11003.6 | AG14: =SUM(AC14:AF14) -> 41908.72093 | AH14: =AH41+AH51+AH61+AH71+AH75+AH80+AH85 -> 11137.7553 | AI14: =AI41+AI51+AI61+AI71+AI75+AI80+AI85 -> 10912.97053 | AJ14: =AJ41+AJ51+AJ61+AJ71+AJ75+AJ80+AJ85 -> 11348.76797 | AK14: 11922.0396 | AL14: =SUM(AH14:AK14) -> 45321.53339 | AM14: =AM41+AM51+AM61+AM71+AM75+AM80+AM85 -> 12069.48166 | AN14: =AN41+AN51+AN61+AN71+AN75+AN80+AN85 -> 11818.36965 | AO14: =AO41+AO51+AO61+AO71+AO75+AO80+AO85 -> 12307.82858 | AP14: 12954.14201 | AQ14: =SUM(AM14:AP14) -> 49149.82191
B15: Cost of sales | D15: 4261 | E15: 4053 | F15: 4034 | G15: 4186 | H15: =SUM(D15:G15) -> 16534 | I15: 4419 | J15: 4185 | K15: 4343 | L15: 4458 | M15: =SUM(I15:L15) -> 17405 | N15: 4938 | O15: 4564 | P15: 4682 | Q15: 4854 | R15: =SUM(N15:Q15) -> 19038 | S15: 5108 | T15: 4876 | U15: 5046 | V15: 5411 | W15: =SUM(S15:V15) -> 20441 | X15: 5551 | Y15: 5269 | Z15: 5272 | AA15: 5551 | AB15: =SUM(X15:AA15) -> 21643 | AC15: =AC14-(AC14*AC92) -> 5977.818239 | AD15: =AD14-(AD14*AD92) -> 5860.745198 | AE15: =AE14-(AE14*AE92) -> 6086.406705 | AF15: 6382.088 | AG15: =SUM(AC15:AF15) -> 24307.05814 | AH15: =AH14-(AH14*AH92) -> 6459.898072 | AI15: =AI14-(AI14*AI92) -> 6329.522906 | AJ15: =AJ14-(AJ14*AJ92) -> 6582.285421 | AK15: =AK14-(AK14*AK92) -> 6914.782968 | AL15: =SUM(AH15:AK15) -> 26286.48937 | AM15: =AM14-(AM14*AM92) -> 7000.299364 | AN15: =AN14-(AN14*AN92) -> 6854.6544 | AO15: =AO14-(AO14*AO92) -> 7138.540576 | AP15: =AP14-(AP14*AP92) -> 7513.402366 | AQ15: =SUM(AM15:AP15) -> 28506.89671
B16: Gross Profit | D16: =D14-D15 -> 3721 | E16: 3327 | F16: 3426 | G16: 3593 | H16: =H14-H15 -> 14067 | I16: =I14-I15 -> 3995 | J16: =J14-J15 -> 3501 | K16: =K14-K15 -> 3689 | L16: =L14-L15 -> 3786 | M16: =M14-M15 -> 14971 | N16: =N14-N15 -> 4123 | O16: =O14-O15 -> 3616 | P16: =P14-P15 -> 3750 | Q16: =Q14-Q15 -> 3823 | R16: =R14-R15 -> 15312 | S16: =S14-S15 -> 3962 | T16: 3678 | U16: 3938 | V16: 4378 | W16: =W14-W15 -> 15956 | X16: =X14-X15 -> 4397 | Y16: 4105 | Z16: 4339 | AA16: =AA14-AA15 -> 4633 | AB16: =AB14-AB15 -> 17474 | AC16: =AC14-AC15 -> 4328.764932 | AD16: =AD14-AD15 -> 4243.987902 | AE16: 4407.397959 | AF16: 4621.512 | AG16: =AG14-AG15 -> 17601.66279 | AH16: =AH14-AH15 -> 4677.857224 | AI16: 4583.447621 | AJ16: 4766.482546 | AK16: 5007.256632 | AL16: =AL14-AL15 -> 19035.04402 | AM16: =AM14-AM15 -> 5069.182298 | AN16: 4963.715255 | AO16: 5169.288004 | AP16: 5440.739644 | AQ16: =AQ14-AQ15 -> 20642.9252
B17: Demand creation expense | D17: 897 | E17: 766 | F17: 731 | G17: 819 | H17: =SUM(D17:G17) -> 3213 | I17: 832 | J17: 769 | K17: 804 | L17: 873 | M17: =SUM(I17:L17) -> 3278 | N17: 1041 | O17: 762 | P17: 749 | Q17: 789 | R17: =SUM(N17:Q17) -> 3341 | S17: 855 | T17: 877 | U17: 862 | V17: 983 | W17: =SUM(S17:V17) -> 3577 | X17: 964 | Y17: 910 | Z17: 865 | AA17: 1014 | AB17: =SUM(X17:AA17) -> 3753 | AC17: =AC$19*$C$334 -> 738.8369941 | AD17: =AD$19*$C$334 -> 739.5503916 | AE17: =AE$19*$C$334 -> 740.8978679 | AF17: =AF$19*$C$334 -> 814.1796 | AG17: =SUM(AC17:AF17) -> 3033.464854 | AH17: =AH$19*$C$334 -> 768.7591907 | AI17: =AI$19*$C$334 -> 768.646939 | AJ17: =AJ$19*$C$334 -> 771.6765468 | AK17: =AK$19*$C$334 -> 847.2434256 | AL17: =SUM(AH17:AK17) -> 3156.326102 | AM17: =AM$19*$C$334 -> 802.3013398 | AN17: =AN$19*$C$334 -> 801.2413076 | AO17: =AO$19*$C$334 -> 806.2027289 | AP17: =AP$19*$C$334 -> 884.3991124 | AQ17: =SUM(AM17:AP17) -> 3294.144489
B18: Operating overhead expense | D18: 1583 | E18: 1672 | F18: 1648 | G18: 1776 | H18: =SUM(D18:G18) -> 6679 | I18: 1745 | J18: 1791 | K18: 1762 | L18: 1893 | M18: =SUM(I18:L18) -> 7191 | N18: 1856 | O18: 1743 | P18: 1747 | Q18: 1876 | R18: =SUM(N18:Q18) -> 7222 | S18: 2001 | T18: 1891 | U18: 1905 | V18: 2137 | W18: =SUM(S18:V18) -> 7934 | X18: 2099 | Y18: 2232 | Z18: 2226 | AA18: 2392 | AB18: =SUM(X18:AA18) -> 8949 | AC18: =AC$19*$C$335 -> 1723.952986 | AD18: =AD$19*$C$335 -> 1725.61758 | AE18: =AE$19*$C$335 -> 1728.761692 | AF18: =AF$19*$C$335 -> 1899.7524 | AG18: =SUM(AC18:AF18) -> 7078.084658 | AH18: =AH$19*$C$335 -> 1793.771445 | AI18: =AI$19*$C$335 -> 1793.509524 | AJ18: =AJ$19*$C$335 -> 1800.578609 | AK18: =AK$19*$C$335 -> 1976.901326 | AL18: =SUM(AH18:AK18) -> 7364.760905 | AM18: =AM$19*$C$335 -> 1872.03646 | AN18: =AN$19*$C$335 -> 1869.563051 | AO18: =AO$19*$C$335 -> 1881.139701 | AP18: =AP$19*$C$335 -> 2063.597929 | AQ18: =SUM(AM18:AP18) -> 7686.33714
B19: Total selling and administrative expense | D19: =SUM(D17:D18) -> 2480 | E19: 2438 | F19: 2379 | G19: 2595 | H19: 9892 | I19: 2577 | J19: =SUM(J17:J18) -> 2560 | K19: 2566 | L19: 2766 | M19: =SUM(M17:M18) -> 10469 | N19: 2897 | O19: 2505 | P19: 2496 | Q19: 2665 | R19: 10563 | S19: 2856 | T19: 2768 | U19: 2767 | V19: 3120 | W19: 11511 | X19: 3063 | Y19: 3142 | Z19: 3091 | AA19: 3406 | AB19: 12702 | AC19: =AC16-AC20 -> 2462.78998 | AD19: =AD16-AD20 -> 2465.167972 | AE19: =AE16-AE20 -> 2469.65956 | AF19: 2713.932 | AG19: =SUM(AC19:AF19) -> 10111.54951 | AH19: =AH16-AH20 -> 2562.530636 | AI19: =AI16-AI20 -> 2562.156463 | AJ19: =AJ16-AJ20 -> 2572.255156 | AK19: =AK16-AK20 -> 2824.144752 | AL19: =SUM(AH19:AK19) -> 10521.08701 | AM19: =AM16-AM20 -> 2674.337799 | AN19: =AN16-AN20 -> 2670.804359 | AO19: =AO16-AO20 -> 2687.34243 | AP19: =AP16-AP20 -> 2947.997041 | AQ19: =SUM(AM19:AP19) -> 10980.48163
B20: Operating Income | D20: =D16-D19 -> 1241 | E20: =E16-E19 -> 889 | F20: 1047 | G20: 998 | H20: 4175 | I20: 1418 | J20: 941 | K20: 1123 | L20: 1020 | M20: =M16-M19 -> 4502 | N20: =N16-N19 -> 1226 | O20: 1111 | P20: 1254 | Q20: 1158 | R20: 4749 | S20: =S16-S19 -> 1106 | T20: =T16-T19 -> 910 | U20: 1171 | V20: 1258 | W20: 4445 | X20: =X16-X19 -> 1334 | Y20: =Y16-Y19 -> 963 | Z20: 1248 | AA20: 1227 | AB20: 4772 | AC20: =SUM(AC42,AC52,AC62,AC72,AC77,AC82,AC87) -> 1865.974951 | AD20: =SUM(AD42,AD52,AD62,AD72,AD77,AD82,AD87) -> 1778.81993 | AE20: =SUM(AE42,AE52,AE62,AE72,AE77,AE82,AE87) -> 1937.738399 | AF20: 1907.58 | AG20: 7490.11328 | AH20: =SUM(AH42,AH52,AH62,AH72,AH77,AH82,AH87) -> 2115.326589 | AI20: =SUM(AI42,AI52,AI62,AI72,AI77,AI82,AI87) -> 2021.291158 | AJ20: =SUM(AJ42,AJ52,AJ62,AJ72,AJ77,AJ82,AJ87) -> 2194.22739 | AK20: 2183.11188 | AL20: 8513.957017 | AM20: =SUM(AM42,AM52,AM62,AM72,AM77,AM82,AM87) -> 2394.844499 | AN20: =SUM(AN42,AN52,AN62,AN72,AN77,AN82,AN87) -> 2292.910896 | AO20: =SUM(AO42,AO52,AO62,AO72,AO77,AO82,AO87) -> 2481.945574 | AP20: 2492.742603 | AQ20: 9662.443572
B21: Interest expense/(income) | D21: 9 | E21: 9 | F21: 6 | G21: 4 | H21: =SUM(D21:G21) -> 28 | I21: 4 | J21: 5 | K21: 5 | L21: 5 | M21: =SUM(I21:L21) -> 19 | N21: 7 | O21: 15 | P21: 19 | Q21: 18 | R21: =SUM(N21:Q21) -> 59 | S21: 16 | T21: 13 | U21: 13 | V21: 12 | W21: =SUM(S21:V21) -> 54 | X21: 11 | Y21: 14 | Z21: 12 | AA21: 12 | AB21: =SUM(X21:AA21) -> 49 | AC21: =AC95*(AVERAGE((AC121+AC127),(AA121+AA127))) -> 10.99049813 | AD21: =AD95*(AVERAGE((AD121+AD127),(AB121+AB127))) -> 13.98992081 | AE21: =AE95*(AVERAGE((AE121+AE127),(AC121+AC127))) -> 11.99481492 | AF21: 11.99827114 | AG21: =SUM(AC21:AF21) -> 48.973505 | AH21: =AH95*(AVERAGE((AH121+AH127),(AF121+AF127))) -> 10.99049813 | AI21: =AI95*(AVERAGE((AI121+AI127),(AG121+AG127))) -> 13.98992081 | AJ21: =AJ95*(AVERAGE((AJ121+AJ127),(AH121+AH127))) -> 11.99481492 | AK21: =AK95*(AVERAGE((AK121+AK127),(AI121+AI127))) -> 11.99827114 | AL21: =SUM(AH21:AK21) -> 48.973505 | AM21: =AM95*(AVERAGE((AM121+AM127),(AK121+AK127))) -> 10.99049813 | AN21: =AN95*(AVERAGE((AN121+AN127),(AL121+AL127))) -> 13.98992081 | AO21: =AO95*(AVERAGE((AO121+AO127),(AM121+AM127))) -> 11.99481492 | AP21: =AP95*(AVERAGE((AP121+AP127),(AN121+AN127))) -> 11.99827114 | AQ21: =SUM(AM21:AP21) -> 48.973505
B22: Other expense/(income) | D22: 3 | E22: 2 | F22: -5 | G22: -58 | H22: =SUM(D22:G22) -> -58 | I22: -31 | J22: -34 | K22: -17 | L22: -58 | M22: =SUM(I22:L22) -> -140 | N22: -62 | O22: -18 | P22: -88 | Q22: -28 | R22: =SUM(N22:Q22) -> -196 | S22: 18 | T22: 18 | U22: -1 | V22: 31 | W22: =SUM(S22:V22) -> 66 | X22: 53 | Y22: -48 | Z22: -55 | AA22: -28 | AB22: =SUM(X22:AA22) -> -78 | AC22: =AC14*AC96 -> 0 | AD22: =AD14*AD96 -> 0 | AE22: =AE14*AE96 -> 0 | AF22: 0 | AG22: =SUM(AC22:AF22) -> 0 | AH22: =AH14*AH96 -> 0 | AI22: =AI14*AI96 -> 0 | AJ22: =AJ14*AJ96 -> 0 | AK22: 0 | AL22: =SUM(AH22:AK22) -> 0 | AM22: =AM14*AM96 -> 0 | AN22: =AN14*AN96 -> 0 | AO22: =AO14*AO96 -> 0 | AP22: 0 | AQ22: =SUM(AM22:AP22) -> 0
B23: Income before income taxes | D23: =D20-D21-D22 -> 1229 | E23: =E20-E21-E22 -> 878 | F23: 1046 | G23: 1052 | H23: 4205 | I23: 1445 | J23: 970 | K23: 1135 | L23: =L20-L21-L22 -> 1073 | M23: =M20-M21-M22 -> 4623 | N23: =N20-N21-N22 -> 1281 | O23: 1114 | P23: 1323 | Q23: 1168 | R23: 4886 | S23: =S20-S21-S22 -> 1072 | T23: =T20-T21-T22 -> 879 | U23: 1159 | V23: 1215 | W23: 4325 | X23: =X20-X21-X22 -> 1270 | Y23: =Y20-Y21-Y22 -> 997 | Z23: 1291 | AA23: 1243 | AB23: 4801 | AC23: 1854.984453 | AD23: =AD20-AD21-AD22 -> 1764.830009 | AE23: 1925.743584 | AF23: 1895.581729 | AG23: 7441.139775 | AH23: =AH20-AH21-AH22 -> 2104.336091 | AI23: 2007.301237 | AJ23: 2182.232575 | AK23: 2171.113609 | AL23: =AL20-AL21-AL22 -> 8464.983512 | AM23: 2383.854001 | AN23: 2278.920976 | AO23: 2469.950759 | AP23: 2480.744332 | AQ23: =AQ20-AQ21-AQ22 -> 9613.470067
B24: Provisions for income tax | D24: 267 | E24: 223 | F24: 255 | G24: 187 | H24: =SUM(D24:G24) -> 932 | I24: 266 | J24: 185 | K24: 185 | L24: 227 | M24: =SUM(I24:L24) -> 863 | N24: 32 | O24: 272 | P24: 182 | Q24: 160 | R24: =SUM(N24:Q24) -> 646 | S24: 122 | T24: 112 | U24: 2080 | V24: 78 | W24: =SUM(S24:V24) -> 2392 | X24: 178 | Y24: 150 | Z24: 190 | AA24: 254 | AB24: =SUM(X24:AA24) -> 772 | AC24: =AC23*AC97 -> 333.8972015 | AD24: =AD23*AD97 -> 317.6694016 | AE24: =AE23*AE97 -> 346.6338451 | AF24: 341.2047112 | AG24: =SUM(AC24:AF24) -> 1339.405159 | AH24: =AH23*AH97 -> 378.7804963 | AI24: =AI23*AI97 -> 361.3142227 | AJ24: =AJ23*AJ97 -> 392.8018635 | AK24: =AK23*AK97 -> 390.8004496 | AL24: =SUM(AH24:AK24) -> 1523.697032 | AM24: =AM23*AM97 -> 429.0937201 | AN24: =AN23*AN97 -> 410.2057756 | AO24: =AO23*AO97 -> 444.5911366 | AP24: =AP23*AP97 -> 446.5339797 | AQ24: =SUM(AM24:AP24) -> 1730.424612
B25: Net income | D25: =D23-D24 -> 962 | E25: 655 | F25: 791 | G25: 865 | H25: =H23-H24 -> 3273 | I25: 1179 | J25: 785 | K25: 950 | L25: 846 | M25: =M23-M24 -> 3760 | N25: 1249 | O25: 842 | P25: 1141 | Q25: 1008 | R25: 4240 | S25: =S23-S24 -> 950 | T25: 767 | U25: -921 | V25: 1137 | W25: 1933 | X25: 1092 | Y25: 847 | Z25: 1101 | AA25: 989 | AB25: 4029 | AC25: =AC23-AC24 -> 1521.087251 | AD25: =AD23-AD24 -> 1447.160607 | AE25: =AE23-AE24 -> 1579.109739 | AF25: 1554.377018 | AG25: =AG23-AG24 -> 6101.734615 | AH25: =AH23-AH24 -> 1725.555594 | AI25: =AI23-AI24 -> 1645.987015 | AJ25: =AJ23-AJ24 -> 1789.430712 | AK25: =AK23-AK24 -> 1780.313159 | AL25: =AL23-AL24 -> 6941.28648 | AM25: =AM23-AM24 -> 1954.76028 | AN25: =AN23-AN24 -> 1868.7152 | AO25: =AO23-AO24 -> 2025.359622 | AP25: =AP23-AP24 -> 2034.210352 | AQ25: =AQ23-AQ24 -> 7883.045455
B26: Basic shares outstanding | D26: 864.9 | E26: 863.1 | F26: 861.4 | G26: 857.5 | H26: =AVERAGE(D26:G26) -> 861.725 | I26: 854.5 | J26: 853.3 | K26: 1693.8 | L26: 1682.4 | M26: =AVERAGE(I26:L26) -> 1271 | N26: 1665.333333 | O26: 1659.1 | P26: 1653.1 | Q26: 1646.9 | R26: =AVERAGE(N26:Q26) -> 1656.108333 | S26: 1665.333333 | T26: 1627 | U26: 1623.5 | V26: 1605.7 | W26: =AVERAGE(S26:V26) -> 1630.383333 | X26: 1665.333333 | Y26: 1581.4 | Z26: 1572.8 | AA26: 1570.2 | AB26: =AVERAGE(X26:AA26) -> 1597.433333 | AC26: =AA26*(1+AC98)-AC102 -> 1636.493319 | AD26: =AB26*(1+AD98)-AD102 -> 1519.793791 | AE26: =AC26*(1+AE98)-AE102 -> 1633.326916 | AF26: 1522.642027 | AG26: =AVERAGE(AC26:AF26) -> 1578.064013 | AH26: =AF26*(1+AH98)-AH102 -> 1586.85612 | AI26: =AG26*(1+AI98)-AI102 -> 1501.337311 | AJ26: =AH26*(1+AJ98)-AJ102 -> 1583.714312 | AK26: =AI26*(1+AK98)-AK102 -> 1504.122351 | AL26: =AVERAGE(AH26:AK26) -> 1544.007523 | AM26: =AK26*(1+AM98)-AM102 -> 1567.526768 | AN26: =AL26*(1+AN98)-AN102 -> 1468.885839 | AO26: =AM26*(1+AO98)-AO102 -> 1564.394537 | AP26: =AN26*(1+AP98)-AP102 -> 1471.559765 | AQ26: =AVERAGE(AM26:AP26) -> 1518.091727
B27: Diluted shares outstanding | D27: 886.2 | E27: 884.8 | F27: 883.8 | G27: 879.8 | H27: =AVERAGE(D27:G27) -> 883.65 | I27: 877.3 | J27: 875.7 | K27: 1737.3 | L27: 1723.1 | M27: =AVERAGE(I27:L27) -> 1303.35 | N27: 1710.958904 | O27: 1693.2 | P27: 1686.3 | Q27: 1678.6 | R27: =AVERAGE(N27:Q27) -> 1692.264726 | S27: 1710.958904 | T27: 1660.9 | U27: 1623.5 | V27: 1641.2 | W27: =AVERAGE(S27:V27) -> 1659.139726 | X27: 1710.958904 | Y27: 1620.7 | Z27: 1609.6 | AA27: 1607.5 | AB27: =AVERAGE(X27:AA27) -> 1637.189726 | AC27: =AA27*(1+AC99)-AC102 -> 1683.821539 | AD27: =AB27*(1+AD99)-AD102 -> 1553.681239 | AE27: =AC27*(1+AE99)-AE102 -> 1678.054549 | AF27: 1557.006508 | AG27: =AVERAGE(AC27:AF27) -> 1618.140959 | AH27: =AF27*(1+AH99)-AH102 -> 1630.856707 | AI27: =AG27*(1+AI99)-AI102 -> 1535.576689 | AJ27: =AH27*(1+AJ99)-AJ102 -> 1625.197024 | AK27: =AI27*(1+AK99)-AK102 -> 1538.835762 | AL27: =AVERAGE(AH27:AK27) -> 1582.616546 | AM27: =AK27*(1+AM99)-AM102 -> 1611.796616 | AN27: =AL27*(1+AN99)-AN102 -> 1501.813166 | AO27: =AM27*(1+AO99)-AO102 -> 1606.17555 | AP27: =AN27*(1+AP99)-AP102 -> 1504.948788 | AQ27: =AVERAGE(AM27:AP27) -> 1556.18353
B28: Basic EPS | D28: =D25/D26 -> 1.112267314 | E28: 0.7588923647 | F28: 0.9182725795 | G28: 1.008746356 | H28: 3.79819548 | I28: =I25/I26 -> 1.379754242 | J28: 0.9199578109 | K28: 0.5608690518 | L28: 0.502853067 | M28: 2.958300551 | N28: 0.75 | O28: 0.5075040685 | P28: 0.6902183776 | Q28: 0.61205902 | R28: 2.560218987 | S28: 0.5704563651 | T28: 0.471419791 | U28: -0.5672928857 | V28: 0.7081023853 | W28: 1.185610746 | X28: 0.6557245797 | Y28: 0.5356013659 | Z28: 0.7000254323 | AA28: 0.6298560693 | AB28: 2.522170983 | AC28: 0.9294796585 | AD28: =AD25/AD26 -> 0.952208527 | AE28: 0.9668056793 | AF28: 1.020842056 | AG28: 3.866595121 | AH28: =AH25/AH26 -> 1.087405199 | AI28: 1.096347238 | AJ28: 1.129894892 | AK28: 1.183622568 | AL28: 4.495629959 | AM28: =AM25/AM26 -> 1.247034705 | AN28: 1.272199071 | AO28: 1.294660378 | AP28: 1.382349803 | AQ28: 5.192733294
B29: Diluted EPS | D29: =D25/D27 -> 1.08553374 | E29: 0.7402802893 | F29: 0.8949988685 | G29: 0.983177995 | H29: 3.703955186 | I29: =I25/I27 -> 1.343896045 | J29: 0.8964257166 | K29: 0.5468255339 | L29: =L25/L27 -> 0.4909755673 | M29: 2.884873595 | N29: 0.73 | O29: 0.4972832506 | P29: 0.6766293068 | Q29: 0.600500417 | R29: 2.505518158 | S29: =S25/S27 -> 0.5552441954 | T29: 0.4617978205 | U29: -0.5672928857 | V29: 0.6927857665 | W29: 1.16506161 | X29: 0.6382385909 | Y29: 0.5226136854 | Z29: 0.6840208748 | AA29: 0.6152410575 | AB29: 2.460924312 | AC29: 0.9033541953 | AD29: =AD25/AD27 -> 0.931439842 | AE29: 0.941035999 | AF29: 0.9983111885 | AG29: 3.770830089 | AH29: =AH25/AH27 -> 1.058066958 | AI29: 1.071901538 | AJ29: 1.101054632 | AK29: 1.156922138 | AL29: =AL25/AL27 -> 4.385955966 | AM29: 1.212783462 | AN29: 1.244306044 | AO29: 1.260982725 | AP29: 1.351680781 | AQ29: =AQ25/AQ27 -> 5.065627096
B30: Dividends per share | D30: 0.24 | E30: 0.28 | F30: 0.28 | G30: 0.28 | H30: =SUM(D30:G30) -> 1.08 | I30: 0.28 | J30: 0.32 | K30: 0.16 | L30: 0.16 | M30: =SUM(I30:L30) -> 0.92 | N30: 0.16 | O30: 0.18 | P30: 0.18 | Q30: 0.18 | R30: =SUM(N30:Q30) -> 0.7 | S30: 0.18 | T30: 0.2 | U30: 0.2 | V30: 0.2 | W30: =SUM(S30:V30) -> 0.78 | X30: 0.2 | Y30: 0.22 | Z30: 0.22 | AA30: 0.22 | AB30: =SUM(X30:AA30) -> 0.86 | AC30: =AA30*((1+$C$401)^(1/4)) -> 0.2210918449 | AD30: =AC30*((1+$C$401)^(1/4)) -> 0.2221891086 | AE30: =AD30*((1+$C$401)^(1/4)) -> 0.223291818 | AF30: =AE30*((1+$C$401)^(1/4)) -> 0.2244 | AG30: =SUM(AC30:AF30) -> 0.8909727716 | AH30: =AF30*((1+$C$401)^(1/4)) -> 0.2255136818 | AI30: =AH30*((1+$C$401)^(1/4)) -> 0.2266328908 | AJ30: =AI30*((1+$C$401)^(1/4)) -> 0.2277576543 | AK30: =AJ30*((1+$C$401)^(1/4)) -> 0.228888 | AL30: =SUM(AH30:AK30) -> 0.908792227 | AM30: =AK30*((1+$C$401)^(1/4)) -> 0.2300239555 | AN30: =AM30*((1+$C$401)^(1/4)) -> 0.2311655486 | AO30: =AN30*((1+$C$401)^(1/4)) -> 0.2323128074 | AP30: =AO30*((1+$C$401)^(1/4)) -> 0.23346576 | AQ30: =SUM(AM30:AP30) -> 0.9269680715
X31: =ROUND((X14-(X41+X51+X61+X71+X75+X80+X85)),0) -> 0 | Y31: 0 | Z31: 0 | AA31: 0 | AB31: 0 | AC31: =ROUND((AC14-(AC41+AC51+AC61+AC71+AC75+AC80+AC85)),0) -> 0 | AD31: 0 | AE31: 0 | AF31: 0 | AG31: 0 | AH31: 0 | AI31: 0 | AJ31: 0 | AK31: 0 | AL31: 0 | AM31: 0 | AN31: 0 | AO31: 0 | AP31: 0
B32: Segment Data & Income Statement Ratios | D32: Aug-14 | E32: Nov-14 | F32: Feb-15 | G32: May-15 | H32: May-15 | I32: Aug-15 | J32: Nov-15 | K32: Feb-16 | L32: May-16 | M32: May-16 | N32: Aug-16 | O32: Nov-16 | P32: Feb-17 | Q32: May-17 | R32: May-17 | S32: Aug-17 | T32: Nov-17 | U32: Feb-18 | V32: May-18 | W32: May-18 | X32: Aug-18 | Y32: Nov-18 | Z32: Feb-19 | AA32: May-19 | AB32: May-19 | AC32: Aug-19 | AD32: Nov-19 | AE32: Feb-20 | AF32: May-20 | AG32: May-20 | AH32: Aug-20 | AI32: Nov-20 | AJ32: Feb-21 | AK32: May-21 | AL32: May-21 | AM32: Aug-22 | AN32: Nov-22 | AO32: Feb-22 | AP32: May-22 | AQ32: May-22
D33: F1Q15 | E33: F2Q15 | F33: F3Q15 | G33: F4Q15 | H33: FY 2015 | I33: F1Q16 | J33: F2Q16 | K33: F3Q16 | L33: F4Q16 | M33: FY 2016 | N33: F1Q17 | O33: F2Q17 | P33: F3Q17 | Q33: F4Q17 | R33: FY 2017 | S33: F1Q18 | T33: F2Q18 | U33: F3Q18 | V33: F4Q18 | W33: FY 2018 | X33: F1Q19 | Y33: F2Q19 | Z33: F3Q19 | AA33: F4Q19 | AB33: FY 2019 | AC33: F1Q20E | AD33: F2Q20E | AE33: F3Q20E | AF33: F4Q20E | AG33: FY 2020 E | AH33: F1Q21E | AI33: F2Q21E | AJ33: F3Q21E | AK33: F4Q21E | AL33: FY 2021 E | AM33: F1Q22E | AN33: F2Q22E | AO33: F3Q22E | AP33: F4Q22E | AQ33: FY 2022 E
B34: Segment Details
B35: North America - Footwear | D35: 2183 | E35: 1925 | F35: 2081 | G35: 2317 | H35: =SUM(D35:G35) -> 8506 | I35: 2366 | J35: 2162 | K35: 2404 | L35: 2367 | M35: =SUM(I35:L35) -> 9299 | N35: 2518 | O35: 2219 | P35: 2490 | Q35: 2457 | R35: =SUM(N35:Q35) -> 9684 | S35: 2434 | T35: 2070 | U35: 2293 | V35: 2525 | W35: =SUM(S35:V35) -> 9322 | X35: 2555 | Y35: 2245 | Z35: 2509 | AA35: 2736 | AB35: =SUM(X35:AA35) -> 10045 | AC35: =AA35*(1+AC36) -> 2752.737223 | AD35: =AC35*(1+AD36) -> 2719.364543 | AE35: =AD35*(1+AE36) -> 2786.519459 | AF35: =AE35*(1+AF36) -> 2872.8 | AG35: =SUM(AC35:AF35) -> 11131.42122 | AH35: =AF35*(1+AH36) -> 2890.374084 | AI35: =AH35*(1+AI36) -> 2855.332771 | AJ35: =AI35*(1+AJ36) -> 2925.845432 | AK35: =AJ35*(1+AK36) -> 3016.44 | AL35: =SUM(AH35:AK35) -> 11687.99229 | AM35: =AK35*(1+AM36) -> 3034.892788 | AN35: =AM35*(1+AN36) -> 2998.099409 | AO35: =AN35*(1+AO36) -> 3072.137704 | AP35: =AO35*(1+AP36) -> 3167.262 | AQ35: =SUM(AM35:AP35) -> 12272.3919
B36: Footwear growth rate (QoQ) | E36: =E35/D35-1 -> -0.1181859826 | F36: =F35/E35-1 -> 0.08103896104 | G36: =G35/F35-1 -> 0.1134070159 | I36: =I35/G35-1 -> 0.02114803625 | J36: =J35/I35-1 -> -0.08622147084 | K36: =K35/J35-1 -> 0.111933395 | L36: =L35/K35-1 -> -0.01539101498 | M36: =M35/H35-1 -> 0.09322830943 | N36: =N35/L35-1 -> 0.06379383185 | O36: =O35/N35-1 -> -0.1187450357 | P36: =P35/O35-1 -> 0.1221270843 | Q36: =Q35/P35-1 -> -0.01325301205 | R36: =R35/M35-1 -> 0.04140230132 | S36: =S35/Q35-1 -> -0.009361009361 | T36: =T35/S35-1 -> -0.149548069 | U36: =U35/T35-1 -> 0.1077294686 | V36: =V35/U35-1 -> 0.1011774967 | W36: =W35/R35-1 -> -0.03738124742 | X36: =X35/V35-1 -> 0.01188118812 | Y36: =Y35/X35-1 -> -0.1213307241 | Z36: =Z35/Y35-1 -> 0.1175946548 | AA36: =AA35/Z35-1 -> 0.09047429255 | AB36: =AB35/W35-1 -> 0.07755846385 | AC36: =(1+$C$339)^(1/8)-1 -> 0.006117405887 | AD36: =(1+$C$339)^(1/-4)-1 -> -0.01212345258 | AE36: =(1+$C$339)^(1/2)-1 -> 0.0246950766 | AF36: =(1+$C$339)^(1/1.6)-1 -> 0.03096355229 | AG36: =AG35/AB35-1 -> 0.1081554231 | AH36: =(1+$C$339)^(1/8)-1 -> 0.006117405887 | AI36: =(1+$C$339)^(1/-4)-1 -> -0.01212345258 | AJ36: =(1+$C$339)^(1/2)-1 -> 0.0246950766 | AK36: =(1+$C$339)^(1/1.6)-1 -> 0.03096355229 | AL36: =AL35/AG35-1 -> 0.05 | AM36: =(1+$C$339)^(1/8)-1 -> 0.006117405887 | AN36: =(1+$C$339)^(1/-4)-1 -> -0.01212345258 | AO36: =(1+$C$339)^(1/2)-1 -> 0.0246950766 | AP36: =(1+$C$339)^(1/1.6)-1 -> 0.03096355229 | AQ36: =AQ35/AL35-1 -> 0.05
B37: North America - Apparel | D37: 1105 | E37: 1131 | F37: 987 | G37: 1187 | H37: =SUM(D37:G37) -> 4410 | I37: 1247 | J37: 1221 | K37: 1115 | L37: 1163 | M37: =SUM(I37:L37) -> 4746 | N37: 1317 | O37: 1273 | P37: 1154 | Q37: 1142 | R37: =SUM(N37:Q37) -> 4886 | S37: 1299 | T37: 1279 | U37: 1153 | V37: 1207 | W37: =SUM(S37:V37) -> 4938 | X37: 1407 | Y37: 1405 | Z37: 1173 | AA37: 1275 | AB37: =SUM(X37:AA37) -> 5260 | AC37: =AA37*(1+AC38) -> 1281.266149 | AD37: =AC37*(1+AD38) -> 1268.764496 | AE37: =AD37*(1+AE38) -> 1293.890985 | AF37: =AE37*(1+AF38) -> 1326 | AG37: =SUM(AC37:AF37) -> 5169.92163 | AH37: =AF37*(1+AH38) -> 1332.516795 | AI37: =AH37*(1+AI38) -> 1319.515076 | AJ37: =AI37*(1+AJ38) -> 1345.646624 | AK37: =AJ37*(1+AK38) -> 1379.04 | AL37: =SUM(AH37:AK37) -> 5376.718495 | AM37: =AK37*(1+AM38) -> 1385.817467 | AN37: =AM37*(1+AN38) -> 1372.295679 | AO37: =AN37*(1+AO38) -> 1399.472489 | AP37: =AO37*(1+AP38) -> 1434.2016 | AQ37: =SUM(AM37:AP37) -> 5591.787235
B38: Apparel growth rate (QoQ) | E38: =E37/D37-1 -> 0.02352941176 | F38: =F37/E37-1 -> -0.1273209549 | G38: =G37/F37-1 -> 0.2026342452 | I38: =I37/G37-1 -> 0.05054759899 | J38: =J37/I37-1 -> -0.0208500401 | K38: =K37/J37-1 -> -0.08681408681 | L38: =L37/K37-1 -> 0.04304932735 | M38: =M37/H37-1 -> 0.07619047619 | N38: =N37/L37-1 -> 0.1324161651 | O38: =O37/N37-1 -> -0.03340926348 | P38: =P37/O37-1 -> -0.09347996858 | Q38: =Q37/P37-1 -> -0.01039861352 | R38: =R37/M37-1 -> 0.02949852507 | S38: =S37/Q37-1 -> 0.1374781086 | T38: =T37/S37-1 -> -0.01539645881 | U38: =U37/T37-1 -> -0.09851446443 | V38: =V37/U37-1 -> 0.04683434519 | W38: =W37/R37-1 -> 0.01064265248 | X38: =X37/V37-1 -> 0.1657000829 | Y38: =Y37/X37-1 -> -0.001421464108 | Z38: =Z37/Y37-1 -> -0.1651245552 | AA38: =AA37/Z37-1 -> 0.08695652174 | AB38: =AB37/W37-1 -> 0.06520858647 | AC38: =(1+$C$340)^(1/8)-1 -> 0.004914626498 | AD38: =(1+$C$340)^(1/-4)-1 -> -0.009757264257 | AE38: =(1+$C$340)^(1/2)-1 -> 0.01980390272 | AF38: =(1+$C$340)^(1/1.6)-1 -> 0.024815858 | AG38: =AG37/AB37-1 -> -0.01712516536 | AH38: =(1+$C$340)^(1/8)-1 -> 0.004914626498 | AI38: =(1+$C$340)^(1/-4)-1 -> -0.009757264257 | AJ38: =(1+$C$340)^(1/2)-1 -> 0.01980390272 | AK38: =(1+$C$340)^(1/1.6)-1 -> 0.024815858 | AL38: =AL37/AG37-1 -> 0.04 | AM38: =(1+$C$340)^(1/8)-1 -> 0.004914626498 | AN38: =(1+$C$340)^(1/-4)-1 -> -0.009757264257 | AO38: =(1+$C$340)^(1/2)-1 -> 0.01980390272 | AP38: =(1+$C$340)^(1/1.6)-1 -> 0.024815858 | AQ38: =AQ37/AL37-1 -> 0.04
B39: North America - Equipment | D39: 225 | E39: 185 | F39: 186 | G39: 228 | H39: 824 | I39: 186 | J39: 164 | K39: 164 | L39: 205 | M39: 719 | N39: 196 | O39: 158 | P39: 138 | Q39: 154 | R39: 646 | S39: 191 | T39: 136 | U39: 125 | V39: 143 | W39: 595 | X39: 183 | Y39: 132 | Z39: 128 | AA39: 154 | AB39: =SUM(X39:AA39) -> 597 | AC39: =AA39*(1+AC40) -> 154.3816728 | AD39: =AC39*(1+AD40) -> 153.6192708 | AE39: =AD39*(1+AE40) -> 155.1478584 | AF39: =AE39*(1+AF40) -> 157.08 | AG39: 620.228802 | AH39: =AF39*(1+AH40) -> 157.4693062 | AI39: =AH39*(1+AI40) -> 156.6916563 | AJ39: =AI39*(1+AJ40) -> 158.2508156 | AK39: =AJ39*(1+AK40) -> 160.2216 | AL39: =SUM(AH39:AK39) -> 632.6333781 | AM39: =AK39*(1+AM40) -> 160.6186923 | AN39: =AM39*(1+AN40) -> 159.8254894 | AO39: =AN39*(1+AO40) -> 161.4158319 | AP39: =AO39*(1+AP40) -> 163.426032 | AQ39: =SUM(AM39:AP39) -> 645.2860456
B40: Equipment growth rate (QoQ) | E40: =E39/D39-1 -> -0.1777777778 | F40: =F39/E39-1 -> 0.005405405405 | G40: =G39/F39-1 -> 0.2258064516 | I40: =I39/G39-1 -> -0.1842105263 | J40: =J39/I39-1 -> -0.1182795699 | K40: =K39/J39-1 -> 0 | L40: =L39/K39-1 -> 0.25 | M40: =M39/H39-1 -> -0.1274271845 | N40: =N39/L39-1 -> -0.04390243902 | O40: =O39/N39-1 -> -0.193877551 | P40: =P39/O39-1 -> -0.1265822785 | Q40: =Q39/P39-1 -> 0.115942029 | R40: =R39/M39-1 -> -0.1015299026 | S40: =S39/Q39-1 -> 0.2402597403 | T40: =T39/S39-1 -> -0.2879581152 | U40: =U39/T39-1 -> -0.08088235294 | V40: =V39/U39-1 -> 0.144 | W40: =W39/R39-1 -> -0.07894736842 | X40: =X39/V39-1 -> 0.2797202797 | Y40: =Y39/X39-1 -> -0.2786885246 | Z40: =Z39/Y39-1 -> -0.0303030303 | AA40: =AA39/Z39-1 -> 0.203125 | AB40: =AB39/W39-1 -> 0.003361344538 | AC40: =(1+$C$341)^(1/8)-1 -> 0.002478394567 | AD40: =(1+$C$341)^(1/-4)-1 -> -0.00493842252 | AE40: =(1+$C$341)^(1/2)-1 -> 0.009950493836 | AF40: =(1+$C$341)^(1/1.6)-1 -> 0.01245354965 | AG40: =AG39/AB39-1 -> 0.03890921614 | AH40: =(1+$C$341)^(1/8)-1 -> 0.002478394567 | AI40: =(1+$C$341)^(1/-4)-1 -> -0.00493842252 | AJ40: =(1+$C$341)^(1/2)-1 -> 0.009950493836 | AK40: =(1+$C$341)^(1/1.6)-1 -> 0.01245354965 | AL40: =AL39/AG39-1 -> 0.02 | AM40: =(1+$C$341)^(1/8)-1 -> 0.002478394567 | AN40: =(1+$C$341)^(1/-4)-1 -> -0.00493842252 | AO40: =(1+$C$341)^(1/2)-1 -> 0.009950493836 | AP40: =(1+$C$341)^(1/1.6)-1 -> 0.01245354965 | AQ40: =AQ39/AL39-1 -> 0.02
B41: Total North America Revenue | D41: =SUM(D35,D37,D39) -> 3513 | E41: =SUM(E35,E37,E39) -> 3241 | F41: 3254 | G41: 3732 | H41: =SUM(H35:H39) -> 13740 | I41: =SUM(I35,I37,I39) -> 3799 | J41: =SUM(J35,J37,J39) -> 3547 | K41: 3683 | L41: 3735 | M41: =SUM(M35:M39) -> 14764.16942 | N41: =SUM(N35,N37,N39) -> 4031 | O41: =SUM(O35,O37,O39) -> 3650 | P41: 3782 | Q41: 3753 | R41: 15216.0709 | S41: =SUM(S35,S37,S39) -> 3924 | T41: =SUM(T35,T37,T39) -> 3485 | U41: 3571 | V41: 3875 | W41: 14854.97326 | X41: =SUM(X35,X37,X39) -> 4145 | Y41: =SUM(Y35,Y37,Y39) -> 3782 | Z41: 3810 | AA41: 4165 | AB41: 15902 | AC41: =SUM(AC35,AC37,AC39) -> 4188.385044 | AD41: 4141.748311 | AE41: 4235.558303 | AF41: 4355.88 | AG41: 16921.57166 | AH41: =SUM(AH35,AH37,AH39) -> 4380.360185 | AI41: 4331.539503 | AJ41: 4429.742872 | AK41: 4555.7016 | AL41: 17697.34416 | AM41: =SUM(AM35,AM37,AM39) -> 4581.328947 | AN41: 4530.220578 | AO41: 4633.026025 | AP41: 4764.889632 | AQ41: 18509.46518
B42: North America Earnings Before Interest and Tax (EBIT) | D42: 970 | E42: 785 | F42: 830 | G42: 1060 | H42: =SUM(D42:G42) -> 3645 | I42: 1042 | J42: 882 | K42: 903 | L42: 936 | M42: =SUM(I42:L42) -> 3763 | N42: 1004 | O42: 912 | P42: 980 | Q42: 979 | R42: =SUM(N42:Q42) -> 3875 | S42: 1002 | T42: 783 | U42: 840 | V42: 975 | W42: =SUM(S42:V42) -> 3600 | X42: 1077 | Y42: 884 | Z42: 916 | AA42: 1048 | AB42: =SUM(X42:AA42) -> 3925 | AC42: =AC41*AC43 -> 1256.515513 | AD42: =AD41*AD43 -> 1242.524493 | AE42: 1270.667491 | AF42: 1306.764 | AG42: =SUM(AC42:AF42) -> 5076.471497 | AH42: =AH41*AH43 -> 1314.108055 | AI42: =AI41*AI43 -> 1299.461851 | AJ42: =AJ41*AJ43 -> 1328.922862 | AK42: =AK41*AK43 -> 1366.71048 | AL42: =SUM(AH42:AK42) -> 5309.203248 | AM42: =AM41*AM43 -> 1374.398684 | AN42: =AN41*AN43 -> 1359.066173 | AO42: =AO41*AO43 -> 1389.907807 | AP42: =AP41*AP43 -> 1429.46689 | AQ42: =SUM(AM42:AP42) -> 5552.839554
B43: North America EBIT Margin | D43: =D42/D41 -> 0.2761172787 | E43: =E42/E41 -> 0.2422091947 | F43: 0.2550706822 | G43: 0.2840300107 | H43: 0.2652838428 | I43: =I42/I41 -> 0.274282706 | J43: =J42/J41 -> 0.2486608401 | K43: =K42/K41 -> 0.2451805593 | L43: =L42/L41 -> 0.2506024096 | M43: 0.2548738025 | N43: 0.2490697097 | O43: 0.2498630137 | P43: 0.2591221576 | Q43: 0.2608579803 | R43: 0.2546649543 | S43: 0.255351682 | T43: 0.2246771879 | U43: 0.2352282274 | V43: 0.2516129032 | W43: 0.2423430818 | X43: 0.2598311218 | Y43: 0.2337387626 | Z43: 0.2404199475 | AA43: =AA42/AA41 -> 0.2516206483 | AB43: 0.2468242988 | AC43: =$C$342 -> 0.3 | AD43: =$C$342 -> 0.3 | AE43: 0.3 | AF43: 0.3 | AG43: 0.3 | AH43: =$C$342 -> 0.3 | AI43: =$C$342 -> 0.3 | AJ43: 0.3 | AK43: 0.3 | AL43: =AL42/AL41 -> 0.3 | AM43: =$C$342 -> 0.3 | AN43: =$C$342 -> 0.3 | AO43: 0.3 | AP43: 0.3 | AQ43: =AQ42/AQ41 -> 0.3
B44: North America Division
B45: EMEA - Footwear | N45: 1457 | O45: 1116 | P45: 1271 | Q45: 1348 | R45: =SUM(N45:Q45) -> 5192 | S45: 1471 | T45: 1290 | U45: 1489 | V45: 1625 | W45: =SUM(S45:V45) -> 5875 | X45: 1642 | Y45: 1419 | Z45: 1589 | AA45: 1643 | AB45: =SUM(X45:AA45) -> 6293 | AC45: =AA45*(1+AC46) -> 1662.691395 | AD45: =AC45*(1+AD46) -> 1623.541812 | AE45: =AD45*(1+AE46) -> 1702.785018 | AF45: =AE45*(1+AF46) -> 1807.3 | AG45: =SUM(AC45:AF45) -> 6796.318225 | AH45: =AF45*(1+AH46) -> 1828.960534 | AI45: =AH45*(1+AI46) -> 1785.895993 | AJ45: =AI45*(1+AJ46) -> 1873.06352 | AK45: =AJ45*(1+AK46) -> 1988.03 | AL45: =SUM(AH45:AK45) -> 7475.950047 | AM45: =AK45*(1+AM46) -> 2011.856588 | AN45: =AM45*(1+AN46) -> 1964.485593 | AO45: =AN45*(1+AO46) -> 2060.369872 | AP45: =AO45*(1+AP46) -> 2186.833 | AQ45: =SUM(AM45:AP45) -> 8223.545052
B46: Footwear growth rate (QoQ) | O46: =O45/N45-1 -> -0.2340425532 | P46: =P45/O45-1 -> 0.1388888889 | Q46: =Q45/P45-1 -> 0.06058221873 | S46: =S45/Q45-1 -> 0.0912462908 | T46: =T45/S45-1 -> -0.1230455472 | U46: =U45/T45-1 -> 0.1542635659 | V46: =V45/U45-1 -> 0.09133646743 | W46: =W45/R45-1 -> 0.1315485362 | X46: =X45/V45-1 -> 0.01046153846 | Y46: =Y45/X45-1 -> -0.1358099878 | Z46: =Z45/Y45-1 -> 0.1198026779 | AA46: =AA45/Z45-1 -> 0.03398363751 | AB46: =AB45/W45-1 -> 0.07114893617 | AC46: =(1+$C$344)^(1/8)-1 -> 0.01198502414 | AD46: =(1+$C$344)^(1/-4)-1 -> -0.02354591032 | AE46: =(1+$C$344)^(1/2)-1 -> 0.04880884817 | AF46: =(1+$C$344)^(1/1.6)-1 -> 0.06137884753 | AG46: =AG45/AB45-1 -> 0.07998064911 | AH46: =(1+$C$344)^(1/8)-1 -> 0.01198502414 | AI46: =(1+$C$344)^(1/-4)-1 -> -0.02354591032 | AJ46: =(1+$C$344)^(1/2)-1 -> 0.04880884817 | AK46: =(1+$C$344)^(1/1.6)-1 -> 0.06137884753 | AL46: =AL45/AG45-1 -> 0.1 | AM46: =(1+$C$344)^(1/8)-1 -> 0.01198502414 | AN46: =(1+$C$344)^(1/-4)-1 -> -0.02354591032 | AO46: =(1+$C$344)^(1/2)-1 -> 0.04880884817 | AP46: =(1+$C$344)^(1/1.6)-1 -> 0.06137884753 | AQ46: =AQ45/AL45-1 -> 0.1
B47: EMEA - Apparel | N47: 684 | O47: 588 | P47: 566 | Q47: 557 | R47: =SUM(N47:Q47) -> 2395 | S47: 743 | T47: 743 | U47: 713 | V47: 741 | W47: =SUM(S47:V47) -> 2940 | X47: 830 | Y47: 794 | Z47: 750 | AA47: 713 | AB47: =SUM(X47:AA47) -> 3087 | AC47: =AA47*(1+AC48) -> 719.0556483 | AD47: =AC47*(1+AD48) -> 706.9953504 | AE47: =AD47*(1+AE48) -> 731.321677 | AF47: =AE47*(1+AF48) -> 762.91 | AG47: =SUM(AC47:AF47) -> 2920.282676 | AH47: =AF47*(1+AH48) -> 769.3895436 | AI47: =AH47*(1+AI48) -> 756.4850249 | AJ47: =AI47*(1+AJ48) -> 782.5141944 | AK47: =AJ47*(1+AK48) -> 816.3137 | AL47: =SUM(AH47:AK47) -> 3124.702463 | AM47: =AK47*(1+AM48) -> 823.2468117 | AN47: =AM47*(1+AN48) -> 809.4389767 | AO47: =AN47*(1+AO48) -> 837.290188 | AP47: =AO47*(1+AP48) -> 873.455659 | AQ47: =SUM(AM47:AP47) -> 3343.431635
B48: Apparel growth rate (QoQ) | O48: =O47/N47-1 -> -0.1403508772 | P48: =P47/O47-1 -> -0.03741496599 | Q48: =Q47/P47-1 -> -0.01590106007 | S48: =S47/Q47-1 -> 0.3339317774 | T48: =T47/S47-1 -> 0 | U48: =U47/T47-1 -> -0.04037685061 | V48: =V47/U47-1 -> 0.03927068724 | W48: =W47/R47-1 -> 0.2275574113 | X48: =X47/V47-1 -> 0.1201079622 | Y48: =Y47/X47-1 -> -0.04337349398 | Z48: =Z47/Y47-1 -> -0.05541561713 | AA48: =AA47/Z47-1 -> -0.04933333333 | AB48: =AB47/W47-1 -> 0.05 | AC48: =(1+$C$345)^(1/8)-1 -> 0.008493195318 | AD48: =(1+$C$345)^(1/-4)-1 -> -0.01677241239 | AE48: =(1+$C$345)^(1/2)-1 -> 0.03440804328 | AF48: =(1+$C$345)^(1/1.6)-1 -> 0.04319347283 | AG48: =AG47/AB47-1 -> -0.0540062599 | AH48: =(1+$C$345)^(1/8)-1 -> 0.008493195318 | AI48: =(1+$C$345)^(1/-4)-1 -> -0.01677241239 | AJ48: =(1+$C$345)^(1/2)-1 -> 0.03440804328 | AK48: =(1+$C$345)^(1/1.6)-1 -> 0.04319347283 | AL48: =AL47/AG47-1 -> 0.07 | AM48: =(1+$C$345)^(1/8)-1 -> 0.008493195318 | AN48: =(1+$C$345)^(1/-4)-1 -> -0.01677241239 | AO48: =(1+$C$345)^(1/2)-1 -> 0.03440804328 | AP48: =(1+$C$345)^(1/1.6)-1 -> 0.04319347283 | AQ48: =AQ47/AL47-1 -> 0.07
B49: EMEA - Equipment | N49: 121 | O49: 88 | P49: 88 | Q49: 86 | R49: =SUM(N49:Q49) -> 383 | S49: 130 | T49: 100 | U49: 97 | V49: 100 | W49: =SUM(S49:V49) -> 427 | X49: 135 | Y49: 100 | Z49: 96 | AA49: 101 | AB49: =SUM(X49:AA49) -> 432 | AC49: =AA49*(1+AC50) -> 101.1257011 | AD49: =AC49*(1+AD50) -> 100.8744552 | AE49: =AD49*(1+AE50) -> 101.3775728 | AF49: =AE49*(1+AF50) -> 102.01 | AG49: =SUM(AC49:AF49) -> 405.387729 | AH49: =AF49*(1+AH50) -> 102.1369581 | AI49: =AH49*(1+AI50) -> 101.8831997 | AJ49: =AI49*(1+AJ50) -> 102.3913485 | AK49: =AJ49*(1+AK50) -> 103.0301 | AL49: =SUM(AH49:AK49) -> 409.4416063 | AM49: =AK49*(1+AM50) -> 103.1583277 | AN49: =AM49*(1+AN50) -> 102.9020317 | AO49: =AN49*(1+AO50) -> 103.415262 | AP49: =AO49*(1+AP50) -> 104.060401 | AQ49: =SUM(AM49:AP49) -> 413.5360224
B50: Equipment growth rate (QoQ) | O50: =O49/N49-1 -> -0.2727272727 | P50: =P49/O49-1 -> 0 | Q50: =Q49/P49-1 -> -0.02272727273 | S50: =S49/Q49-1 -> 0.511627907 | T50: =T49/S49-1 -> -0.2307692308 | U50: =U49/T49-1 -> -0.03 | V50: =V49/U49-1 -> 0.03092783505 | W50: =W49/R49-1 -> 0.1148825065 | X50: =X49/V49-1 -> 0.35 | Y50: =Y49/X49-1 -> -0.2592592593 | Z50: =Z49/Y49-1 -> -0.04 | AA50: =AA49/Z49-1 -> 0.05208333333 | AB50: =AB49/W49-1 -> 0.01170960187 | AC50: =(1+$C$346)^(1/8)-1 -> 0.001244565186 | AD50: =(1+$C$346)^(1/-4)-1 -> -0.002484491243 | AE50: =(1+$C$346)^(1/2)-1 -> 0.004987562112 | AF50: =(1+$C$346)^(1/1.6)-1 -> 0.006238334644 | AG50: =AG49/AB49-1 -> -0.06160247911 | AH50: =(1+$C$346)^(1/8)-1 -> 0.001244565186 | AI50: =(1+$C$346)^(1/-4)-1 -> -0.002484491243 | AJ50: =(1+$C$346)^(1/2)-1 -> 0.004987562112 | AK50: =(1+$C$346)^(1/1.6)-1 -> 0.006238334644 | AL50: =AL49/AG49-1 -> 0.01 | AM50: =(1+$C$346)^(1/8)-1 -> 0.001244565186 | AN50: =(1+$C$346)^(1/-4)-1 -> -0.002484491243 | AO50: =(1+$C$346)^(1/2)-1 -> 0.004987562112 | AP50: =(1+$C$346)^(1/1.6)-1 -> 0.006238334644 | AQ50: =AQ49/AL49-1 -> 0.01
B51: Total EMEA Revenue | N51: =SUM(N45,N47,N49) -> 2262 | O51: =SUM(O45:O49) -> 1791.625607 | P51: 1925.101474 | Q51: 1991.044681 | R51: 7970 | S51: =SUM(S45,S47,S49) -> 2344 | T51: =SUM(T45:T49) -> 2132.876954 | U51: 2299.113887 | V51: 2466.130607 | W51: =SUM(W45,W47,W49) -> 9242 | X51: =SUM(X45,X47,X49) -> 2607 | Y51: 2313 | Z51: 2435 | AA51: 2457 | AB51: 9812 | AC51: =SUM(AC45,AC47,AC49) -> 2482.872744 | AD51: 2431.411618 | AE51: 2535.484268 | AF51: 2672.22 | AG51: 10121.98863 | AH51: =SUM(AH45,AH47,AH49) -> 2700.487036 | AI51: 2644.264218 | AJ51: 2757.969063 | AK51: 2907.3738 | AL51: 11010.09412 | AM51: =SUM(AM45,AM47,AM49) -> 2938.261727 | AN51: 2876.826601 | AO51: 3001.075322 | AP51: 3164.34906 | AQ51: 11980.51271
B52: EMEA Earnings Before Interest and Tax (EBIT) | N52: 485 | O52: 313 | P52: 361 | Q52: 348 | R52: =SUM(N52:Q52) -> 1507 | S52: 451 | T52: 337 | U52: 417 | V52: 382 | W52: =SUM(S52:V52) -> 1587 | X52: 501 | Y52: 450 | Z52: 538 | AA52: 506 | AB52: =SUM(X52:AA52) -> 1995 | AC52: =AC51*AC53 -> 744.8618232 | AD52: =AD51*AD53 -> 729.4234853 | AE52: 760.6452803 | AF52: 801.666 | AG52: =SUM(AC52:AF52) -> 3036.596589 | AH52: =AH51*AH53 -> 810.1461108 | AI52: =AI51*AI53 -> 793.2792654 | AJ52: =AJ51*AJ53 -> 827.3907188 | AK52: =AK51*AK53 -> 872.21214 | AL52: =SUM(AH52:AK52) -> 3303.028235 | AM52: =AM51*AM53 -> 881.4785181 | AN52: =AN51*AN53 -> 863.0479803 | AO52: =AO51*AO53 -> 900.3225965 | AP52: =AP51*AP53 -> 949.304718 | AQ52: =SUM(AM52:AP52) -> 3594.153813
B53: EMEA EBIT Margin | O53: =O52/N52-1 -> -0.3546391753 | P53: =P52/O52-1 -> 0.1533546326 | Q53: =Q52/P52-1 -> -0.03601108033 | R53: =R52/R51 -> 0.1890840652 | S53: =S52/Q52-1 -> 0.2959770115 | T53: =T52/S52-1 -> -0.2527716186 | U53: =U52/T52-1 -> 0.237388724 | V53: =V52/U52-1 -> -0.08393285372 | W53: =W52/W51 -> 0.1717160788 | X53: =X52/V52-1 -> 0.3115183246 | Y53: =Y52/X52-1 -> -0.1017964072 | Z53: =Z52/Y52-1 -> 0.1955555556 | AA53: =AA52/Z52-1 -> -0.0594795539 | AB53: =AB52/AB51 -> 0.2033224623 | AC53: =$C$347 -> 0.3 | AD53: =$C$347 -> 0.3 | AE53: 0.3 | AF53: 0.3 | AG53: =AG52/AG51 -> 0.3 | AH53: =$C$347 -> 0.3 | AI53: =$C$347 -> 0.3 | AJ53: 0.3 | AK53: 0.3 | AL53: =AL52/AL51 -> 0.3 | AM53: =$C$347 -> 0.3 | AN53: =$C$347 -> 0.3 | AO53: 0.3 | AP53: 0.3 | AQ53: =AQ52/AQ51 -> 0.3
B54: EMEA Division
B55: Greater China - Footwear | D55: 440 | E55: 463 | F55: 562 | G55: 551 | H55: =SUM(D55:G55) -> 2016 | I55: 599 | J55: 600 | K55: 719 | L55: 681 | M55: =SUM(I55:L55) -> 2599 | N55: 710 | O55: 669 | P55: 776 | Q55: 765 | R55: =SUM(N55:Q55) -> 2920 | S55: 761 | T55: 793 | U55: 939 | V55: 1003 | W55: =SUM(S55:V55) -> 3496 | X55: 958 | Y55: 1022 | Z55: 1115 | AA55: 1167 | AB55: =SUM(X55:AA55) -> 4262 | AC55: =AA55*(1+AC56) -> 1196.370883 | AD55: =AC55*(1+AD56) -> 1138.350171 | AE55: =AD55*(1+AE56) -> 1257.348861 | AF55: =AE55*(1+AF56) -> 1423.74 | AG55: =SUM(AC55:AF55) -> 5015.809915 | AH55: =AF55*(1+AH56) -> 1459.572478 | AI55: =AH55*(1+AI56) -> 1388.787209 | AJ55: =AI55*(1+AJ56) -> 1533.96561 | AK55: =AJ55*(1+AK56) -> 1736.9628 | AL55: =SUM(AH55:AK55) -> 6119.288097 | AM55: =AK55*(1+AM56) -> 1780.678423 | AN55: =AM55*(1+AN56) -> 1694.320395 | AO55: =AN55*(1+AO56) -> 1871.438044 | AP55: =AO55*(1+AP56) -> 2119.094616 | AQ55: =SUM(AM55:AP55) -> 7465.531478
B56: Footwear growth rate (QoQ) | E56: =E55/D55-1 -> 0.05227272727 | F56: =F55/E55-1 -> 0.2138228942 | G56: =G55/F55-1 -> -0.01957295374 | I56: =I55/G55-1 -> 0.08711433757 | J56: =J55/I55-1 -> 0.001669449082 | K56: =K55/J55-1 -> 0.1983333333 | L56: =L55/K55-1 -> -0.0528511822 | M56: =M55/H55-1 -> 0.2891865079 | N56: =N55/L55-1 -> 0.04258443465 | O56: =O55/N55-1 -> -0.05774647887 | P56: =P55/O55-1 -> 0.1599402093 | Q56: =Q55/P55-1 -> -0.01417525773 | R56: =R55/M55-1 -> 0.1235090419 | S56: =S55/Q55-1 -> -0.00522875817 | T56: =T55/S55-1 -> 0.0420499343 | U56: =U55/T55-1 -> 0.184110971 | V56: =V55/U55-1 -> 0.06815761448 | W56: =W55/R55-1 -> 0.197260274 | X56: =X55/V55-1 -> -0.04486540379 | Y56: =Y55/X55-1 -> 0.06680584551 | Z56: =Z55/Y55-1 -> 0.09099804305 | AA56: =AA55/Z55-1 -> 0.0466367713 | AB56: =AB55/W55-1 -> 0.2191075515 | AC56: =(1+$C$349)^(1/8)-1 -> 0.02516785211 | AD56: =(1+$C$349)^(1/-4)-1 -> -0.048497262 | AE56: =(1+$C$349)^(1/2)-1 -> 0.1045361017 | AF56: =(1+$C$349)^(1/1.6)-1 -> 0.132334903 | AG56: =AG55/AB55-1 -> 0.1768676479 | AH56: =(1+$C$349)^(1/8)-1 -> 0.02516785211 | AI56: =(1+$C$349)^(1/-4)-1 -> -0.048497262 | AJ56: =(1+$C$349)^(1/2)-1 -> 0.1045361017 | AK56: =(1+$C$349)^(1/1.6)-1 -> 0.132334903 | AL56: =AL55/AG55-1 -> 0.22 | AM56: =(1+$C$349)^(1/8)-1 -> 0.02516785211 | AN56: =(1+$C$349)^(1/-4)-1 -> -0.048497262 | AO56: =(1+$C$349)^(1/2)-1 -> 0.1045361017 | AP56: =(1+$C$349)^(1/1.6)-1 -> 0.132334903 | AQ56: =AQ55/AL55-1 -> 0.22
B57: Greater China - Apparel | D57: 202 | E57: 266 | F57: 212 | G57: 245 | H57: =SUM(D57:G57) -> 925 | I57: 246 | J57: 306 | K57: 235 | L57: 268 | M57: =SUM(I57:L57) -> 1055 | N57: 269 | O57: 355 | P57: 271 | Q57: 293 | R57: =SUM(N57:Q57) -> 1188 | S57: 309 | T57: 397 | U57: 368 | V57: 434 | W57: =SUM(S57:V57) -> 1508 | X57: 380 | Y57: 490 | Z57: 444 | AA57: 494 | AB57: =SUM(X57:AA57) -> 1808 | AC57: =AA57*(1+AC58) -> 499.9206019 | AD57: =AC57*(1+AD58) -> 488.1495163 | AE57: =AD57*(1+AE58) -> 511.9755319 | AF57: =AE57*(1+AF58) -> 543.4 | AG57: =SUM(AC57:AF57) -> 2043.44565 | AH57: =AF57*(1+AH58) -> 549.9126621 | AI57: =AH57*(1+AI58) -> 536.9644679 | AJ57: =AI57*(1+AJ58) -> 563.1730851 | AK57: =AJ57*(1+AK58) -> 597.74 | AL57: =SUM(AH57:AK57) -> 2247.790215 | AM57: =AK57*(1+AM58) -> 604.9039283 | AN57: =AM57*(1+AN58) -> 590.6609147 | AO57: =AN57*(1+AO58) -> 619.4903936 | AP57: =AO57*(1+AP58) -> 657.514 | AQ57: =SUM(AM57:AP57) -> 2472.569237
B58: Apparel growth rate (QoQ) | E58: =E57/D57-1 -> 0.3168316832 | F58: =F57/E57-1 -> -0.2030075188 | G58: =G57/F57-1 -> 0.1556603774 | I58: =I57/G57-1 -> 0.004081632653 | J58: =J57/I57-1 -> 0.243902439 | K58: =K57/J57-1 -> -0.2320261438 | L58: =L57/K57-1 -> 0.1404255319 | M58: =M57/H57-1 -> 0.1405405405 | N58: =N57/L57-1 -> 0.003731343284 | O58: =O57/N57-1 -> 0.3197026022 | P58: =P57/O57-1 -> -0.2366197183 | Q58: =Q57/P57-1 -> 0.08118081181 | R58: =R57/M57-1 -> 0.1260663507 | S58: =S57/Q57-1 -> 0.05460750853 | T58: =T57/S57-1 -> 0.284789644 | U58: =U57/T57-1 -> -0.07304785894 | V58: =V57/U57-1 -> 0.1793478261 | W58: =W57/R57-1 -> 0.2693602694 | X58: =X57/V57-1 -> -0.1244239631 | Y58: =Y57/X57-1 -> 0.2894736842 | Z58: =Z57/Y57-1 -> -0.09387755102 | AA58: =AA57/Z57-1 -> 0.1126126126 | AB58: =AB57/W57-1 -> 0.198938992 | AC58: =(1+$C$350)^(1/8)-1 -> 0.01198502414 | AD58: =(1+$C$350)^(1/-4)-1 -> -0.02354591032 | AE58: =(1+$C$350)^(1/2)-1 -> 0.04880884817 | AF58: =(1+$C$350)^(1/1.6)-1 -> 0.06137884753 | AG58: =AG57/AB57-1 -> 0.130224364 | AH58: =(1+$C$350)^(1/8)-1 -> 0.01198502414 | AI58: =(1+$C$350)^(1/-4)-1 -> -0.02354591032 | AJ58: =(1+$C$350)^(1/2)-1 -> 0.04880884817 | AK58: =(1+$C$350)^(1/1.6)-1 -> 0.06137884753 | AL58: =AL57/AG57-1 -> 0.1 | AM58: =(1+$C$350)^(1/8)-1 -> 0.01198502414 | AN58: =(1+$C$350)^(1/-4)-1 -> -0.02354591032 | AO58: =(1+$C$350)^(1/2)-1 -> 0.04880884817 | AP58: =(1+$C$350)^(1/1.6)-1 -> 0.06137884753 | AQ58: =AQ57/AL57-1 -> 0.1
B59: Greater China - Equipment | D59: 37 | E59: 29 | F59: 27 | G59: 33 | H59: =SUM(D59:G59) -> 126 | I59: 41 | J59: 32 | K59: 28 | L59: 30 | M59: =SUM(I59:L59) -> 131 | N59: 41 | O59: 31 | P59: 28 | Q59: 29 | R59: =SUM(N59:Q59) -> 129 | S59: 38 | T59: 32 | U59: 29 | V59: 31 | W59: =SUM(S59:V59) -> 130 | X59: 41 | Y59: 32 | Z59: 29 | AA59: 36 | AB59: =SUM(X59:AA59) -> 138 | AC59: =AA59*(1+AC60) -> 36.30575503 | AD59: =AC59*(1+AD60) -> 35.69681994 | AE59: =AD59*(1+AE60) -> 36.92507766 | AF59: =AE59*(1+AF60) -> 38.52 | AG59: =SUM(AC59:AF59) -> 147.4476526 | AH59: =AF59*(1+AH60) -> 38.98166313 | AI59: =AH59*(1+AI60) -> 38.06380439 | AJ59: =AI59*(1+AJ60) -> 39.92165483 | AK59: =AJ59*(1+AK60) -> 42.372 | AL59: =SUM(AH59:AK59) -> 159.3391224 | AM59: =AK59*(1+AM60) -> 42.87982944 | AN59: =AM59*(1+AN60) -> 41.87018482 | AO59: =AN59*(1+AO60) -> 43.91382032 | AP59: =AO59*(1+AP60) -> 46.6092 | AQ59: =SUM(AM59:AP59) -> 175.2730346
B60: Equipment growth rate (QoQ) | E60: =E59/D59-1 -> -0.2162162162 | F60: =F59/E59-1 -> -0.06896551724 | G60: =G59/F59-1 -> 0.2222222222 | I60: =I59/G59-1 -> 0.2424242424 | J60: =J59/I59-1 -> -0.2195121951 | K60: =K59/J59-1 -> -0.125 | L60: =L59/K59-1 -> 0.07142857143 | M60: =M59/H59-1 -> 0.03968253968 | N60: =N59/L59-1 -> 0.3666666667 | O60: =O59/N59-1 -> -0.243902439 | P60: =P59/O59-1 -> -0.09677419355 | Q60: =Q59/P59-1 -> 0.03571428571 | R60: =R59/M59-1 -> -0.01526717557 | S60: =S59/Q59-1 -> 0.3103448276 | T60: =T59/S59-1 -> -0.1578947368 | U60: =U59/T59-1 -> -0.09375 | V60: =V59/U59-1 -> 0.06896551724 | W60: =W59/R59-1 -> 0.007751937984 | X60: =X59/V59-1 -> 0.3225806452 | Y60: =Y59/X59-1 -> -0.2195121951 | Z60: =Z59/Y59-1 -> -0.09375 | AA60: =AA59/Z59-1 -> 0.2413793103 | AB60: =AB59/W59-1 -> 0.06153846154 | AC60: =(1+$C$351)^(1/8)-1 -> 0.008493195318 | AD60: =(1+$C$351)^(1/-4)-1 -> -0.01677241239 | AE60: =(1+$C$351)^(1/2)-1 -> 0.03440804328 | AF60: =(1+$C$351)^(1/1.6)-1 -> 0.04319347283 | AG60: =AG59/AB59-1 -> 0.06846125093 | AH60: =(1+$C$350)^(1/8)-1 -> 0.01198502414 | AI60: =(1+$C$350)^(1/-4)-1 -> -0.02354591032 | AJ60: =(1+$C$350)^(1/2)-1 -> 0.04880884817 | AK60: =(1+$C$350)^(1/1.6)-1 -> 0.06137884753 | AL60: =AL59/AG59-1 -> 0.08064875574 | AM60: =(1+$C$350)^(1/8)-1 -> 0.01198502414 | AN60: =(1+$C$350)^(1/-4)-1 -> -0.02354591032 | AO60: =(1+$C$350)^(1/2)-1 -> 0.04880884817 | AP60: =(1+$C$350)^(1/1.6)-1 -> 0.06137884753 | AQ60: =AQ59/AL59-1 -> 0.1
B61: Total Greater China Revenue | D61: =SUM(D55,D57,D59) -> 679 | E61: =SUM(E55,E57,E59) -> 758 | F61: 801 | G61: 829 | H61: =SUM(H55:H59) -> 3067 | I61: =SUM(I55,I57,I59) -> 886 | J61: =SUM(J55,J57,J59) -> 938 | K61: 982 | L61: 979 | M61: =SUM(M55:M59) -> 3785.429727 | N61: =SUM(N55,N57,N59) -> 1020 | O61: =SUM(O55,O57,O59) -> 1055 | P61: 1075 | Q61: 1087 | R61: 4237.249575 | S61: =SUM(S55,S57,S59) -> 1108 | T61: =SUM(T55,T57,T59) -> 1222 | U61: 1336 | V61: 1468 | W61: =SUM(W55:W59) -> 5134.466621 | X61: =SUM(X55,X57,X59) -> 1379 | Y61: =SUM(Y55,Y57,Y59) -> 1544 | Z61: 1588 | AA61: 1697 | AB61: 6208 | AC61: 1732.59724 | AD61: 1662.196507 | AE61: 1806.24947 | AF61: 2005.66 | AG61: 7206.703218 | AH61: 2048.466803 | AI61: 1963.815481 | AJ61: 2137.06035 | AK61: 2377.0748 | AL61: 8526.417434 | AM61: 2428.462181 | AN61: 2326.851494 | AO61: 2534.842258 | AP61: 2823.217816 | AQ61: 10113.37375
B62: Greater China Earnings Before Interest and Tax (EBIT) | D62: 218 | E62: 258 | F62: 251 | G62: 266 | H62: =SUM(D62:G62) -> 993 | I62: 330 | J62: 327 | K62: 358 | L62: 357 | M62: =SUM(I62:L62) -> 1372 | N62: 371 | O62: 375 | P62: 381 | Q62: 380 | R62: =SUM(N62:Q62) -> 1507 | S62: 394 | T62: 378 | U62: 496 | V62: 539 | W62: =SUM(S62:V62) -> 1807 | X62: 502 | Y62: 561 | Z62: 639 | AA62: 674 | AB62: =SUM(X62:AA62) -> 2376 | AC62: =AC61*AC63 -> 519.7791721 | AD62: =AD61*AD63 -> 498.6589522 | AE62: 541.874841 | AF62: 601.698 | AG62: =SUM(AC62:AF62) -> 2162.010965 | AH62: =AH61*AH63 -> 614.5400409 | AI62: =AI61*AI63 -> 589.1446444 | AJ62: =AJ61*AJ63 -> 641.1181049 | AK62: =AK61*AK63 -> 713.12244 | AL62: =SUM(AH62:AK62) -> 2557.92523 | AM62: =AM61*AM63 -> 728.5386542 | AN62: =AN61*AN63 -> 698.0554483 | AO62: =AO61*AO63 -> 760.4526774 | AP62: =AP61*AP63 -> 846.9653448 | AQ62: =SUM(AM62:AP62) -> 3034.012125
B63: Greater China EBIT Margin | D63: =D62/D61 -> 0.3210603829 | E63: =E62/E61 -> 0.3403693931 | F63: 0.3133583021 | G63: 0.3208685163 | H63: 0.3237691555 | I63: =I62/I61 -> 0.3724604966 | J63: 0.3486140725 | K63: 0.3645621181 | L63: 0.3646578141 | M63: 0.3624423378 | N63: 0.3637254902 | O63: 0.355450237 | P63: 0.3544186047 | Q63: 0.3495860166 | R63: 0.3556552365 | S63: =S62/S61 -> 0.3555956679 | T63: 0.3093289689 | U63: 0.371257485 | V63: 0.3671662125 | W63: 0.3519352902 | X63: 0.3640319072 | Y63: 0.3633419689 | Z63: 0.4023929471 | AA63: 0.3971714791 | AB63: 0.3827319588 | AC63: =$C$352 -> 0.3 | AD63: =$C$352 -> 0.3 | AE63: 0.3 | AF63: 0.3 | AG63: =AG62/AG61 -> 0.3 | AH63: =$C$352 -> 0.3 | AI63: =$C$352 -> 0.3 | AJ63: 0.3 | AK63: 0.3 | AL63: =AL62/AL61 -> 0.3 | AM63: =$C$352 -> 0.3 | AN63: =$C$352 -> 0.3 | AO63: 0.3 | AP63: 0.3 | AQ63: =AQ62/AQ61 -> 0.3
B64: Greater China Division
B65: APAC & LATAM - Footwear | N65: 787 | O65: 818 | P65: 777 | Q65: 903 | R65: =SUM(N65:Q65) -> 3285 | S65: 827 | T65: 873 | U65: 884 | V65: 991 | W65: =SUM(S65:V65) -> 3575 | X65: 881 | Y65: 879 | Z65: 909 | AA65: 953 | AB65: =SUM(X65:AA65) -> 3622 | AC65: =AA65*(1+AC66) -> 962.2122244 | AD65: =AC65*(1+AD66) -> 943.8759735 | AE65: =AD65*(1+AE66) -> 980.9046853 | AF65: =AE65*(1+AF66) -> 1029.24 | AG65: =SUM(AC65:AF65) -> 3916.232883 | AH65: =AF65*(1+AH66) -> 1039.189202 | AI65: =AH65*(1+AI66) -> 1019.386051 | AJ65: =AI65*(1+AJ66) -> 1059.37706 | AK65: =AJ65*(1+AK66) -> 1111.5792 | AL65: =SUM(AH65:AK65) -> 4229.531514 | AM65: =AK65*(1+AM66) -> 1122.324339 | AN65: =AM65*(1+AN66) -> 1100.936935 | AO65: =AN65*(1+AO66) -> 1144.127225 | AP65: =AO65*(1+AP66) -> 1200.505536 | AQ65: =SUM(AM65:AP65) -> 4567.894035
B66: Footwear growth rate (QoQ) | O66: =O65/N65-1 -> 0.03939008895 | P66: =P65/O65-1 -> -0.05012224939 | Q66: =Q65/P65-1 -> 0.1621621622 | S66: =S65/Q65-1 -> -0.08416389812 | T66: =T65/S65-1 -> 0.05562273277 | U66: =U65/T65-1 -> 0.0126002291 | V66: =V65/U65-1 -> 0.121040724 | W66: =W65/R65-1 -> 0.08828006088 | X66: =X65/V65-1 -> -0.1109989909 | Y66: =Y65/X65-1 -> -0.00227014756 | Z66: =Z65/Y65-1 -> 0.03412969283 | AA66: =AA65/Z65-1 -> 0.04840484048 | AB66: =AB65/W65-1 -> 0.01314685315 | AC66: =(1+$C$354)^(1/8)-1 -> 0.009666552337 | AD66: =(1+$C$354)^(1/-4)-1 -> -0.01905634787 | AE66: =(1+$C$354)^(1/2)-1 -> 0.03923048454 | AF66: =(1+$C$354)^(1/1.6)-1 -> 0.04927626041 | AG66: =AG65/AB65-1 -> 0.08123492081 | AH66: =(1+$C$354)^(1/8)-1 -> 0.009666552337 | AI66: =(1+$C$354)^(1/-4)-1 -> -0.01905634787 | AJ66: =(1+$C$354)^(1/2)-1 -> 0.03923048454 | AK66: =(1+$C$354)^(1/1.6)-1 -> 0.04927626041 | AL66: =AL65/AG65-1 -> 0.08 | AM66: =(1+$C$354)^(1/8)-1 -> 0.009666552337 | AN66: =(1+$C$354)^(1/-4)-1 -> -0.01905634787 | AO66: =(1+$C$354)^(1/2)-1 -> 0.03923048454 | AP66: =(1+$C$354)^(1/1.6)-1 -> 0.04927626041 | AQ66: =AQ65/AL65-1 -> 0.08
B67: APAC & LATAM - Apparel | N67: 279 | O67: 319 | P67: 278 | Q67: 309 | R67: =SUM(N67:Q67) -> 1185 | S67: 301 | T67: 342 | U67: 321 | V67: 383 | W67: =SUM(S67:V67) -> 1347 | X67: 332 | Y67: 360 | Z67: 340 | AA67: 363 | AB67: =SUM(X67:AA67) -> 1395 | AC67: =AA67*(1+AC68) -> 365.2206183 | AD67: =AC67*(1+AD68) -> 360.7928835 | AE67: =AD67*(1+AE68) -> 369.7026914 | AF67: =AE67*(1+AF68) -> 381.15 | AG67: =SUM(AC67:AF67) -> 1476.866193 | AH67: =AF67*(1+AH68) -> 383.4816493 | AI67: =AH67*(1+AI68) -> 378.8325277 | AJ67: =AI67*(1+AJ68) -> 388.187826 | AK67: =AJ67*(1+AK68) -> 400.2075 | AL67: =SUM(AH67:AK67) -> 1550.709503 | AM67: =AK67*(1+AM68) -> 402.6557317 | AN67: =AM67*(1+AN68) -> 397.774154 | AO67: =AN67*(1+AO68) -> 407.5972173 | AP67: =AO67*(1+AP68) -> 420.217875 | AQ67: =SUM(AM67:AP67) -> 1628.244978
B68: Apparel growth rate (QoQ) | O68: =O67/N67-1 -> 0.1433691756 | P68: =P67/O67-1 -> -0.1285266458 | Q68: =Q67/P67-1 -> 0.1115107914 | S68: =S67/Q67-1 -> -0.02588996764 | T68: =T67/S67-1 -> 0.1362126246 | U68: =U67/T67-1 -> -0.06140350877 | V68: =V67/U67-1 -> 0.1931464174 | W68: =W67/R67-1 -> 0.1367088608 | X68: =X67/V67-1 -> -0.1331592689 | Y68: =Y67/X67-1 -> 0.0843373494 | Z68: =Z67/Y67-1 -> -0.05555555556 | AA68: =AA67/Z67-1 -> 0.06764705882 | AB68: =AB67/W67-1 -> 0.03563474388 | AC68: =(1+$C$355)^(1/8)-1 -> 0.006117405887 | AD68: =(1+$C$355)^(1/-4)-1 -> -0.01212345258 | AE68: =(1+$C$355)^(1/2)-1 -> 0.0246950766 | AF68: =(1+$C$355)^(1/1.6)-1 -> 0.03096355229 | AG68: =AG67/AB67-1 -> 0.05868544316 | AH68: =(1+$C$355)^(1/8)-1 -> 0.006117405887 | AI68: =(1+$C$355)^(1/-4)-1 -> -0.01212345258 | AJ68: =(1+$C$355)^(1/2)-1 -> 0.0246950766 | AK68: =(1+$C$355)^(1/1.6)-1 -> 0.03096355229 | AL68: =AL67/AG67-1 -> 0.05 | AM68: =(1+$C$355)^(1/8)-1 -> 0.006117405887 | AN68: =(1+$C$355)^(1/-4)-1 -> -0.01212345258 | AO68: =(1+$C$355)^(1/2)-1 -> 0.0246950766 | AP68: =(1+$C$355)^(1/1.6)-1 -> 0.03096355229 | AQ68: =AQ67/AL67-1 -> 0.05
B69: APAC & LATAM - Equipment | N69: 65 | O69: 69 | P69: 67 | Q69: 66 | R69: =SUM(N69:Q69) -> 267 | S69: 61 | T69: 58 | U69: 63 | V69: 62 | W69: =SUM(S69:V69) -> 244 | X69: 57 | Y69: 59 | Z69: 58 | AA69: 63 | AB69: =SUM(X69:AA69) -> 237 | AC69: =AA69*(1+AC70) -> 63.07840761 | AD69: =AC69*(1+AD70) -> 62.92168986 | AE69: =AD69*(1+AE70) -> 63.23551569 | AF69: =AE69*(1+AF70) -> 63.63 | AG69: =SUM(AC69:AF69) -> 252.8656132 | AH69: =AF69*(1+AH70) -> 63.70919168 | AI69: =AH69*(1+AI70) -> 63.55090675 | AJ69: =AI69*(1+AJ70) -> 63.86787085 | AK69: =AJ69*(1+AK70) -> 64.2663 | AL69: =SUM(AH69:AK69) -> 255.3942693 | AM69: =AK69*(1+AM70) -> 64.3462836 | AN69: =AM69*(1+AN70) -> 64.18641582 | AO69: =AN69*(1+AO70) -> 64.50654956 | AP69: =AO69*(1+AP70) -> 64.908963 | AQ69: =SUM(AM69:AP69) -> 257.948212
B70: Equipment growth rate (QoQ) | O70: =O69/N69-1 -> 0.06153846154 | P70: =P69/O69-1 -> -0.02898550725 | Q70: =Q69/P69-1 -> -0.01492537313 | S70: =S69/Q69-1 -> -0.07575757576 | T70: =T69/S69-1 -> -0.04918032787 | U70: =U69/T69-1 -> 0.08620689655 | V70: =V69/U69-1 -> -0.01587301587 | W70: =W69/R69-1 -> -0.0861423221 | X70: =X69/V69-1 -> -0.08064516129 | Y70: =Y69/X69-1 -> 0.0350877193 | Z70: =Z69/Y69-1 -> -0.01694915254 | AA70: =AA69/Z69-1 -> 0.08620689655 | AB70: =AB69/W69-1 -> -0.02868852459 | AC70: =(1+$C$356)^(1/8)-1 -> 0.001244565186 | AD70: =(1+$C$356)^(1/-4)-1 -> -0.002484491243 | AE70: =(1+$C$356)^(1/2)-1 -> 0.004987562112 | AF70: =(1+$C$356)^(1/1.6)-1 -> 0.006238334644 | AG70: =AG69/AB69-1 -> 0.06694351542 | AH70: =(1+$C$356)^(1/8)-1 -> 0.001244565186 | AI70: =(1+$C$356)^(1/-4)-1 -> -0.002484491243 | AJ70: =(1+$C$356)^(1/2)-1 -> 0.004987562112 | AK70: =(1+$C$356)^(1/1.6)-1 -> 0.006238334644 | AL70: =AL69/AG69-1 -> 0.01 | AM70: =(1+$C$356)^(1/8)-1 -> 0.001244565186 | AN70: =(1+$C$356)^(1/-4)-1 -> -0.002484491243 | AO70: =(1+$C$356)^(1/2)-1 -> 0.004987562112 | AP70: =(1+$C$356)^(1/1.6)-1 -> 0.006238334644 | AQ70: =AQ69/AL69-1 -> 0.01
B71: Total APAC & LATAM Revenue | N71: =SUM(N65,N67,N69) -> 1131 | O71: =SUM(O65,O67,O69) -> 1206 | P71: 1122 | Q71: 1278 | R71: =SUM(R65:R69) -> 4737 | S71: =SUM(S65,S67,S69) -> 1189 | T71: =SUM(T65,T67,T69) -> 1273 | U71: 1268 | V71: 1436 | W71: =SUM(W65:W69) -> 5166.224989 | X71: =SUM(X65,X67,X69) -> 1270 | Y71: =SUM(Y65,Y67,Y69) -> 1298 | Z71: 1307 | AA71: 1379 | AB71: 5254 | AC71: =SUM(AC65,AC67,AC69) -> 1390.51125 | AD71: 1367.590547 | AE71: 1413.842892 | AF71: 1474.02 | AG71: 5645.96469 | AH71: 1486.380043 | AI71: 1461.769486 | AJ71: 1511.432757 | AK71: 1576.053 | AL71: 6035.635286 | AM71: 1589.326354 | AN71: 1562.897505 | AO71: 1616.230992 | AP71: 1685.632374 | AQ71: 6454.087225
B72: APAC & LATAM Earnings Before Interest and Tax (EBIT) | N72: 209 | O72: 266 | P72: 228 | Q72: 277 | R72: =SUM(N72:Q72) -> 980 | S72: 260 | T72: 291 | U72: 298 | V72: 340 | W72: =SUM(S72:V72) -> 1189 | X72: 323 | Y72: 321 | Z72: 339 | AA72: 340 | AB72: =SUM(X72:AA72) -> 1323 | AC72: =AC71*AC73 -> 417.1533751 | AD72: =AD71*AD73 -> 410.2771641 | AE72: =AE71*AE73 -> 424.1528677 | AF72: =AF71*AF73 -> 442.206 | AG72: =SUM(AC72:AF72) -> 1693.789407 | AH72: =AH71*AH73 -> 445.914013 | AI72: =AI71*AI73 -> 438.5308457 | AJ72: =AJ71*AJ73 -> 453.4298271 | AK72: =AK71*AK73 -> 472.8159 | AL72: =SUM(AH72:AK72) -> 1810.690586 | AM72: =AM71*AM73 -> 476.7979061 | AN72: =AN71*AN73 -> 468.8692516 | AO72: =AO71*AO73 -> 484.8692975 | AP72: =AP71*AP73 -> 505.6897122 | AQ72: =SUM(AM72:AP72) -> 1936.226167
B73: APAC & LATAM EBIT Margin | N73: =N72/N71 -> 0.1847922193 | O73: 0.2205638474 | P73: 0.2032085561 | Q73: 0.2167449139 | R73: 0.2068819928 | S73: 0.2186711522 | T73: 0.2285938727 | U73: 0.2350157729 | V73: 0.2367688022 | W73: 0.2301487068 | X73: 0.2543307087 | Y73: 0.2473035439 | Z73: 0.259372609 | AA73: 0.246555475 | AB73: 0.2518081462 | AC73: =$C$357 -> 0.3 | AD73: =$C$357 -> 0.3 | AE73: 0.3 | AF73: 0.3 | AG73: =AG72/AG71 -> 0.3 | AH73: =$C$357 -> 0.3 | AI73: =$C$357 -> 0.3 | AJ73: 0.3 | AK73: 0.3 | AL73: =AL72/AL71 -> 0.3 | AM73: =$C$357 -> 0.3 | AN73: =$C$357 -> 0.3 | AO73: 0.3 | AP73: 0.3 | AQ73: =AQ72/AQ71 -> 0.3
B74: APAC & LATAM Division
B75: Global Brand Divisions Revenue | D75: 29 | E75: 28 | F75: 28 | G75: 30 | H75: =SUM(D75:G75) -> 115 | I75: 26 | J75: 18 | K75: 17 | L75: 12 | M75: =SUM(I75:L75) -> 73 | N75: 15 | O75: 21 | P75: 19 | Q75: 18 | R75: =SUM(N75:Q75) -> 73 | S75: 20 | T75: 23 | U75: 21 | V75: 24 | W75: =SUM(S75:V75) -> 88 | X75: 16 | Y75: 9 | Z75: 8 | AA75: 9 | AB75: =SUM(X75:AA75) -> 42 | AC75: =X75 -> 16 | AD75: =Y75 -> 9 | AE75: 8 | AF75: 9 | AG75: =SUM(AC75:AF75) -> 42 | AH75: =AC75 -> 16 | AI75: =AD75 -> 9 | AJ75: =AE75 -> 8 | AK75: =AF75 -> 9 | AL75: =SUM(AH75:AK75) -> 42 | AM75: =AH75 -> 16 | AN75: =AI75 -> 9 | AO75: =AJ75 -> 8 | AP75: =AK75 -> 9 | AQ75: =SUM(AM75:AP75) -> 42
B76: Global Brands growth rate (QoQ) | E76: =E75/D75-1 -> -0.03448275862 | F76: =F75/E75-1 -> 0 | G76: =G75/F75-1 -> 0.07142857143 | I76: =I75/G75-1 -> -0.1333333333 | J76: =J75/I75-1 -> -0.3076923077 | K76: =K75/J75-1 -> -0.05555555556 | L76: =L75/K75-1 -> -0.2941176471 | N76: =N75/L75-1 -> 0.25 | O76: =O75/N75-1 -> 0.4 | P76: =P75/O75-1 -> -0.09523809524 | Q76: =Q75/P75-1 -> -0.05263157895 | R76: =R75/M75-1 -> 0 | S76: =S75/Q75-1 -> 0.1111111111 | T76: =T75/S75-1 -> 0.15 | U76: =U75/T75-1 -> -0.08695652174 | V76: =V75/U75-1 -> 0.1428571429 | W76: =W75/R75-1 -> 0.2054794521 | X76: =X75/V75-1 -> -0.3333333333 | Y76: =Y75/X75-1 -> -0.4375 | Z76: =Z75/Y75-1 -> -0.1111111111 | AA76: =AA75/Z75-1 -> 0.125 | AB76: =AB75/W75-1 -> -0.5227272727 | AC76: =AC75/AA75-1 -> 0.7777777778 | AD76: =AD75/AC75-1 -> -0.4375 | AE76: =AE75/AD75-1 -> -0.1111111111 | AF76: =AF75/AE75-1 -> 0.125 | AG76: =AG75/AB75-1 -> 0 | AH76: =AH75/AF75-1 -> 0.7777777778 | AI76: =AI75/AH75-1 -> -0.4375 | AJ76: =AJ75/AI75-1 -> -0.1111111111 | AK76: =AK75/AJ75-1 -> 0.125 | AL76: =AL75/AG75-1 -> 0 | AM76: =AM75/AK75-1 -> 0.7777777778 | AN76: =AN75/AM75-1 -> -0.4375 | AO76: =AO75/AN75-1 -> -0.1111111111 | AP76: =AP75/AO75-1 -> 0.125 | AQ76: =AQ75/AL75-1 -> 0
B77: Global Brands Earnings Before Interest and Tax (EBIT) | D77: -533 | E77: -552 | F77: -552 | G77: -626 | I77: -624 | J77: -625 | K77: -625 | L77: -722 | M77: =SUM(I77:L77) -> -2596 | N77: -771 | O77: -619 | P77: -598 | Q77: -689 | R77: =SUM(N77:Q77) -> -2677 | S77: -675 | T77: -602 | U77: -649 | V77: -732 | W77: =SUM(S77:V77) -> -2658 | X77: -818 | Y77: -826 | Z77: -788 | AA77: -830 | AB77: =SUM(X77:AA77) -> -3262 | AC77: =X77 -> -818 | AD77: =Y77 -> -826 | AE77: -788 | AF77: -830 | AG77: =SUM(AC77:AF77) -> -3262 | AH77: =AC77 -> -818 | AI77: =AD77 -> -826 | AJ77: =AE77 -> -788 | AK77: =AF77 -> -830 | AL77: =SUM(AH77:AK77) -> -3262 | AM77: =AH77 -> -818 | AN77: =AI77 -> -826 | AO77: =AJ77 -> -788 | AP77: =AK77 -> -830 | AQ77: =SUM(AM77:AP77) -> -3262
B78: Global Brands EBIT Margin | D78: =D77/D75 -> -18.37931034 | E78: =E77/E75 -> -19.71428571 | F78: -19.71428571 | G78: -20.86666667 | H78: 0 | I78: =I77/I75 -> -24 | J78: =J77/J75 -> -34.72222222 | K78: =K77/K75 -> -36.76470588 | L78: =L77/L75 -> -60.16666667 | M78: =M77/M75 -> -35.56164384 | N78: =N77/N75 -> -51.4 | O78: =O77/O75 -> -29.47619048 | P78: =P77/P75 -> -31.47368421 | Q78: =Q77/Q75 -> -38.27777778 | R78: =R77/R75 -> -36.67123288 | S78: =S77/S75 -> -33.75 | T78: =T77/T75 -> -26.17391304 | U78: =U77/U75 -> -30.9047619 | V78: =V77/V75 -> -30.5 | W78: =W77/W75 -> -30.20454545 | X78: =X77/X75 -> -51.125 | Y78: =Y77/Y75 -> -91.77777778 | Z78: =Z77/Z75 -> -98.5 | AA78: =AA77/AA75 -> -92.22222222 | AB78: =AB77/AB75 -> -77.66666667
B79: Global Brands Division
B80: Converse Divisions Revenue | D80: 575 | E80: 434 | F80: 538 | G80: 435 | H80: =SUM(D80:G80) -> 1982 | I80: 555 | J80: 398 | K80: 489 | L80: 513 | M80: =SUM(I80:L80) -> 1955 | N80: 574 | O80: 416 | P80: 498 | Q80: 554 | R80: =SUM(N80:Q80) -> 2042 | S80: 483 | T80: 408 | U80: 483 | V80: 512 | W80: =SUM(S80:V80) -> 1886 | X80: 527 | Y80: 425 | Z80: 463 | AA80: 491 | AB80: =SUM(X80:AA80) -> 1906 | AC80: =AA80*(1+AC81) -> 492.2168917 | AD80: =AC80*(1+AD81) -> 489.7861167 | AE80: =AD80*(1+AE81) -> 494.6597305 | AF80: =AE80*(1+AF81) -> 500.82 | AG80: =SUM(AC80:AF80) -> 1977.482739 | AH80: =AF80*(1+AH81) -> 502.0612296 | AI80: =AH80*(1+AI81) -> 499.5818391 | AJ80: =AI80*(1+AJ81) -> 504.5529251 | AK80: =AJ80*(1+AK81) -> 510.8364 | AL80: =SUM(AH80:AK80) -> 2017.032394 | AM80: =AK80*(1+AM81) -> 512.1024542 | AN80: =AM80*(1+AN81) -> 509.5734759 | AO80: =AN80*(1+AO81) -> 514.6439836 | AP80: =AO80*(1+AP81) -> 521.053128 | AQ80: =SUM(AM80:AP80) -> 2057.373042
B81: Converse growth rate (QoQ) | E81: =E80/D80-1 -> -0.2452173913 | F81: =F80/E80-1 -> 0.2396313364 | G81: =G80/F80-1 -> -0.1914498141 | I81: =I80/G80-1 -> 0.275862069 | J81: =J80/I80-1 -> -0.2828828829 | K81: =K80/J80-1 -> 0.2286432161 | L81: =L80/K80-1 -> 0.0490797546 | M81: =M80/H80-1 -> -0.01362260343 | N81: =N80/L80-1 -> 0.1189083821 | O81: =O80/N80-1 -> -0.275261324 | P81: =P80/O80-1 -> 0.1971153846 | Q81: =Q80/P80-1 -> 0.1124497992 | R81: =R80/M80-1 -> 0.04450127877 | S81: =S80/Q80-1 -> -0.1281588448 | T81: =T80/S80-1 -> -0.1552795031 | U81: =U80/T80-1 -> 0.1838235294 | V81: =V80/U80-1 -> 0.06004140787 | W81: =W80/R80-1 -> -0.0763956905 | X81: =X80/V80-1 -> 0.029296875 | Y81: =Y80/X80-1 -> -0.1935483871 | Z81: =Z80/Y80-1 -> 0.08941176471 | AA81: =AA80/Z80-1 -> 0.06047516199 | AB81: =AB80/W80-1 -> 0.01060445387 | AC81: =(1+$C$359)^(1/8)-1 -> 0.002478394567 | AD81: =(1+$C$359)^(1/-4)-1 -> -0.00493842252 | AE81: =(1+$C$359)^(1/2)-1 -> 0.009950493836 | AF81: =(1+$C$359)^(1/1.6)-1 -> 0.01245354965 | AG81: =AG80/AB80-1 -> 0.03750406032 | AH81: =(1+$C$359)^(1/8)-1 -> 0.002478394567 | AI81: =(1+$C$359)^(1/-4)-1 -> -0.00493842252 | AJ81: =(1+$C$359)^(1/2)-1 -> 0.009950493836 | AK81: =(1+$C$359)^(1/1.6)-1 -> 0.01245354965 | AL81: =AL80/AG80-1 -> 0.02 | AM81: =(1+$C$359)^(1/8)-1 -> 0.002478394567 | AN81: =(1+$C$359)^(1/-4)-1 -> -0.00493842252 | AO81: =(1+$C$359)^(1/2)-1 -> 0.009950493836 | AP81: =(1+$C$359)^(1/1.6)-1 -> 0.01245354965 | AQ81: =AQ80/AL80-1 -> 0.02
B82: Converse Earnings Before Interest and Tax (EBIT) | D82: 186 | E82: 88 | F82: 163 | G82: 80 | I82: 147 | J82: 85 | K82: 127 | L82: 128 | M82: =SUM(I82:L82) -> 487 | N82: 153 | O82: 78 | P82: 109 | Q82: 137 | R82: =SUM(N82:Q82) -> 477 | S82: 89 | T82: 48 | U82: 69 | V82: 104 | W82: =SUM(S82:V82) -> 310 | X82: 98 | Y82: 44 | Z82: 79 | AA82: 82 | AB82: =SUM(X82:AA82) -> 303 | AC82: =AC80*AC83 -> 147.6650675 | AD82: =AD80*AD83 -> 146.935835 | AE82: 148.3979191 | AF82: 150.246 | AG82: =SUM(AC82:AF82) -> 593.2448217 | AH82: =AH80*AH83 -> 150.6183689 | AI82: =AI80*AI83 -> 149.8745517 | AJ82: =AJ80*AJ83 -> 151.3658775 | AK82: =AK80*AK83 -> 153.25092 | AL82: =SUM(AH82:AK82) -> 605.1097181 | AM82: =AM80*AM83 -> 153.6307362 | AN82: =AN80*AN83 -> 152.8720428 | AO82: =AO80*AO83 -> 154.3931951 | AP82: =AP80*AP83 -> 156.3159384 | AQ82: =SUM(AM82:AP82) -> 617.2119125
B83: Converse EBIT Margin | D83: =D82/D80 -> 0.3234782609 | E83: =E82/E80 -> 0.202764977 | F83: =F82/F80 -> 0.3029739777 | G83: =G82/G80 -> 0.183908046 | H83: =H82/H80 -> 0 | I83: 0.2648648649 | J83: =J82/J80 -> 0.2135678392 | K83: =K82/K80 -> 0.2597137014 | L83: =L82/L80 -> 0.2495126706 | M83: =M82/M80 -> 0.2491048593 | N83: 0.2665505226 | O83: =O82/O80 -> 0.1875 | P83: =P82/P80 -> 0.218875502 | Q83: =Q82/Q80 -> 0.2472924188 | R83: =R82/R80 -> 0.2335945152 | S83: 0.1842650104 | T83: =T82/T80 -> 0.1176470588 | U83: =U82/U80 -> 0.1428571429 | V83: =V82/V80 -> 0.203125 | W83: =W82/W80 -> 0.164369035 | X83: 0.1859582543 | Y83: =Y82/Y80 -> 0.1035294118 | Z83: =Z82/Z80 -> 0.1706263499 | AA83: =AA82/AA80 -> 0.16700611 | AB83: =AB82/AB80 -> 0.1589716684 | AC83: =$C$360 -> 0.3 | AD83: =$C$360 -> 0.3 | AE83: 0.3 | AF83: 0.3 | AG83: =AG82/AG80 -> 0.3 | AH83: =$C$360 -> 0.3 | AI83: =$C$360 -> 0.3 | AJ83: 0.3 | AK83: 0.3 | AL83: =AL82/AL80 -> 0.3 | AM83: =$C$360 -> 0.3 | AN83: =$C$360 -> 0.3 | AO83: 0.3 | AP83: 0.3 | AQ83: =AQ82/AQ80 -> 0.3
B84: Converse Division
B85: Corporate Division Revenue | D85: -14 | E85: -13.6 | F85: -16.5 | G85: -39.5 | H85: =SUM(D85:G85) -> -83.6 | I85: -39 | J85: -29 | K85: -24 | L85: 6 | M85: =SUM(I85:L85) -> -86 | N85: 28 | O85: 40 | P85: 11 | Q85: -4 | R85: =SUM(N85:Q85) -> 75 | S85: 2 | T85: 10 | U85: 6 | V85: 8 | W85: =SUM(S85:V85) -> 26 | X85: 4 | Y85: 3 | Z85: 0.01 | AA85: -14 | AB85: -7 | AC85: =X85 -> 4 | AD85: =Y85 -> 3 | AE85: 0.01 | AF85: -14 | AG85: =SUM(AC85:AF85) -> -6.99 | AH85: =AC85 -> 4 | AI85: =AD85 -> 3 | AJ85: =AE85 -> 0.01 | AK85: =AF85 -> -14 | AL85: =SUM(AH85:AK85) -> -6.99 | AM85: =AH85 -> 4 | AN85: =AI85 -> 3 | AO85: =AJ85 -> 0.01 | AP85: =AK85 -> -14 | AQ85: =SUM(AM85:AP85) -> -6.99
B86: Corporate Division growth rate (QoQ) | E86: =E85/D85-1 -> -0.02857142857 | F86: =F85/E85-1 -> 0.2132352941 | G86: =G85/F85-1 -> 1.393939394 | I86: =I85/G85-1 -> -0.01265822785 | J86: =J85/I85-1 -> -0.2564102564 | K86: =K85/J85-1 -> -0.1724137931 | L86: =L85/K85-1 -> -1.25 | M86: =M85/H85-1 -> 0.02870813397 | N86: =N85/L85-1 -> 3.666666667 | O86: =O85/N85-1 -> 0.4285714286 | P86: =P85/O85-1 -> -0.725 | Q86: =Q85/P85-1 -> -1.363636364 | R86: =R85/M85-1 -> -1.872093023 | S86: =S85/Q85-1 -> -1.5 | T86: =T85/S85-1 -> 4 | U86: =U85/T85-1 -> -0.4 | V86: =V85/U85-1 -> 0.3333333333 | W86: =W85/R85-1 -> -0.6533333333 | X86: =X85/V85-1 -> -0.5 | Y86: =Y85/X85-1 -> -0.25 | Z86: =Z85/Y85-1 -> -0.9966666667 | AA86: =AA85/Z85-1 -> -1401 | AB86: =AB85/W85-1 -> -1.269230769 | AC86: =AC85/AA85-1 -> -1.285714286 | AD86: =AD85/AC85-1 -> -0.25 | AE86: =AE85/AD85-1 -> -0.9966666667 | AF86: =AF85/AE85-1 -> -1401 | AG86: =AG85/AB85-1 -> -0.001428571429 | AH86: =AH85/AF85-1 -> -1.285714286 | AI86: =AI85/AH85-1 -> -0.25 | AJ86: =AJ85/AI85-1 -> -0.9966666667 | AK86: =AK85/AJ85-1 -> -1401 | AL86: =AL85/AG85-1 -> 0 | AM86: =AM85/AK85-1 -> -1.285714286 | AN86: =AN85/AM85-1 -> -0.25 | AO86: =AO85/AN85-1 -> -0.9966666667 | AP86: =AP85/AO85-1 -> -1401 | AQ86: =AQ85/AL85-1 -> 0
B87: Corporate Division Earnings Before Interest and Tax (EBIT) | D87: -242 | E87: -275 | F87: -282 | G87: -302 | I87: -323 | J87: -365 | K87: -264 | L87: -221 | M87: =SUM(I87:L87) -> -1173 | N87: -163 | O87: -196 | P87: -119 | Q87: -246 | R87: =SUM(N87:Q87) -> -724 | S87: -433 | T87: -343 | U87: -299 | V87: -381 | W87: =SUM(S87:V87) -> -1456 | X87: -402 | Y87: -423 | Z87: -420 | AA87: -565 | AB87: =SUM(X87:AA87) -> -1810 | AC87: =X87 -> -402 | AD87: -423 | AE87: -420 | AF87: -565 | AG87: =SUM(AC87:AF87) -> -1810 | AH87: =AC87 -> -402 | AI87: =AD87 -> -423 | AJ87: =AE87 -> -420 | AK87: =AF87 -> -565 | AL87: =SUM(AH87:AK87) -> -1810 | AM87: =AH87 -> -402 | AN87: =AI87 -> -423 | AO87: =AJ87 -> -420 | AP87: =AK87 -> -565 | AQ87: =SUM(AM87:AP87) -> -1810
B88: Corporate Division EBIT Margin | D88: =D87/D85 -> 17.28571429 | E88: =E87/E85 -> 20.22058824 | F88: =F87/F85 -> 17.09090909 | G88: =G87/G85 -> 7.64556962 | H88: =H87/H85 -> 0 | I88: =I87/I85 -> 8.282051282 | J88: =J87/J85 -> 12.5862069 | K88: =K87/K85 -> 11 | L88: -36.83333333 | M88: =M87/M85 -> 13.63953488 | N88: =N87/N85 -> -5.821428571 | O88: =O87/O85 -> -4.9 | P88: =P87/P85 -> -10.81818182 | Q88: 61.5 | R88: -9.653333333 | S88: =S87/S85 -> -216.5 | T88: =T87/T85 -> -34.3 | U88: =U87/U85 -> -49.83333333 | V88: -47.625 | W88: -56 | X88: =X87/X85 -> -100.5 | Y88: =Y87/Y85 -> -141 | Z88: =Z87/Z85 -> -42000 | AA88: =AA87/AA85 -> 40.35714286 | AB88: 258.5714286
B89: Corporate Division
B91: Ratios
B92: Gross margin (GAAP) | D92: =D16/D14 -> 0.4661738913 | E92: 0.4508130081 | F92: 0.4592493298 | G92: 0.461884561 | H92: 0.4596908598 | I92: 0.4748038983 | J92: 0.4555035129 | K92: 0.4592878486 | L92: 0.4592430859 | M92: 0.4624104275 | N92: 0.455027039 | O92: 0.4420537897 | P92: 0.4447343454 | Q92: 0.4405900657 | R92: 0.4457641921 | S92: 0.4368246968 | T92: 0.429974281 | U92: 0.4383348175 | V92: 0.4472366942 | W92: 0.4383877792 | X92: 0.4419983916 | Y92: 0.4379133774 | Z92: 0.4514618666 | AA92: 0.4549293009 | AB92: 0.4467111486 | AC92: =$C$333 -> 0.42 | AD92: =$C$333 -> 0.42 | AE92: =$C$333 -> 0.42 | AF92: =$C$333 -> 0.42 | AG92: =AG16/AG14 -> 0.42 | AH92: =$C$333 -> 0.42 | AI92: =$C$333 -> 0.42 | AJ92: =$C$333 -> 0.42 | AK92: =$C$333 -> 0.42 | AL92: =AL16/AL14 -> 0.42 | AM92: =$C$333 -> 0.42 | AN92: =$C$333 -> 0.42 | AO92: =$C$333 -> 0.42 | AP92: =$C$333 -> 0.42 | AQ92: =AQ16/AQ14 -> 0.42
B93: Demand creation expense to revenue | D93: =D17/D14 -> 0.1123778502 | E93: 0.1037940379 | F93: 0.09798927614 | G93: 0.1052834555 | H93: 0.1049965687 | I93: 0.09888281436 | J93: 0.1000520427 | K93: 0.1000996016 | L93: 0.1058951965 | M93: 0.1012478379 | N93: 0.1148879815 | O93: 0.09315403423 | P93: 0.08882827324 | Q93: 0.09093004495 | R93: 0.09726346434 | S93: 0.09426681367 | T93: 0.1025251344 | U93: 0.09594835263 | V93: 0.1004188375 | W93: 0.09827733055 | X93: 0.09690390028 | Y93: 0.09707702155 | Z93: 0.09000104047 | AA93: 0.09956794973 | AB93: 0.09594294041 | AC93: =X93 -> 0.09690390028 | AD93: =Y93 -> 0.09707702155 | AE93: =Z93 -> 0.09000104047 | AF93: =AA93 -> 0.09956794973 | AG93: 0.0723826637 | AH93: 0.06902281207 | AI93: 0.07043425409 | AJ93: 0.06799650403 | AK93: 0.07106530879 | AL93: 0.06964296805 | AM93: 0.0664735539 | AN93: 0.06779626387 | AO93: 0.06550324646 | AP93: 0.06827153135 | AQ93: 0.06702251119
B94: Operating overhead expense to revenue | D94: =D18/D14 -> 0.1983212228 | E94: 0.2265582656 | F94: 0.2209115282 | G94: 0.2283069803 | H94: 0.2182608411 | I94: 0.2073924412 | J94: 0.2330210773 | K94: 0.21937251 | L94: 0.2296215429 | M94: 0.2221089696 | N94: 0.2048339035 | O94: 0.2130806846 | P94: 0.207186907 | Q94: 0.2162037571 | R94: 0.2102474527 | S94: 0.2206174201 | T94: 0.2210661679 | U94: 0.2120436331 | V94: 0.2183062621 | W94: 0.2179849988 | X94: 0.2109971854 | Y94: 0.2381053979 | Z94: 0.231609614 | AA94: 0.2348782404 | AB94: 0.2287752128 | AC94: =X94 -> 0.2109971854 | AD94: 0.2381053979 | AE94: 0.231609614 | AF94: 0.2348782404 | AG94: 0.168892882 | AH94: 0.1610532282 | AI94: 0.1643465929 | AJ94: 0.1586585094 | AK94: 0.1658190538 | AL94: 0.1625002588 | AM94: 0.1551049591 | AN94: 0.1581912824 | AO94: 0.1528409084 | AP94: 0.1593002398 | AQ94: 0.1563858594
B95: Interest expense/(income) to average debt | D95: =D21/(SUM(D121,D127)) -> 0.007493755204 | E95: =E21/(AVERAGE((D121+D127),(E121+E127))) -> 0.00751565762 | F95: =F21/(AVERAGE((E121+E127),(F121+F127))) -> 0.005033557047 | G95: =G21/(AVERAGE((F121+F127),(G121+G127))) -> 0.003367003367 | I95: =I21/(SUM(I121,I127)) -> 0.003375527426 | J95: =J21/(AVERAGE((I121+I127),(J121+J127))) -> 0.003070310101 | K95: =K21/(AVERAGE((J121+J127),(K121+K127))) -> 0.002423067604 | L95: =L21/(AVERAGE((K121+K127),(L121+L127))) -> 0.002443792766 | N95: =N21/(SUM(N121,N127)) -> 0.003436426117 | O95: =O21/(AVERAGE((N121+N127),(O121+O127))) -> 0.005401512423 | P95: =P21/(AVERAGE((O121+O127),(P121+P127))) -> 0.005432451751 | Q95: =Q21/(AVERAGE((P121+P127),(Q121+Q127))) -> 0.005176132279 | S95: =S21/(SUM(S121,S127)) -> 0.004599022708 | T95: =T21/(AVERAGE((S121+S127),(T121+T127))) -> 0.003735095532 | U95: =U21/(AVERAGE((T121+T127),(U121+U127))) -> 0.003737243065 | V95: =V21/(AVERAGE((U121+U127),(V121+V127))) -> 0.00345373435 | X95: =X21/(SUM(X121,X127)) -> 0.003167290527 | Y95: =Y21/(AVERAGE((X121+X127),(Y121+Y127))) -> 0.004031677466 | Z95: =Z21/(AVERAGE((Y121+Y127),(Z121+Z127))) -> 0.003456718998 | AA95: =AA21/(AVERAGE((Z121+Z127),(AA121+AA127))) -> 0.003457715027 | AC95: =X95 -> 0.003167290527 | AD95: 0.004031677466 | AE95: 0.003456718998 | AF95: 0.003457715027 | AH95: =AC95 -> 0.003167290527 | AI95: =AD95 -> 0.004031677466 | AJ95: =AE95 -> 0.003456718998 | AK95: =AF95 -> 0.003457715027 | AM95: =AH95 -> 0.003167290527 | AN95: =AI95 -> 0.004031677466 | AO95: =AJ95 -> 0.003456718998 | AP95: =AK95 -> 0.003457715027
B96: Other (income)/expense to revenue | D96: =D22/D14 -> 0.0003758456527 | E96: =E22/E14 -> 0.00027100271 | F96: =F22/F14 -> -0.0006702412869 | G96: =G22/G14 -> -0.007455971205 | I96: =I22/I14 -> -0.003684335631 | J96: =J22/J14 -> -0.004423627374 | K96: =K22/K14 -> -0.002116533865 | L96: =L22/L14 -> -0.007035419699 | N96: =N22/N14 -> -0.006842511864 | O96: =O22/O14 -> -0.002200488998 | P96: =P22/P14 -> -0.01043643264 | Q96: =Q22/Q14 -> -0.003226921747 | S96: =S22/S14 -> 0.001984564498 | T96: =T22/T14 -> 0.0021042787 | U96: =U22/U14 -> -0.0001113089938 | V96: =V22/V14 -> 0.0031668199 | X96: =X22/X14 -> 0.005327704061 | Y96: =Y22/Y14 -> -0.005120546192 | Z96: =Z22/Z14 -> -0.00572260951 | AA96: =AA22/AA14 -> -0.002749410841 | AC96: 0 | AD96: 0 | AE96: 0 | AF96: 0 | AH96: 0 | AI96: 0 | AJ96: 0 | AK96: 0 | AM96: 0 | AN96: 0 | AO96: 0 | AP96: 0
B97: Effective tax rate | D97: =D24/D23 -> 0.2172497966 | E97: 0.2539863326 | F97: 0.2437858509 | G97: 0.177756654 | H97: 0.2216409037 | I97: 0.184083045 | J97: 0.1907216495 | K97: 0.1629955947 | L97: 0.211556384 | M97: 0.1866753191 | N97: 0.024980484 | O97: 0.2441651706 | P97: 0.1375661376 | Q97: 0.1369863014 | R97: 0.1322144904 | S97: 0.1138059701 | T97: 0.1274175199 | U97: 1.794650561 | V97: 0.06419753086 | W97: 0.5530635838 | X97: 0.1401574803 | Y97: 0.1504513541 | Z97: 0.1471727343 | AA97: 0.2043443282 | AB97: 0.1607998334 | AC97: =$C$336 -> 0.18 | AD97: =$C$336 -> 0.18 | AE97: 0.18 | AF97: 0.18 | AG97: =AG24/AG23 -> 0.18 | AH97: =$C$336 -> 0.18 | AI97: =$C$336 -> 0.18 | AJ97: 0.18 | AK97: 0.18 | AL97: =AL24/AL23 -> 0.18 | AM97: =$C$336 -> 0.18 | AN97: =$C$336 -> 0.18 | AO97: 0.18 | AP97: 0.18 | AQ97: =AQ24/AQ23 -> 0.18
B98: Change in basic shares (excluding repurchases) | E98: =(E26+E102)/D26-1 -> 0.00343154072 | F98: =(F26+F102)/E26-1 -> 0.005492468204 | G98: =(G26+G102)/F26-1 -> 0.003331973937 | I98: =(I26+I102)/G26-1 -> 0.002749248721 | J98: =(J26+J102)/I26-1 -> 0.004743896508 | K98: =(K26+K102)/J26-1 -> 0.9988904074 | L98: =(L26+L102)/K26-1 -> -0.001374165932 | O98: =(O26+O102)/N26-1 -> 0.006525868908 | P98: =(P26+P102)/O26-1 -> 0.001751719506 | Q98: =(Q26+Q102)/P26-1 -> 0.004950167304 | S98: =(S26+S102)/Q26-1 -> 0.01989841716 | T98: =(T26+T102)/S26-1 -> -0.01230293766 | U98: =(U26+U102)/T26-1 -> 0.006536548734 | V98: =(V26+V102)/U26-1 -> 0.003232749203 | X98: =(X26+X102)/V26-1 -> 0.04371981531 | Y98: =(Y26+Y102)/X26-1 -> -0.04712810577 | Z98: =(Z26+Z102)/Y26-1 -> -0.0004954911157 | AA98: =(AA26+AA102)/Z26-1 -> 0.003423997447 | AC98: =X98 -> 0.04371981531 | AD98: =Y98 -> -0.04712810577 | AE98: -0.0004954911157 | AF98: 0.003423997447 | AH98: =AC98 -> 0.04371981531 | AI98: =AD98 -> -0.04712810577 | AJ98: =AE98 -> -0.0004954911157 | AK98: =AF98 -> 0.003423997447 | AM98: =AH98 -> 0.04371981531 | AN98: =AI98 -> -0.04712810577 | AO98: =AJ98 -> -0.0004954911157 | AP98: =AK98 -> 0.003423997447
B99: Change in diluted shares (excluding repurchases) | E99: =(E27+E102)/D27-1 -> 0.003800428311 | F99: =(F27+F102)/E27-1 -> 0.006148902923 | G99: =(G27+G102)/F27-1 -> 0.003134376951 | I99: =(I27+I102)/G27-1 -> 0.003247875402 | J99: =(J27+J102)/I27-1 -> 0.004164663816 | K99: =(K27+K102)/J27-1 -> 0.9974342636 | L99: =(L27+L102)/K27-1 -> -0.002951454703 | O99: =(O27+O102)/N27-1 -> -0.0003844766546 | P99: =(P27+P102)/O27-1 -> 0.001184903043 | Q99: =(Q27+Q102)/P27-1 -> 0.003963186604 | S99: =(S27+S102)/Q27-1 -> 0.02781858334 | T99: =(T27+T102)/S27-1 -> -0.01882807523 | U99: =(U27+U102)/T27-1 -> -0.01400748703 | V99: =(V27+V102)/U27-1 -> 0.02509908736 | X99: =(X27+X102)/V27-1 -> 0.04894374739 | Y99: =(Y27+Y102)/X27-1 -> -0.04956844728 | Z99: =(Z27+Z102)/Y27-1 -> -0.002026019405 | AA99: =(AA27+AA102)/Z27-1 -> 0.003656351382 | AC99: =X99 -> 0.04894374739 | AD99: =Y99 -> -0.04956844728 | AE99: =Z99 -> -0.002026019405 | AF99: =AA99 -> 0.003656351382 | AH99: =AC99 -> 0.04894374739 | AI99: -0.04956844728 | AJ99: -0.002026019405 | AK99: 0.003656351382 | AM99: =AH99 -> 0.04894374739 | AN99: -0.04956844728 | AO99: -0.002026019405 | AP99: 0.003656351382
B100: Share repurchase average price assumption ($) | D100: =VLOOKUP(D$33,'Share Price History'!$G:$I,3,0) -> 77.23484375 | E100: =VLOOKUP(E$33,'Share Price History'!$G:$I,3,0) -> 88.92730159 | F100: =VLOOKUP(F$33,'Share Price History'!$G:$I,3,0) -> 95.02295082 | G100: =VLOOKUP(G$33,'Share Price History'!$G:$I,3,0) -> 100.2930159 | I100: =VLOOKUP(I$33,'Share Price History'!$G:$I,3,0) -> 109.7530769 | J100: =VLOOKUP(J$33,'Share Price History'!$G:$I,3,0) -> 124.1039683 | K100: =VLOOKUP(K$33,'Share Price History'!$G:$I,3,0) -> 123.004918 | L100: =VLOOKUP(L$33,'Share Price History'!$G:$H,2,0) -> 59.5209375 | N100: =VLOOKUP(N$33,'Share Price History'!$G:$H,2,0) -> 56.00461538 | O100: =VLOOKUP(O$33,'Share Price History'!$G:$H,2,0) -> 52.62825397 | P100: =VLOOKUP(P$33,'Share Price History'!$G:$H,2,0) -> 53.33316667 | Q100: =VLOOKUP(Q$33,'Share Price History'!$G:$H,2,0) -> 55.20359375 | S100: =VLOOKUP(S$33,'Share Price History'!$G:$H,2,0) -> 56.07723077 | T100: =VLOOKUP(T$33,'Share Price History'!$G:$H,2,0) -> 54.46952381 | U100: =VLOOKUP(U$33,'Share Price History'!$G:$H,2,0) -> 64.94533333 | V100: =VLOOKUP(V$33,'Share Price History'!$G:$H,2,0) -> 67.68375 | X100: =VLOOKUP(X$33,'Share Price History'!$G:$H,2,0) -> 77.50123077 | Y100: =VLOOKUP(Y$33,'Share Price History'!$G:$H,2,0) -> 77.99126984 | Z100: =VLOOKUP(Z$33,'Share Price History'!$G:$H,2,0) -> 78.29661017 | AA100: =VLOOKUP(AA$33,'Share Price History'!$G:$H,2,0) -> 84.90640625 | AC100: =$AA$100 -> 84.90640625 | AD100: =$AA$100 -> 84.90640625 | AE100: 84.90640625 | AF100: 84.90640625 | AH100: =$AA$100 -> 84.90640625 | AI100: =$AA$100 -> 84.90640625 | AJ100: 84.90640625 | AK100: 84.90640625 | AM100: =$AA$100 -> 84.90640625 | AN100: =$AA$100 -> 84.90640625 | AO100: 84.90640625 | AP100: 84.90640625
B101: Share repurchase: amount in the period ($M) | D101: =-D178 -> 819 | E101: =-E178 -> 424 | F101: 612 | G101: 679 | I101: =-I178 -> 588 | J101: =-J178 -> 652 | K101: 1458 | L101: 540 | N101: =-N178 -> 1054 | O101: =-O178 -> 900 | P101: 475 | Q101: 794 | S101: =-S178 -> 804 | T101: =-T178 -> 972 | U101: 918 | V101: 1560 | X101: 819 | Y101: 425 | Z101: 612 | AA101: 678 | AC101: 200 | AD101: 200 | AE101: 200 | AF101: 200 | AH101: 200 | AI101: 200 | AJ101: 200 | AK101: 200 | AM101: 200 | AN101: 200 | AO101: 200 | AP101: 200
B102: Shares repurchased (approx) | D102: =IF((D101)>0,(D101/D100),0) -> 10.60402223 | E102: =IF((E101)>0,(E101/E100),0) -> 4.767939569 | F102: 6.440549306 | G102: 6.77016235 | I102: =IF((I101)>0,(I101/I100),0) -> 5.357480779 | J102: =IF((J101)>0,(J101/J100),0) -> 5.253659566 | K102: 11.8531846 | L102: 9.072437745 | N102: =IF((N101)>0,(N101/N100),0) -> 18.81987748 | O102: =IF((O101)>0,(O101/O100),0) -> 17.10108035 | P102: 8.906277832 | Q102: 14.38312157 | S102: =IF((S101)>0,(S101/S100),0) -> 14.33736989 | T102: =IF((T101)>0,(T101/T100),0) -> 17.84484115 | U102: 14.13496479 | V102: 23.04836833 | X102: =IF((X101)>0,(X101/X100),0) -> 10.56757411 | Y102: =IF((Y101)>0,(Y101/Y100),0) -> 5.449327865 | Z102: 7.81643035 | AA102: 7.985263185 | AC102: =IF((AC101)>0,(AC101/AC100),0) -> 2.355534863 | AD102: =IF((AD101)>0,(AD101/AD100),0) -> 2.355534863 | AE102: 2.355534863 | AF102: 2.355534863 | AH102: =IF((AH101)>0,(AH101/AH100),0) -> 2.355534863 | AI102: =IF((AI101)>0,(AI101/AI100),0) -> 2.355534863 | AJ102: 2.355534863 | AK102: 2.355534863 | AM102: =IF((AM101)>0,(AM101/AM100),0) -> 2.355534863 | AN102: =IF((AN101)>0,(AN101/AN100),0) -> 2.355534863 | AO102: 2.355534863 | AP102: 2.355534863
N103: =ROUND(((N87+N82+N77+N72+N62+N52+N42)-N20+N22),0) -> 0 | O103: =ROUND(((O87+O82+O77+O72+O62+O52+O42)-O20+O22),0) -> 0 | P103: 0 | Q103: 0 | R103: 0 | S103: 0 | T103: 0 | U103: 0 | V103: 0 | W103: 0 | X103: 0 | Y103: 0 | Z103: 0 | AA103: =ROUND(((AA87+AA82+AA77+AA72+AA62+AA52+AA42)-AA20+AA22),0) -> 0 | AB103: 0 | AC103: =ROUND(((AC87+AC82+AC77+AC72+AC62+AC52+AC42)-AC20+AC22),0) -> 0 | AD103: 0 | AE103: 0 | AF103: 0 | AG103: 0 | AH103: 0 | AI103: 0 | AJ103: 0 | AK103: 0 | AL103: 0 | AM103: 0 | AN103: 0 | AO103: 0 | AP103: 0 | AQ103: 0
B104: Nike Balance Sheet
B105: (Dollars in millions, except per share data) | D105: Aug-14 | E105: Nov-14 | F105: Feb-15 | G105: May-15 | H105: May-15 | I105: Aug-15 | J105: Nov-15 | K105: Feb-16 | L105: May-16 | M105: May-16 | N105: Aug-16 | O105: Nov-16 | P105: Feb-17 | Q105: May-17 | R105: May-17 | S105: Aug-17 | T105: Nov-17 | U105: Feb-18 | V105: May-18 | W105: May-18 | X105: Aug-18 | Y105: Nov-18 | Z105: Feb-19 | AA105: May-19 | AB105: May-19 | AC105: Aug-19 | AD105: Nov-19 | AE105: Feb-20 | AF105: May-20 | AG105: May-20 | AH105: Aug-20 | AI105: Nov-20 | AJ105: Feb-21 | AK105: May-21 | AL105: May-21 | AM105: Aug-22 | AN105: Nov-22 | AO105: Feb-22 | AP105: May-22 | AQ105: May-22
D106: F1Q15 | E106: F2Q15 | F106: F3Q15 | G106: F4Q15 | H106: FY 2015 | I106: F1Q16 | J106: F2Q16 | K106: F3Q16 | L106: F4Q16 | M106: FY 2016 | N106: F1Q17 | O106: F2Q17 | P106: F3Q17 | Q106: F4Q17 | R106: FY 2017 | S106: F1Q18 | T106: F2Q18 | U106: F3Q18 | V106: F4Q18 | W106: FY 2018 | X106: F1Q19 | Y106: F2Q19 | Z106: F3Q19 | AA106: F4Q19 | AB106: FY 2019 | AC106: F1Q20E | AD106: F2Q20E | AE106: F3Q20E | AF106: F4Q20E | AG106: FY 2020 E | AH106: F1Q21E | AI106: F2Q21E | AJ106: F3Q21E | AK106: F4Q21E | AL106: FY 2021 E | AM106: F1Q22E | AN106: F2Q22E | AO106: F3Q22E | AP106: F4Q22E | AQ106: FY 2022 E
B107: Assets
B108: Cash and equivalents | D108: =D196 -> 2303 | E108: =E196 -> 2273 | F108: 3015 | G108: 3852 | H108: =G108 -> 3852 | I108: =I196 -> 3246 | J108: =J196 -> 3851 | K108: =K196 -> 3044 | L108: 3138 | M108: =L108 -> 3138 | N108: 2659 | O108: 4339 | P108: 4021 | Q108: 3808 | R108: =Q108 -> 3808 | S108: 3413 | T108: 4304 | U108: 3662 | V108: 4249 | W108: =V108 -> 4249 | X108: 3282 | Y108: 3423 | Z108: 3695 | AA108: 4466 | AB108: =AA108 -> 4466 | AC108: =AC196 -> 5481.338157 | AD108: =AD196 -> 4897.892752 | AE108: =AE196 -> 6313.971319 | AF108: =AF196 -> 6588.508557 | AG108: =AF108 -> 6588.508557 | AH108: =AH196 -> 9053.010062 | AI108: =AI196 -> 7011.908976 | AJ108: =AJ196 -> 9852.575577 | AK108: =AK196 -> 8721.460268 | AL108: =AK108 -> 8721.460268 | AM108: =AM196 -> 12696.90082 | AN108: =AN196 -> 9028.640315 | AO108: =AO196 -> 13334.99317 | AP108: =AP196 -> 10618.01274 | AQ108: =AP108 -> 10618.01274
B109: Short-term marketable securities | D109: 2276 | E109: 2440 | F109: 2346 | G109: 2072 | H109: =G109 -> 2072 | I109: 2162 | J109: 2265 | K109: 2062 | L109: 2319 | M109: =L109 -> 2319 | N109: 2128 | O109: 1604 | P109: 2139 | Q109: 2371 | R109: =Q109 -> 2371 | S109: 2106 | T109: 2085 | U109: 1089 | V109: 996 | W109: =V109 -> 996 | X109: 987 | Y109: 618 | Z109: 351 | AA109: 197 | AB109: =AA109 -> 197 | AC109: =AA109 -> 197 | AD109: =AB109 -> 197 | AE109: =AC109 -> 197 | AF109: =AD109 -> 197 | AG109: =AF109 -> 197 | AH109: =AF109 -> 197 | AI109: =AG109 -> 197 | AJ109: =AH109 -> 197 | AK109: =AI109 -> 197 | AL109: =AK109 -> 197 | AM109: =AK109 -> 197 | AN109: =AL109 -> 197 | AO109: =AM109 -> 197 | AP109: =AN109 -> 197 | AQ109: =AP109 -> 197
B110: Accounts receivables | D110: 3587 | E110: 3457 | F110: 3294 | G110: 3358 | H110: 3358 | I110: 3288 | J110: 3437 | K110: 3368 | L110: 3241 | M110: 3241 | N110: 3526 | O110: 3478 | P110: 3752 | Q110: 3677 | R110: 3677 | S110: 3871 | T110: 3613 | U110: 3792 | V110: 3498 | W110: 3498 | X110: 4330 | Y110: 4346 | Z110: 4549 | AA110: 4272 | AB110: 4272 | AC110: =(AC14/AC144*2)-AA110 -> 3838.16617 | AD110: =(AD14/AD144*2)-AC110 -> 5514.155611 | AE110: =(AE14/AE144*2)-AD110 -> 4197.881896 | AF110: =(AF14/AF144*2)-AE110 -> 5333.024977 | AG110: 5333.024977 | AH110: =(AH14/AH144*2)-AF110 -> 3431.183754 | AI110: =(AI14/AI144*2)-AH110 -> 6669.193064 | AJ110: =(AJ14/AJ144*2)-AI110 -> 3834.114715 | AK110: =(AK14/AK144*2)-AJ110 -> 6492.310198 | AL110: 6492.310198 | AM110: =(AM14/AM144*2)-AK110 -> 3005.066406 | AN110: =(AN14/AN144*2)-AM110 -> 7933.292366 | AO110: =(AO14/AO144*2)-AN110 -> 3457.627957 | AP110: =(AP14/AP144*2)-AO110 -> 7762.765471 | AQ110: 7762.765471
B111: Inventories | D111: 4030 | E111: 4150 | F111: 4246 | G111: 4337 | H111: 4337 | I111: 4414 | J111: 4600 | K111: 4590 | L111: 4838 | M111: 4838 | N111: 4896 | O111: 5033 | P111: 4932 | Q111: 5055 | R111: 5055 | S111: 5211 | T111: 5326 | U111: 5366 | V111: 5261 | W111: 5261 | X111: 5227 | Y111: 5388 | Z111: 5415 | AA111: 5622 | AB111: 5622 | AC111: =(AC15/AC142*2)-AA111 -> 5672.425813 | AD111: =(AD15/AD142*2)-AC111 -> 6134.712215 | AE111: =(AE15/AE142*2)-AD111 -> 6337.110932 | AF111: =(AF15/AF142*2)-AE111 -> 6352.333359 | AG111: 6352.333359 | AH111: =(AH15/AH142*2)-AF111 -> 5852.928932 | AI111: =(AI15/AI142*2)-AH111 -> 6898.615126 | AJ111: =(AJ15/AJ142*2)-AI111 -> 6589.326717 | AK111: =(AK15/AK142*2)-AJ111 -> 7159.269863 | AL111: 7159.269863 | AM111: =(AM15/AM142*2)-AK111 -> 6067.020847 | AN111: =(AN15/AN142*2)-AM111 -> 7742.460355 | AO111: =(AO15/AO142*2)-AN111 -> 6885.319206 | AP111: =(AP15/AP142*2)-AO111 -> 8053.506575 | AQ111: 8053.506575
B112: Prepaid expenses and other current assets | D112: 996 | E112: 1379 | F112: 1978 | G112: 1968 | H112: 1968 | I112: 1751 | J112: 2197 | K112: 1782 | L112: 1489 | M112: 1489 | N112: 1380 | O112: 1557 | P112: 1361 | Q112: 1150 | R112: 1150 | S112: 1591 | T112: 1254 | U112: 1446 | V112: 1130 | W112: 1130 | X112: 1675 | Y112: 1791 | Z112: 1786 | AA112: 1968 | AB112: 1968 | AC112: =AB112 -> 1968 | AD112: =AC112 -> 1968 | AE112: =AD112 -> 1968 | AF112: =AE112 -> 1968 | AG112: 1968 | AH112: =AG112 -> 1968 | AI112: =AH112 -> 1968 | AJ112: =AI112 -> 1968 | AK112: =AJ112 -> 1968 | AL112: 1968 | AM112: =AL112 -> 1968 | AN112: =AM112 -> 1968 | AO112: =AN112 -> 1968 | AP112: =AO112 -> 1968 | AQ112: 1968
B113: Total Current Assets | D113: =SUM(D108:D112) -> 13192 | E113: 13699 | F113: 14879 | G113: 15587 | H113: 15587 | I113: 14861 | J113: 16350 | K113: 14846 | L113: 15025 | M113: 15025 | N113: 14589 | O113: 16011 | P113: 16205 | Q113: 16061 | R113: 16061 | S113: 16192 | T113: 16582 | U113: 15355 | V113: 15134 | W113: 15134 | X113: 15501 | Y113: 15566 | Z113: 15796 | AA113: 16525 | AB113: 16525 | AC113: 17156.93014 | AD113: 18711.76058 | AE113: 19013.96415 | AF113: 20438.86689 | AG113: 20438.86689 | AH113: 20502.12275 | AI113: 22744.71717 | AJ113: 22441.01701 | AK113: 24538.04033 | AL113: 24538.04033 | AM113: 23933.98807 | AN113: 26869.39304 | AO113: 25842.94033 | AP113: 28599.28479 | AQ113: 28599.28479
B114: Property, plant and equipment, net | D114: 2895 | E114: 2927 | F114: 2862 | G114: 3011 | H114: =G114 -> 3011 | I114: 3112 | J114: 3235 | K114: 3329 | L114: 3520 | M114: =L114 -> 3520 | N114: 3572 | O114: 3566 | P114: 3793 | Q114: 3989 | R114: =Q114 -> 3989 | S114: 4086 | T114: 4117 | U114: 4298 | V114: 4454 | W114: =V114 -> 4454 | X114: 4487 | Y114: 4588 | Z114: 4688 | AA114: 4744 | AB114: =AA114 -> 4744 | AC114: =AA114-AC188-AC159 -> 4813.96 | AD114: =AC114-AD188-AD159 -> 4917.4622 | AE114: =AD114-AE188-AE159 -> 5057.721989 | AF114: =AE114-AF188-AF159 -> 5237.91317 | AG114: =AF114 -> 5237.91317 | AH114: =AF114-AH188-AH159 -> 5461.64157 | AI114: =AH114-AI188-AI159 -> 5733.006295 | AJ114: =AI114-AJ188-AJ159 -> 6056.656122 | AK114: =AJ114-AK188-AK159 -> 6437.852509 | AL114: =AK114 -> 6437.852509 | AM114: =AK114-AM188-AM159 -> 6882.540294 | AN114: =AM114-AN188-AN159 -> 7397.427035 | AO114: =AN114-AO188-AO159 -> 7990.072 | AP114: =AO114-AP188-AP159 -> 8668.98597 | AQ114: =AP114 -> 8668.98597
B115: Intangible assets | D115: 282 | E115: 281 | F115: 281 | G115: 281 | H115: 281 | I115: 281 | J115: 281 | K115: 281 | L115: 281 | M115: 281 | N115: 284 | O115: 283 | P115: 283 | Q115: 283 | R115: 283 | S115: 283 | T115: 282 | U115: 282 | V115: 285 | W115: 285 | X115: 284 | Y115: 284 | Z115: 283 | AA115: 283 | AB115: 283 | AC115: =AA115 -> 283 | AD115: =AC115 -> 283 | AE115: 283 | AF115: 283 | AG115: 283 | AH115: =AF115 -> 283 | AI115: =AH115 -> 283 | AJ115: =AI115 -> 283 | AK115: =AJ115 -> 283 | AL115: 283 | AM115: =AK115 -> 283 | AN115: =AM115 -> 283 | AO115: =AN115 -> 283 | AP115: =AO115 -> 283 | AQ115: 283
B116: Goodwill | D116: 131 | E116: 131 | F116: 131 | G116: 131 | H116: 131 | I116: 131 | J116: 131 | K116: 131 | L116: 131 | M116: 131 | N116: 139 | O116: 139 | P116: 139 | Q116: 139 | R116: 139 | S116: 139 | T116: 139 | U116: 139 | V116: 154 | W116: 154 | X116: 154 | Y116: 154 | Z116: 154 | AA116: 154 | AB116: 154 | AC116: =AA116 -> 154 | AD116: 154 | AE116: 154 | AF116: 154 | AG116: 154 | AH116: =AF116 -> 154 | AI116: 154 | AJ116: 154 | AK116: 154 | AL116: 154 | AM116: =AK116 -> 154 | AN116: 154 | AO116: 154 | AP116: 154 | AQ116: 154
B117: Deferred income taxes and other assets | D117: 2021 | E117: 2129 | F117: 2388 | G117: 2590 | H117: 2590 | I117: 2381 | J117: 2586 | K117: 2400 | L117: 2422 | M117: 2422 | N117: 2572 | O117: 2653 | P117: 2732 | Q117: 2787 | R117: 2787 | S117: 2947 | T117: 2935 | U117: 2478 | V117: 2509 | W117: 2509 | X117: 2057 | Y117: 2085 | Z117: 2000 | AA117: 2011 | AB117: 2011 | AC117: =AB117 -> 2011 | AD117: =AC117 -> 2011 | AE117: =AD117 -> 2011 | AF117: =AE117 -> 2011 | AG117: 2011 | AH117: =AG117 -> 2011 | AI117: 2011 | AJ117: 2011 | AK117: 2011 | AL117: 2011 | AM117: =AL117 -> 2011 | AN117: 2011 | AO117: 2011 | AP117: 2011 | AQ117: 2011
B118: Total Assets | D118: =SUM(D113:D117) -> 18521 | E118: 19167 | F118: 20541 | G118: 21600 | H118: 21600 | I118: =SUM(I113:I117) -> 20766 | J118: =SUM(J113:J117) -> 22583 | K118: =SUM(K113:K117) -> 20987 | L118: =SUM(L113:L117) -> 21379 | M118: 21379 | N118: =SUM(N113:N117) -> 21156 | O118: 22652 | P118: 23152 | Q118: 23259 | R118: 23259 | S118: =SUM(S113:S117) -> 23647 | T118: 24055 | U118: 22552 | V118: 22536 | W118: 22536 | X118: 22483 | Y118: 22677 | Z118: 22921 | AA118: 23717 | AB118: 23717 | AC118: =SUM(AC113:AC117) -> 24418.89014 | AD118: 26077.22278 | AE118: 26519.68614 | AF118: 28124.78006 | AG118: 28124.78006 | AH118: =SUM(AH113:AH117) -> 28411.76432 | AI118: 30925.72346 | AJ118: 30945.67313 | AK118: 33423.89284 | AL118: 33423.89284 | AM118: =SUM(AM113:AM117) -> 33264.52837 | AN118: 36714.82007 | AO118: 36281.01233 | AP118: 39716.27076 | AQ118: 39716.27076
B120: Liabilities
B121: Current portion of long-term debt | D121: 6 | E121: 110 | F121: 108 | G121: 107 | H121: =G121 -> 107 | I121: 106 | J121: 5 | K121: 7 | L121: 44 | M121: =L121 -> 44 | N121: 44 | O121: 44 | P121: 6 | Q121: 6 | R121: =Q121 -> 6 | S121: 7 | T121: 10 | U121: 6 | V121: 6 | W121: =V121 -> 6 | X121: 6 | Y121: 6 | Z121: 6 | AA121: 6 | AB121: =AA121 -> 6 | AC121: =AA121 -> 6 | AD121: =AC121 -> 6 | AE121: =AD121 -> 6 | AF121: =AE121 -> 6 | AG121: =AF121 -> 6 | AH121: =AG121 -> 6 | AI121: =AH121 -> 6 | AJ121: =AI121 -> 6 | AK121: =AJ121 -> 6 | AL121: =AK121 -> 6 | AM121: =AL121 -> 6 | AN121: =AM121 -> 6 | AO121: =AN121 -> 6 | AP121: =AO121 -> 6 | AQ121: =AP121 -> 6
B122: Notes payable | D122: 146 | E122: 93 | F122: 61 | G122: 74 | H122: =G122 -> 74 | I122: 23 | J122: 99 | K122: 0 | L122: 1 | M122: =L122 -> 1 | N122: 22 | O122: 20 | P122: 23 | Q122: 325 | R122: =Q122 -> 325 | S122: 335 | T122: 1229 | U122: 11 | V122: 336 | W122: =V122 -> 336 | X122: 13 | Y122: 9 | Z122: 16 | AA122: 9 | AB122: =AA122 -> 9 | AC122: =AA122 -> 9 | AD122: =AC122 -> 9 | AE122: =AD122 -> 9 | AF122: =AE122 -> 9 | AG122: =AF122 -> 9 | AH122: =AF122 -> 9 | AI122: =AH122 -> 9 | AJ122: =AI122 -> 9 | AK122: =AJ122 -> 9 | AL122: =AK122 -> 9 | AM122: =AK122 -> 9 | AN122: =AM122 -> 9 | AO122: =AN122 -> 9 | AP122: =AO122 -> 9 | AQ122: =AP122 -> 9
B123: Accounts payable | D123: 1970 | E123: 2074 | F123: 1821 | G123: 2131 | H123: =G123 -> 2131 | I123: 1933 | J123: 1915 | K123: 1714 | L123: 2191 | M123: =L123 -> 2191 | N123: 2088 | O123: 2033 | P123: 1938 | Q123: 2048 | R123: =Q123 -> 2048 | S123: 2116 | T123: 2141 | U123: 1961 | V123: 2279 | W123: =V123 -> 2279 | X123: 2333 | Y123: 2574 | Z123: 2307 | AA123: 2612 | AB123: =AA123 -> 2612 | AC123: =(AC15/AC148*2)-AA123 -> 2354.618216 | AD123: =(AD15/AD148*2)-AC123 -> 3103.471874 | AE123: =(AE15/AE148*2)-AD123 -> 2531.53403 | AF123: =(AF15/AF148*2)-AE123 -> 3123.931809 | AG123: =AF123 -> 3123.931809 | AH123: =(AH15/AH148*2)-AF123 -> 2243.218237 | AI123: =(AI15/AI148*2)-AH123 -> 3651.44278 | AJ123: =(AJ15/AJ148*2)-AI123 -> 2442.664796 | AK123: =(AK15/AK148*2)-AJ123 -> 3684.846899 | AL123: =AK123 -> 3684.846899 | AM123: =(AM15/AM148*2)-AK123 -> 2131.290854 | AN123: =(AN15/AN148*2)-AM123 -> 4252.42316 | AO123: =(AO15/AO148*2)-AN123 -> 2356.684684 | AP123: =(AP15/AP148*2)-AO123 -> 4301.291579 | AQ123: =AP123 -> 4301.291579
B124: Accrued liabilities | D124: 2441 | E124: 2622 | F124: 3563 | G124: 3951 | H124: =G124 -> 3951 | I124: 3139 | J124: 3451 | K124: 3224 | L124: 3087 | M124: =L124 -> 3087 | N124: 3147 | O124: 3076 | P124: 3228 | Q124: 3011 | R124: =Q124 -> 3011 | S124: 3501 | T124: 3278 | U124: 3727 | V124: 3269 | W124: =V124 -> 3269 | X124: 4174 | Y124: 4478 | Z124: 4738 | AA124: 5010 | AB124: =AA124 -> 5010 | AC124: 5010 | AD124: 5010 | AE124: 5010 | AF124: 5010 | AG124: =AF124 -> 5010 | AH124: =AG124 -> 5010 | AI124: =AH124 -> 5010 | AJ124: =AI124 -> 5010 | AK124: =AJ124 -> 5010 | AL124: 5010 | AM124: =AL124 -> 5010 | AN124: =AM124 -> 5010 | AO124: =AN124 -> 5010 | AP124: =AO124 -> 5010 | AQ124: 5010
B125: Incomes taxes payable | D125: 250 | E125: 38 | F125: 33 | G125: 71 | H125: 71 | I125: 75 | J125: 41 | K125: 35 | L125: 35 | M125: 35 | N125: 62 | O125: 52 | P125: 76 | Q125: 84 | R125: 84 | S125: 97 | T125: 92 | U125: 78 | V125: 150 | W125: 150 | X125: 182 | Y125: 211 | Z125: 214 | AA125: 229 | AB125: 229 | AC125: =AB125 -> 229 | AD125: =AC125 -> 229 | AE125: =AD125 -> 229 | AF125: =AE125 -> 229 | AG125: 229 | AH125: 229 | AI125: 229 | AJ125: 229 | AK125: 229 | AL125: 229 | AM125: 229 | AN125: 229 | AO125: 229 | AP125: 229 | AQ125: 229
B126: Total Current liabilities | D126: =SUM(D121:D125) -> 4813 | E126: =SUM(E121:E125) -> 4937 | F126: 5586 | G126: =SUM(G121:G125) -> 6334 | H126: =SUM(H121:H125) -> 6334 | I126: =SUM(I121:I125) -> 5276 | J126: =SUM(J121:J125) -> 5511 | K126: 4980 | L126: =SUM(L121:L125) -> 5358 | M126: 5358 | N126: 5363 | O126: 5225 | P126: 5271 | Q126: 5474 | R126: 5474 | S126: =SUM(S121:S125) -> 6056 | T126: 6750 | U126: 5783 | V126: 6040 | W126: 6040 | X126: 6708 | Y126: 7278 | Z126: 7281 | AA126: 7866 | AB126: 7866 | AC126: 7608.618216 | AD126: 8357.471874 | AE126: 7785.53403 | AF126: 8377.931809 | AG126: 8377.931809 | AH126: =SUM(AH121:AH125) -> 7497.218237 | AI126: 8905.44278 | AJ126: 7696.664796 | AK126: 8938.846899 | AL126: 8938.846899 | AM126: =SUM(AM121:AM125) -> 7385.290854 | AN126: 9506.42316 | AO126: 7610.684684 | AP126: 9555.291579 | AQ126: 9555.291579
B127: Long-term debt | D127: 1195 | E127: 1084 | F127: 1082 | G127: 1079 | H127: =G127 -> 1079 | I127: 1079 | J127: 2067 | K127: 2048 | L127: 1993 | M127: =L127 -> 1993 | N127: 1993 | O127: 3473 | P127: 3472 | Q127: 3471 | R127: =Q127 -> 3471 | S127: 3472 | T127: 3472 | U127: 3469 | V127: 3468 | W127: =V127 -> 3468 | X127: 3467 | Y127: 3466 | Z127: 3465 | AA127: 3464 | AB127: =AA127 -> 3464 | AC127: =AA127+AC173 -> 3464 | AD127: =AC127+AD173 -> 3464 | AE127: =AD127+AE173 -> 3464 | AF127: =AE127+AF173 -> 3464 | AG127: =AF127 -> 3464 | AH127: =AF127+AH173 -> 3464 | AI127: =AH127+AI173 -> 3464 | AJ127: =AI127+AJ173 -> 3464 | AK127: =AJ127+AK173 -> 3464 | AL127: =AK127 -> 3464 | AM127: =AK127+AM173 -> 3464 | AN127: =AM127+AN173 -> 3464 | AO127: =AN127+AO173 -> 3464 | AP127: =AO127+AP173 -> 3464 | AQ127: =AP127 -> 3464
B128: Deferred income taxes and other liabilities | D128: 1408 | E128: 1446 | F128: 1505 | G128: 1480 | H128: 1480 | I128: 1517 | J128: 1600 | K128: 1659 | L128: 1770 | M128: 1770 | N128: 1635 | O128: 1631 | P128: 1687 | Q128: 1907 | R128: 1907 | S128: 2126 | T128: 2075 | U128: 3518 | V128: 3216 | W128: 3216 | X128: 3316 | Y128: 3204 | Z128: 3214 | AA128: 3347 | AB128: 3347 | AC128: =AB128 -> 3347 | AD128: =AC128 -> 3347 | AE128: =AD128 -> 3347 | AF128: =AE128 -> 3347 | AG128: 3347 | AH128: =AG128 -> 3347 | AI128: =AH128 -> 3347 | AJ128: =AI128 -> 3347 | AK128: =AJ128 -> 3347 | AL128: 3347 | AM128: =AL128 -> 3347 | AN128: =AM128 -> 3347 | AO128: =AN128 -> 3347 | AP128: =AO128 -> 3347 | AQ128: 3347
B129: Total liabilities | D129: =SUM(D126:D128) -> 7416 | E129: =SUM(E126:E128) -> 7467 | F129: 8173 | G129: 8893 | H129: 8893 | I129: =SUM(I126:I128) -> 7872 | J129: =SUM(J126:J128) -> 9178 | K129: 8687 | L129: 9121 | M129: 9121 | N129: 8991 | O129: 10329 | P129: 10430 | Q129: 10852 | R129: 10852 | S129: =SUM(S126:S128) -> 11654 | T129: 12297 | U129: 12770 | V129: 12724 | W129: 12724 | X129: 13491 | Y129: 13948 | Z129: 13960 | AA129: 14677 | AB129: 14677 | AC129: =SUM(AC126:AC128) -> 14419.61822 | AD129: 15168.47187 | AE129: 14596.53403 | AF129: 15188.93181 | AG129: 15188.93181 | AH129: =SUM(AH126:AH128) -> 14308.21824 | AI129: 15716.44278 | AJ129: 14507.6648 | AK129: 15749.8469 | AL129: 15749.8469 | AM129: =SUM(AM126:AM128) -> 14196.29085 | AN129: 16317.42316 | AO129: 14421.68468 | AP129: 16366.29158 | AQ129: 16366.29158
B131: Commitments and contingencies | D131: 0 | E131: 0 | F131: 0 | G131: 0 | H131: =G131 -> 0 | I131: =H131 -> 0 | J131: =I131 -> 0 | K131: 0 | L131: 0 | M131: =L131 -> 0 | N131: =M131 -> 0 | O131: =N131 -> 0 | P131: 0 | Q131: 0 | R131: =Q131 -> 0 | S131: =R131 -> 0 | T131: =S131 -> 0 | U131: =T131 -> 0 | V131: =U131 -> 0 | W131: =V131 -> 0 | X131: =W131 -> 0 | Y131: =X131 -> 0 | Z131: =Y131 -> 0 | AA131: =Z131 -> 0 | AB131: =AA131 -> 0 | AC131: =AB131 -> 0 | AD131: =AC131 -> 0 | AE131: =AD131 -> 0 | AF131: =AE131 -> 0 | AG131: =AF131 -> 0 | AH131: =AG131 -> 0 | AI131: =AH131 -> 0 | AJ131: =AI131 -> 0 | AK131: =AJ131 -> 0 | AL131: =AK131 -> 0 | AM131: =AL131 -> 0 | AN131: =AM131 -> 0 | AO131: =AN131 -> 0 | AP131: =AO131 -> 0 | AQ131: =AP131 -> 0
B132: Equity
B133: Common stock and capital in excess of stated value | D133: =6070+3 -> 6073 | E133: =3+6375 -> 6378 | F133: =3+6517 -> 6520 | G133: =3+6773 -> 6776 | H133: =G133 -> 6776 | I133: =7029+3 -> 7032 | J133: =7408+3 -> 7411 | K133: =7539+3 -> 7542 | L133: 7789 | M133: =L133 -> 7789 | N133: 8002 | O133: 8199 | P133: 8398 | Q133: 5713 | R133: =Q133 -> 5713 | S133: 8820 | T133: 9044 | U133: 9328 | V133: 6387 | W133: =V133 -> 6387 | X133: 6528 | Y133: 6710 | Z133: 6913 | AA133: 7166 | AB133: =AA133 -> 7166 | AC133: =AA133 -> 7166 | AD133: =AC133 -> 7166 | AE133: =AD133 -> 7166 | AF133: 7166 | AG133: =AF133 -> 7166 | AH133: =AF133 -> 7166 | AI133: =AH133 -> 7166 | AJ133: =AI133 -> 7166 | AK133: 7166 | AL133: =AK133 -> 7166 | AM133: =AK133 -> 7166 | AN133: =AM133 -> 7166 | AO133: =AN133 -> 7166 | AP133: 7166 | AQ133: =AP133 -> 7166
B134: Retained earnings | D134: 4808 | E134: 4797 | F134: 4737 | G134: 4685 | H134: 4685 | I134: 5029 | J134: 4887 | K134: 4113 | L134: 4151 | M134: 4151 | N134: 4078 | O134: 3725 | P134: 4095 | Q134: 6907 | R134: 6907 | S134: 3759 | T134: 3301 | U134: 1078 | V134: 3517 | W134: 3517 | X134: 2494 | Y134: 1810 | Z134: 1851 | AA134: 1643 | AB134: 1643 | AC134: =AB134+AC158-(AC30*AC26)-AC101 -> 2602.271924 | AD134: =AC134+AD158-(AD30*AD26)-AD101 -> 3511.750904 | AE134: =AD134+AE158-(AE30*AE26)-AE101 -> 4526.152106 | AF134: =AE134+AF158-(AF30*AF26)-AF101 -> 5538.848253 | AG134: 5538.848253 | AH134: =AG134+AH158-(AH30*AH26)-AH101 -> 6706.546081 | AI134: =AH134+AI158-(AI30*AI26)-AI101 -> 7812.280681 | AJ134: =AI134+AJ158-(AJ30*AJ26)-AJ101 -> 9041.008336 | AK134: =AJ134+AK158-(AK30*AK26)-AK101 -> 10277.04594 | AL134: 10277.04594 | AM134: =AL134+AM158-(AM30*AM26)-AM101 -> 11671.23751 | AN134: =AM134+AN158-(AN30*AN26)-AN101 -> 13000.39691 | AO134: =AN134+AO158-(AO30*AO26)-AO101 -> 14462.32765 | AP134: =AO134+AP158-(AP30*AP26)-AP101 -> 15952.97918 | AQ134: 15952.97918
B135: Accumulated other comprehensive income | D135: 224 | E135: 525 | F135: 1111 | G135: 1246 | H135: 1246 | I135: 833 | J135: 1107 | K135: 645 | L135: 318 | M135: 318 | N135: 85 | O135: 399 | P135: 229 | Q135: -213 | R135: -213 | S135: -586 | T135: -587 | U135: -624 | V135: -92 | W135: -92 | X135: -30 | Y135: 209 | Z135: 197 | AA135: 231 | AB135: 231 | AC135: =AB135 -> 231 | AD135: =AC135 -> 231 | AE135: =AD135 -> 231 | AF135: =AE135 -> 231 | AG135: 231 | AH135: =AG135 -> 231 | AI135: =AH135 -> 231 | AJ135: =AI135 -> 231 | AK135: =AJ135 -> 231 | AL135: 231 | AM135: =AL135 -> 231 | AN135: =AM135 -> 231 | AO135: =AN135 -> 231 | AP135: =AO135 -> 231 | AQ135: 231
B136: Total shareholders' equity | D136: =SUM(D133:D135) -> 11105 | E136: 11700 | F136: 12368 | G136: 12707 | H136: 12707 | I136: 12894 | J136: 13405 | K136: 12300 | L136: 12258 | M136: 12258 | N136: 12165 | O136: 12323 | P136: 12722 | Q136: 12407 | R136: 12407 | S136: =SUM(S133:S135) -> 11993 | T136: 11758 | U136: 9782 | V136: 9812 | W136: 9812 | X136: 8992 | Y136: 8729 | Z136: 8961 | AA136: 9040 | AB136: =AA136 -> 9040 | AC136: =SUM(AC133:AC135) -> 9999.271924 | AD136: 10908.7509 | AE136: 11923.15211 | AF136: 12935.84825 | AG136: 12935.84825 | AH136: =SUM(AH133:AH135) -> 14103.54608 | AI136: 15209.28068 | AJ136: 16438.00834 | AK136: 17674.04594 | AL136: 17674.04594 | AM136: =SUM(AM133:AM135) -> 19068.23751 | AN136: 20397.39691 | AO136: 21859.32765 | AP136: 23349.97918 | AQ136: 23349.97918
B137: Total liabilities and equity | D137: =D136+D129 -> 18521 | E137: 19167 | F137: 20541 | G137: 21600 | H137: 21600 | I137: =I136+I129 -> 20766 | J137: =J136+J129 -> 22583 | K137: =K136+K129 -> 20987 | L137: =L136+L129 -> 21379 | M137: =M136+M129 -> 21379 | N137: 21156 | O137: 22652 | P137: 23152 | Q137: 23259 | R137: 23259 | S137: =S136+S129 -> 23647 | T137: 24055 | U137: 22552 | V137: 22536 | W137: 22536 | X137: 22483 | Y137: 22677 | Z137: 22921 | AA137: =AA136+AA129 -> 23717 | AB137: 23717 | AC137: 24418.89014 | AD137: 26077.22278 | AE137: 26519.68614 | AF137: 28124.78006 | AG137: 28124.78006 | AH137: =AH136+AH129 -> 28411.76432 | AI137: 30925.72346 | AJ137: 30945.67313 | AK137: 33423.89284 | AL137: 33423.89284 | AM137: =AM136+AM129 -> 33264.52837 | AN137: 36714.82007 | AO137: 36281.01233 | AP137: 39716.27076 | AQ137: 39716.27076
D138: =D137-D118 -> 0 | E138: =E137-E118 -> 0 | F138: =ROUND((F137-F118),0) -> 0 | G138: 0 | H138: 0 | I138: =ROUND((I137-I118),0) -> 0 | J138: 0 | K138: 0 | L138: 0 | M138: =ROUND((M137-M118),0) -> 0 | N138: =ROUND((N137-N118),0) -> 0 | O138: 0 | P138: 0 | Q138: 0 | R138: 0 | S138: 0 | T138: 0 | U138: 0 | V138: 0 | W138: 0 | X138: 0 | Y138: 0 | Z138: 0 | AA138: 0 | AB138: 0 | AC138: 0 | AD138: 0 | AE138: 0 | AF138: 0 | AG138: 0 | AH138: =ROUND((AH137-AH118),0) -> 0 | AI138: 0 | AJ138: 0 | AK138: 0 | AL138: 0 | AM138: =ROUND((AM137-AM118),0) -> 0 | AN138: 0 | AO138: 0 | AP138: 0 | AQ138: 0
B139: Balance Sheet Ratios & Assumptions | D139: Aug-14 | E139: Nov-14 | F139: Feb-15 | G139: May-15 | H139: May-15 | I139: Aug-15 | J139: Nov-15 | K139: Feb-16 | L139: May-16 | M139: May-16 | N139: Aug-16 | O139: Nov-16 | P139: Feb-17 | Q139: May-17 | R139: May-17 | S139: Aug-17 | T139: Nov-17 | U139: Feb-18 | V139: May-18 | W139: May-18 | X139: Aug-18 | Y139: Nov-18 | Z139: Feb-19 | AA139: May-19 | AB139: May-19 | AC139: Aug-19 | AD139: Nov-19 | AE139: Feb-20 | AF139: May-20 | AG139: May-20 | AH139: Aug-20 | AI139: Nov-20 | AJ139: Feb-21 | AK139: May-21 | AL139: May-21 | AM139: Aug-22 | AN139: Nov-22 | AO139: Feb-22 | AP139: May-22 | AQ139: May-22
D140: F1Q15 | E140: F2Q15 | F140: F3Q15 | G140: F4Q15 | H140: FY 2015 | I140: F1Q16 | J140: F2Q16 | K140: F3Q16 | L140: F4Q16 | M140: FY 2016 | N140: F1Q17 | O140: F2Q17 | P140: F3Q17 | Q140: F4Q17 | R140: FY 2017 | S140: F1Q18 | T140: F2Q18 | U140: F3Q18 | V140: F4Q18 | W140: FY 2018 | X140: F1Q19 | Y140: F2Q19 | Z140: F3Q19 | AA140: F4Q19 | AB140: FY 2019 | AC140: F1Q20E | AD140: F2Q20E | AE140: F3Q20E | AF140: F4Q20E | AG140: FY 2020 E | AH140: F1Q21E | AI140: F2Q21E | AJ140: F3Q21E | AK140: F4Q21E | AL140: FY 2021 E | AM140: F1Q22E | AN140: F2Q22E | AO140: F3Q22E | AP140: F4Q22E | AQ140: FY 2022 E
B141: Ratios
B142: Inventory turnover | E142: =E15/(AVERAGE(D111,E111)) -> 0.9909535452 | F142: =F15/(AVERAGE(E111,F111)) -> 0.960933778 | G142: =G15/(AVERAGE(F111,G111)) -> 0.975416521 | I142: =I15/(AVERAGE(G111,I111)) -> 1.009941721 | J142: =J15/(AVERAGE(I111,J111)) -> 0.9285555802 | K142: =K15/(AVERAGE(J111,K111)) -> 0.9451577802 | L142: =L15/(AVERAGE(K111,L111)) -> 0.9456936784 | N142: =N15/(AVERAGE(L111,N111)) -> 1.014588042 | O142: =O15/(AVERAGE(N111,O111)) -> 0.9193272233 | P142: =P15/(AVERAGE(O111,P111)) -> 0.9396889112 | Q142: =Q15/(AVERAGE(P111,Q111)) -> 0.9720636828 | S142: =S15/(AVERAGE(Q111,S111)) -> 0.9951295539 | T142: =T15/(AVERAGE(S111,T111)) -> 0.9255006169 | U142: =U15/(AVERAGE(T111,U111)) -> 0.9438832772 | V142: =V15/(AVERAGE(U111,V111)) -> 1.018349487 | X142: =X15/(AVERAGE(V111,X111)) -> 1.058543097 | Y142: =Y15/(AVERAGE(X111,Y111)) -> 0.992746114 | Z142: =Z15/(AVERAGE(Y111,Z111)) -> 0.9760251782 | AA142: =AA15/(AVERAGE(Z111,AA111)) -> 1.005889282 | AC142: =X142 -> 1.058543097 | AD142: =Y142 -> 0.992746114 | AE142: 0.9760251782 | AF142: 1.005889282 | AH142: =AC142 -> 1.058543097 | AI142: =AD142 -> 0.992746114 | AJ142: =AE142 -> 0.9760251782 | AK142: =AF142 -> 1.005889282 | AM142: =AH142 -> 1.058543097 | AN142: =AI142 -> 0.992746114 | AO142: =AJ142 -> 0.9760251782 | AP142: =AK142 -> 1.005889282
B143: Days of inventory on hand* | E143: =90/E142 -> 90.82161362 | F143: =90/F142 -> 93.65889936 | G143: =90/G142 -> 92.2682752 | I143: =90/I142 -> 89.11405295 | J143: =90/J142 -> 96.92473118 | K143: 95.22219664 | L143: =90/L142 -> 95.16823688 | N143: =90/N142 -> 88.70595383 | O143: =90/O142 -> 97.89767748 | P143: 95.77637762 | Q143: =90/Q142 -> 92.58652658 | S143: =90/S142 -> 90.44048551 | T143: =90/T142 -> 97.24466776 | U143: 95.35077289 | V143: =90/V142 -> 88.37830346 | X143: =90/X142 -> 85.02251847 | Y143: =90/Y142 -> 90.65762004 | Z143: 92.21073596 | AA143: =90/AA142 -> 89.47306792 | AC143: =90/AC142 -> 85.02251847 | AD143: =90/AD142 -> 90.65762004 | AE143: 92.21073596 | AF143: 89.47306792 | AH143: =90/AH142 -> 85.02251847 | AI143: =90/AI142 -> 90.65762004 | AJ143: 92.21073596 | AK143: 89.47306792 | AM143: =90/AM142 -> 85.02251847 | AN143: =90/AN142 -> 90.65762004 | AO143: 92.21073596 | AP143: 89.47306792
B144: Receivables turnover | E144: =E14/(AVERAGE(E110,D110)) -> 2.095400341 | F144: =F14/(AVERAGE(F110,E110)) -> 2.210042957 | G144: =G14/(AVERAGE(G110,F110)) -> 2.33884546 | I144: =I14/(AVERAGE(I110,G110)) -> 2.532049353 | J144: =J14/(AVERAGE(J110,I110)) -> 2.285799257 | K144: =K14/(AVERAGE(K110,J110)) -> 2.360617193 | L144: =L14/(AVERAGE(L110,K110)) -> 2.494779846 | N144: =N14/(AVERAGE(N110,L110)) -> 2.677996158 | O144: =O14/(AVERAGE(O110,N110)) -> 2.33580811 | P144: =P14/(AVERAGE(P110,O110)) -> 2.332503458 | Q144: =Q14/(AVERAGE(Q110,P110)) -> 2.335980617 | S144: =S14/(AVERAGE(S110,Q110)) -> 2.403285639 | T144: =T14/(AVERAGE(T110,S110)) -> 2.285943346 | U144: =U14/(AVERAGE(U110,T110)) -> 2.426468602 | V144: =V14/(AVERAGE(V110,U110)) -> 2.685596708 | X144: =X14/(AVERAGE(X110,V110)) -> 2.541645376 | Y144: =Y14/(AVERAGE(Y110,X110)) -> 2.160903642 | Z144: =Z14/(AVERAGE(Z110,Y110)) -> 2.16098932 | AA144: =AA14/(AVERAGE(AA110,Z110)) -> 2.309035257 | AC144: =X144 -> 2.541645376 | AD144: =Y144 -> 2.160903642 | AE144: =Z144 -> 2.16098932 | AF144: =AA144 -> 2.309035257 | AH144: =AC144 -> 2.541645376 | AI144: =AD144 -> 2.160903642 | AJ144: =AE144 -> 2.16098932 | AK144: =AF144 -> 2.309035257 | AM144: =AH144 -> 2.541645376 | AN144: =AI144 -> 2.160903642 | AO144: =AJ144 -> 2.16098932 | AP144: =AK144 -> 2.309035257
B145: Days sales outstanding* | E145: =90/E144 -> 42.95121951 | F145: =90/F144 -> 40.72319035 | G145: =90/G144 -> 38.48052449 | I145: =90/I144 -> 35.54433088 | J145: =90/J144 -> 39.3735363 | K145: 38.12562251 | L145: =90/L144 -> 36.07532751 | N145: =90/N144 -> 33.60721775 | O145: =90/O144 -> 38.53056235 | P145: 38.5851518 | Q145: =90/Q144 -> 38.52771695 | S145: =90/S144 -> 37.44873208 | T145: =90/T144 -> 39.37105448 | U145: 37.09093945 | V145: =90/V144 -> 33.51210542 | X145: =90/X144 -> 35.41013269 | Y145: =90/Y144 -> 41.64924259 | Z145: 41.6475913 | AA145: =90/AA144 -> 38.97731736 | AC145: =90/AC144 -> 35.41013269 | AD145: 41.64924259 | AE145: 41.6475913 | AF145: 38.97731736 | AH145: =90/AH144 -> 35.41013269 | AI145: 41.64924259 | AJ145: 41.6475913 | AK145: 38.97731736 | AM145: =90/AM144 -> 35.41013269 | AN145: 41.64924259 | AO145: 41.6475913 | AP145: 38.97731736
B146: Short-term investments to sales | E146: =E109/E14 -> 0.3306233062 | F146: =F109/F14 -> 0.3144772118 | G146: =G109/G14 -> 0.2663581437 | I146: =I109/I14 -> 0.2569526979 | J146: =J109/J14 -> 0.2946916472 | K146: =K109/K14 -> 0.2567231076 | L146: =L109/L14 -> 0.2812954876 | N146: =N109/N14 -> 0.2348526653 | O146: =O109/O14 -> 0.1960880196 | P146: =P109/P14 -> 0.2536764706 | Q146: =Q109/Q14 -> 0.2732511237 | S146: =S109/S14 -> 0.2321940463 | T146: =T109/T14 -> 0.2437456161 | U146: =U109/U14 -> 0.1212154942 | V146: =V109/V14 -> 0.1017468587 | X146: =X109/X14 -> 0.0992159228 | Y146: =Y109/Y14 -> 0.06592703222 | Z146: =Z109/Z14 -> 0.03652065342 | AA146: =AA109/AA14 -> 0.01934406913 | AC146: =X146 -> 0.0992159228 | AD146: =Y146 -> 0.06592703222 | AE146: =Z146 -> 0.03652065342 | AF146: =AA146 -> 0.01934406913 | AH146: =AC146 -> 0.0992159228 | AI146: =AD146 -> 0.06592703222 | AJ146: =AE146 -> 0.03652065342 | AK146: =AF146 -> 0.01934406913 | AM146: =AH146 -> 0.0992159228 | AN146: =AI146 -> 0.06592703222 | AO146: =AJ146 -> 0.03652065342 | AP146: =AK146 -> 0.01934406913
B147: PP&E turnover | E147: =E14/(AVERAGE(E114,D114)) -> 2.535211268 | F147: =F14/(AVERAGE(F114,E114)) -> 2.577301779 | G147: =G14/(AVERAGE(G114,F114)) -> 2.649072025 | I147: =I14/(AVERAGE(I114,G114)) -> 2.748325984 | J147: =J14/(AVERAGE(J114,I114)) -> 2.421931621 | K147: =K14/(AVERAGE(K114,J114)) -> 2.447288239 | L147: =L14/(AVERAGE(L114,K114)) -> 2.407358739 | N147: =N14/(AVERAGE(N114,L114)) -> 2.555273548 | O147: =O14/(AVERAGE(O114,N114)) -> 2.291958532 | P147: =P14/(AVERAGE(P114,O114)) -> 2.291615709 | Q147: =Q14/(AVERAGE(Q114,P114)) -> 2.23001799 | S147: =S14/(AVERAGE(S114,Q114)) -> 2.246439628 | T147: =T14/(AVERAGE(T114,S114)) -> 2.085578447 | U147: =U14/(AVERAGE(U114,T114)) -> 2.1352347 | V147: =V14/(AVERAGE(V114,U114)) -> 2.236974406 | X147: =X14/(AVERAGE(X114,V114)) -> 2.225254446 | Y147: =Y14/(AVERAGE(Y114,X114)) -> 2.065895317 | Z147: =Z14/(AVERAGE(Z114,Y114)) -> 2.072229409 | AA147: =AA14/(AVERAGE(AA114,Z114)) -> 2.159457167 | AC147: =AC14/(AVERAGE(AC114,AB114)) -> 2.156649153 | AD147: =AD14/(AVERAGE(AD114,AC114)) -> 2.076722784 | AE147: =AE14/(AVERAGE(AE114,AD114)) -> 2.103982135 | AF147: =AF14/(AVERAGE(AF114,AE114)) -> 2.137527181 | AH147: =AH14/(AVERAGE(AH114,AG114)) -> 2.081910055 | AI147: =AI14/(AVERAGE(AI114,AH114)) -> 1.949676427 | AJ147: =AJ14/(AVERAGE(AJ114,AI114)) -> 1.925206603 | AK147: =AK14/(AVERAGE(AK114,AJ114)) -> 1.908364699 | AM147: =AM14/(AVERAGE(AM114,AL114)) -> 1.812181043 | AN147: =AN14/(AVERAGE(AN114,AM114)) -> 1.655237632 | AO147: =AO14/(AVERAGE(AO114,AN114)) -> 1.599717869 | AP147: =AP14/(AVERAGE(AP114,AO114)) -> 1.555207027
B148: Payables turnover* | E148: =E15/(AVERAGE(E123,D123)) -> 2.004451039 | F148: =F15/(AVERAGE(F123,E123)) -> 2.071373556 | G148: =G15/(AVERAGE(G123,F123)) -> 2.118421053 | I148: =I15/(AVERAGE(I123,G123)) -> 2.174704724 | J148: =J15/(AVERAGE(J123,I123)) -> 2.175155925 | K148: =K15/(AVERAGE(K123,J123)) -> 2.393496831 | L148: =L15/(AVERAGE(L123,K123)) -> 2.283226633 | N148: =N15/(AVERAGE(N123,L123)) -> 2.308015892 | O148: =O15/(AVERAGE(O123,N123)) -> 2.21499636 | P148: =P15/(AVERAGE(P123,O123)) -> 2.358096197 | Q148: =Q15/(AVERAGE(Q123,P123)) -> 2.435524335 | S148: =S15/(AVERAGE(S123,Q123)) -> 2.453410183 | T148: =T15/(AVERAGE(T123,S123)) -> 2.290815128 | U148: =U15/(AVERAGE(U123,T123)) -> 2.460263286 | V148: =V15/(AVERAGE(V123,U123)) -> 2.552358491 | X148: =X15/(AVERAGE(X123,V123)) -> 2.407198612 | Y148: =Y15/(AVERAGE(Y123,X123)) -> 2.147544324 | Z148: =Z15/(AVERAGE(Z123,Y123)) -> 2.160213071 | AA148: =AA15/(AVERAGE(AA123,Z123)) -> 2.256962797 | AC148: =X148 -> 2.407198612 | AD148: =Y148 -> 2.147544324 | AE148: =Z148 -> 2.160213071 | AF148: =AA148 -> 2.256962797 | AH148: =AC148 -> 2.407198612 | AI148: =AD148 -> 2.147544324 | AJ148: =AE148 -> 2.160213071 | AK148: =AF148 -> 2.256962797 | AM148: =AH148 -> 2.407198612 | AN148: =AI148 -> 2.147544324 | AO148: =AJ148 -> 2.160213071 | AP148: =AK148 -> 2.256962797
B149: Number of days of payables | E149: =90/E148 -> 44.90007402 | F149: =90/F148 -> 43.44942985 | G149: =90/G148 -> 42.48447205 | I149: =90/I148 -> 41.38492872 | J149: =90/J148 -> 41.37634409 | K149: =90/K148 -> 37.6018881 | L149: =90/L148 -> 39.4179004 | N149: =90/N148 -> 38.9945322 | O149: =90/O148 -> 40.63212095 | P149: 38.16638189 | Q149: =90/Q148 -> 36.95302843 | S149: =90/S148 -> 36.68363352 | T149: =90/T148 -> 39.28732568 | U149: 36.58145065 | V149: =90/V148 -> 35.26150434 | X149: =90/X148 -> 37.38785804 | Y149: =90/Y148 -> 41.90833175 | Z149: 41.6625569 | AA149: =90/AA148 -> 39.87659881 | AC149: =90/AC148 -> 37.38785804 | AD149: 41.90833175 | AE149: 41.6625569 | AF149: 39.87659881 | AH149: =90/AH148 -> 37.38785804 | AI149: 41.90833175 | AJ149: 41.6625569 | AK149: 39.87659881 | AM149: =90/AM148 -> 37.38785804 | AN149: 41.90833175 | AO149: 41.6625569 | AP149: 39.87659881
B150: Cash conversion cycle* | E150: =E143+E145-E149 -> 88.87275911 | F150: =F143+F145-F149 -> 90.93265986 | G150: =G143+G145-G149 -> 88.26432764 | I150: =I143+I145-I149 -> 83.27345511 | J150: =J143+J145-J149 -> 94.9219234 | K150: =K143+K145-K149 -> 95.74593105 | L150: =L143+L145-L149 -> 91.82566398 | N150: =N143+N145-N149 -> 83.31863937 | O150: =O143+O145-O149 -> 95.79611888 | P150: 96.19514753 | Q150: =Q143+Q145-Q149 -> 94.1612151 | S150: =S143+S145-S149 -> 91.20558408 | T150: =T143+T145-T149 -> 97.32839656 | U150: 95.86026168 | V150: =V143+V145-V149 -> 86.62890454 | X150: =X143+X145-X149 -> 83.04479311 | Y150: =Y143+Y145-Y149 -> 90.39853088 | Z150: 92.19577036 | AA150: =AA143+AA145-AA149 -> 88.57378647 | AC150: =AC143+AC145-AC149 -> 83.04479311 | AD150: 90.39853088 | AE150: 92.19577036 | AF150: 88.57378647 | AH150: =AH143+AH145-AH149 -> 83.04479311 | AI150: 90.39853088 | AJ150: 92.19577036 | AK150: 88.57378647 | AM150: =AM143+AM145-AM149 -> 83.04479311 | AN150: 90.39853088 | AO150: 92.19577036 | AP150: 88.57378647
B151: *Assumes 90 days in each quarter
B154: Nike Cash Flow Statement
B155: (Dollars in millions, except per share data) | D155: Aug-14 | E155: Nov-14 | F155: Feb-15 | G155: May-15 | H155: May-15 | I155: Aug-15 | J155: Nov-15 | K155: Feb-16 | L155: May-16 | M155: May-16 | N155: Aug-16 | O155: Nov-16 | P155: Feb-17 | Q155: May-17 | R155: May-17 | S155: Aug-17 | T155: Nov-17 | U155: Feb-18 | V155: May-18 | W155: May-18 | X155: Aug-18 | Y155: Nov-18 | Z155: Feb-19 | AA155: May-19 | AB155: May-19 | AC155: Aug-19 | AD155: Nov-19 | AE155: Feb-20 | AF155: May-20 | AG155: May-20 | AH155: Aug-20 | AI155: Nov-20 | AJ155: Feb-21 | AK155: May-21 | AL155: May-21 | AM155: Aug-22 | AN155: Nov-22 | AO155: Feb-22 | AP155: May-22 | AQ155: May-22
D156: F1Q15 | E156: F2Q15 | F156: F3Q15 | G156: F4Q15 | H156: FY 2015 | I156: F1Q16 | J156: F2Q16 | K156: F3Q16 | L156: F4Q16 | M156: FY 2016 | N156: F1Q17 | O156: F2Q17 | P156: F3Q17 | Q156: F4Q17 | R156: FY 2017 | S156: F1Q18 | T156: F2Q18 | U156: F3Q18 | V156: F4Q18 | W156: FY 2018 | X156: F1Q19 | Y156: F2Q19 | Z156: F3Q19 | AA156: F4Q19 | AB156: FY 2019 | AC156: F1Q20E | AD156: F2Q20E | AE156: F3Q20E | AF156: F4Q20E | AG156: FY 2020 E | AH156: F1Q21E | AI156: F2Q21E | AJ156: F3Q21E | AK156: F4Q21E | AL156: FY 2021 E | AM156: F1Q22E | AN156: F2Q22E | AO156: F3Q22E | AP156: F4Q22E | AQ156: FY 2022 E
B157: Cash flows from operating activities
B158: Net income (loss) | D158: =D25 -> 962 | E158: 655 | F158: 791 | G158: 865 | H158: =SUM(D158:G158) -> 3273 | I158: 1179 | J158: 785 | K158: 950 | L158: =L25 -> 846 | M158: =SUM(I158:L158) -> 3760 | N158: =N25 -> 1249 | O158: =O25 -> 842 | P158: =P25 -> 1141 | Q158: =Q25 -> 1008 | R158: =SUM(N158:Q158) -> 4240 | S158: =S25 -> 950 | T158: =T25 -> 767 | U158: =U25 -> -921 | V158: =V25 -> 1137 | W158: =SUM(S158:V158) -> 1933 | X158: =X25 -> 1092 | Y158: =Y25 -> 847 | Z158: =Z25 -> 1101 | AA158: =AA25 -> 989 | AB158: =SUM(X158:AA158) -> 4029 | AC158: =AC25 -> 1521.087251 | AD158: =AD25 -> 1447.160607 | AE158: =AE25 -> 1579.109739 | AF158: =AF25 -> 1554.377018 | AG158: =SUM(AC158:AF158) -> 6101.734615 | AH158: =AH25 -> 1725.555594 | AI158: =AI25 -> 1645.987015 | AJ158: =AJ25 -> 1789.430712 | AK158: =AK25 -> 1780.313159 | AL158: =SUM(AH158:AK158) -> 6941.28648 | AM158: =AM25 -> 1954.76028 | AN158: =AN25 -> 1868.7152 | AO158: =AO25 -> 2025.359622 | AP158: =AP25 -> 2034.210352 | AQ158: =SUM(AM158:AP158) -> 7883.045455
B159: Depreciation | D159: 147 | E159: 154 | F159: 152 | G159: 153 | H159: 606 | I159: 154 | J159: 160 | K159: 167 | L159: 168 | M159: 649 | N159: 173 | O159: 173 | P159: 175 | Q159: 185 | R159: 706 | S159: 179 | T159: 187 | U159: 185 | V159: 196 | W159: 747 | X159: 178 | Y159: 171 | Z159: 178 | AA159: 178 | AB159: 705 | AC159: =(AVERAGE(AA114,Z114))*AC205 -> 235.8 | AD159: =(AVERAGE(AC114,AA114))*AD205 -> 238.949 | AE159: =(AVERAGE(AD114,AC114))*AE205 -> 243.285555 | AF159: =(AVERAGE(AE114,AD114))*AF205 -> 249.3796047 | AG159: 967.4141597 | AH159: =(AVERAGE(AF114,AE114))*AH205 -> 257.390879 | AI159: =(AVERAGE(AH114,AF114))*AI205 -> 267.4888685 | AJ159: =(AVERAGE(AI114,AH114))*AJ205 -> 279.8661966 | AK159: =(AVERAGE(AJ114,AI114))*AK205 -> 294.7415604 | AL159: 1099.487504 | AM159: =(AVERAGE(AK114,AJ114))*AM205 -> 312.3627158 | AN159: =(AVERAGE(AM114,AK114))*AN205 -> 333.0098201 | AO159: =(AVERAGE(AN114,AM114))*AO205 -> 356.9991832 | AP159: =(AVERAGE(AO114,AN114))*AP205 -> 384.6874759 | AQ159: 1387.059195
B160: Stock-based compensation | D160: 43 | E160: 49 | F160: 48 | G160: 51 | H160: 191 | I160: 54 | J160: 62 | K160: 60 | L160: =236-I160-J160-K160 -> 60 | M160: 236 | N160: 57 | O160: 54 | P160: 51 | Q160: 53 | R160: 215 | S160: 50 | T160: 53 | U160: 55 | V160: 60 | W160: 218 | X160: 41 | Y160: 92 | Z160: 93 | AA160: 99 | AB160: 325 | AG160: 0 | AL160: 0 | AQ160: 0
B161: Amortization and other | D161: =35-34 -> 1 | E161: -6 | F161: 76 | G161: -141 | H161: -70 | I161: -20 | J161: -11 | K161: 43 | L161: -79 | M161: -67 | N161: -43 | O161: -15 | P161: -134 | Q161: -71 | R161: -263 | S161: -53 | T161: -20 | U161: 660 | V161: 87 | W161: 674 | X161: 21 | Y161: 0 | Z161: 55 | AA161: -27 | AB161: 49 | AG161: 0 | AL161: 0 | AQ161: 0
B162: Net foreign currency adjustments | D162: 0 | E162: 0 | F162: 411 | G162: 13 | H162: 424 | I162: 32 | J162: 42 | K162: 118 | L162: =98-I162-J162-K162 -> -94 | M162: 98 | N162: -61 | O162: 27 | P162: -56 | Q162: -27 | R162: -117 | S162: -19 | T162: -48 | U162: -63 | V162: 31 | W162: -99 | X162: 166 | Y162: 44 | Z162: 8 | AA162: 15 | AB162: 233 | AG162: 0 | AL162: 0 | AQ162: 0
B163: Net gain on divestitures and other | H163: 0 | M163: 0 | R163: 0 | W163: 0 | AB163: 0 | AG163: 0 | AL163: 0 | AQ163: 0
B165: Change in operating assets and liabilities
B166: Accounts receivable | D166: -203 | E166: 26 | F166: 68 | G166: -107 | H166: -216 | I166: 52 | J166: -191 | K166: 15 | L166: 184 | M166: 60 | N166: -284 | O166: -34 | P166: -228 | Q166: 120 | R166: =SUM(N166:Q166) -> -426 | S166: -101 | T166: 244 | U166: -140 | V166: 184 | W166: =SUM(S166:V166) -> 187 | X166: -294 | Y166: -30 | Z166: -136 | AA166: 190 | AB166: =SUM(X166:AA166) -> -270 | AC166: =-(AC110-AB110) -> 433.8338301 | AD166: -1675.989441 | AE166: 1316.273714 | AF166: -1135.143081 | AG166: =SUM(AC166:AF166) -> -1061.024977 | AH166: =-(AH110-AG110) -> 1901.841223 | AI166: -3238.00931 | AJ166: 2835.078349 | AK166: -2658.195483 | AL166: =SUM(AH166:AK166) -> -1159.285221 | AM166: =-(AM110-AL110) -> 3487.243792 | AN166: -4928.22596 | AO166: 4475.664409 | AP166: -4305.137514 | AQ166: =SUM(AM166:AP166) -> -1270.455273
B167: Inventories | D167: -111 | E167: -207 | F167: -192 | G167: -111 | H167: -621 | I167: -100 | J167: -254 | K167: -5 | L167: -231 | M167: -590 | N167: -62 | O167: -238 | P167: 143 | Q167: -74 | R167: -231 | S167: -96 | T167: -147 | U167: -2 | V167: -10 | W167: -255 | X167: -25 | Y167: -238 | Z167: 37 | AA167: -264 | AB167: -490 | AC167: -50.42581326 | AD167: -462.2864021 | AE167: -202.3987162 | AF167: -15.22242724 | AG167: -730.3333588 | AH167: 499.4044266 | AI167: -1045.686194 | AJ167: 309.2884092 | AK167: -569.9431462 | AL167: -806.9365045 | AM167: 1092.249017 | AN167: -1675.439508 | AO167: 857.1411489 | AP167: -1168.187369 | AQ167: -894.2367118
B168: Prepaid expenses and other current assets | D168: 0 | E168: -58 | F168: 27 | G168: -113 | H168: -144 | I168: -73 | J168: -41 | K168: -35 | L168: -12 | M168: -161 | N168: -63 | O168: -22 | P168: -67 | Q168: 32 | R168: -120 | S168: -543 | T168: 335 | U168: -266 | V168: 509 | W168: 35 | X168: -83 | Y168: -41 | Z168: -43 | AA168: -36 | AB168: -203 | AC168: =(AC112-AB112) -> 0 | AD168: =(AD112-AC112) -> 0 | AE168: 0 | AF168: 0 | AG168: 0 | AH168: =(AH112-AG112) -> 0 | AI168: =(AI112-AH112) -> 0 | AJ168: 0 | AK168: 0 | AL168: 0 | AM168: =(AM112-AL112) -> 0 | AN168: =(AN112-AM112) -> 0 | AO168: 0 | AP168: 0 | AQ168: 0
B169: Accounts payable and other liabilities | D169: -251 | E169: 34 | F169: 722 | G169: 732 | H169: 1237 | I169: -787 | J169: -7 | K169: -437 | L169: 342 | M169: -889 | N169: -245 | O169: 176 | P169: 42 | Q169: -337 | R169: -364 | S169: 208 | T169: -48 | U169: 1279 | V169: 76 | W169: 1515 | X169: 205 | Y169: 679 | Z169: -225 | AA169: 866 | AB169: 1525 | AC169: =AC123-AB123+AC121-AB121+AC124-AB124+AC125-AB125 -> -257.3817839 | AD169: =AD123-AC123+AD121-AC121+AD124-AC124+AD125-AC125 -> 748.8536578 | AE169: -571.937844 | AF169: =AF123-AE123+AF121-AE121+AF124-AE124+AF125-AE125 -> 592.397779 | AG169: 511.931809 | AH169: =AH123-AG123+AH121-AG121+AH124-AG124+AH125-AG125 -> -880.7135716 | AI169: =AI123-AH123+AI121-AH121+AI124-AH124+AI125-AH125 -> 1408.224542 | AJ169: =AJ123-AI123+AJ121-AI121+AJ124-AI124+AJ125-AI125 -> -1208.777984 | AK169: =AK123-AJ123+AK121-AJ121+AK124-AJ124+AK125-AJ125 -> 1242.182103 | AL169: 560.9150903 | AM169: =AM123-AL123+AM121-AL121+AM124-AL124+AM125-AL125 -> -1553.556045 | AN169: =AN123-AM123+AN121-AM121+AN124-AM124+AN125-AM125 -> 2121.132306 | AO169: =AO123-AN123+AO121-AN121+AO124-AN124+AO125-AN125 -> -1895.738476 | AP169: =AP123-AO123+AP121-AO121+AP124-AO124+AP125-AO125 -> 1944.606895 | AQ169: 616.4446801
B170: Net cash provided by operating activities | D170: =SUM(D158:D169) -> 588 | E170: 647 | F170: 2103 | G170: 1342 | H170: 4680 | I170: 491 | J170: 545 | K170: 876 | L170: 1184 | M170: 3096 | N170: =SUM(N158:N169) -> 721 | O170: 963 | P170: 1067 | Q170: 889 | R170: 3640 | S170: 575 | T170: 1323 | U170: 787 | V170: 2270 | W170: 4955 | X170: 1301 | Y170: 1524 | Z170: 1068 | AA170: 2010 | AB170: 5903 | AC170: 1882.913484 | AD170: 296.6874226 | AE170: 2364.332448 | AF170: 1245.788894 | AG170: 5789.722248 | AH170: =SUM(AH158:AH169) -> 3503.478551 | AI170: -961.9950783 | AJ170: 4004.885683 | AK170: 89.09819401 | AL170: 6635.467349 | AM170: =SUM(AM158:AM169) -> 5293.05976 | AN170: -2280.808142 | AO170: 5819.425887 | AP170: -1109.82016 | AQ170: 7721.857345
B172: Cash flows from financing activities
B173: Proceeds from issuance of debt | D173: 0 | E173: 0 | F173: 0 | G173: 0 | H173: =SUM(D173:G173) -> 0 | I173: 0 | J173: 981 | K173: 0 | L173: 0 | M173: =SUM(I173:L173) -> 981 | N173: 0 | O173: 1482 | P173: 0 | Q173: 0 | R173: =SUM(N173:Q173) -> 1482 | S173: 0 | T173: 0 | U173: 0 | V173: 0 | W173: =SUM(S173:V173) -> 0 | X173: 0 | Y173: 0 | Z173: 0 | AA173: 0 | AB173: =SUM(X173:AA173) -> 0 | AC173: 0 | AD173: 0 | AE173: 0 | AF173: 0 | AG173: =SUM(AC173:AF173) -> 0 | AH173: 0 | AI173: 0 | AJ173: 0 | AK173: 0 | AL173: =SUM(AH173:AK173) -> 0 | AM173: 0 | AN173: 0 | AO173: 0 | AP173: 0 | AQ173: =SUM(AM173:AP173) -> 0
B174: Long-term debt payments | D174: -2 | E174: -2 | F174: -1 | G174: -2 | H174: -7 | I174: -1 | J174: -102 | K174: -1 | L174: -2 | M174: -106 | N174: -2 | O174: -1 | P174: -40 | Q174: -1 | R174: -44 | S174: -1 | T174: -2 | U174: -1 | V174: -2 | W174: -6 | X174: -1 | Y174: -2 | Z174: -2 | AA174: -1 | AB174: -6 | AC174: 0 | AD174: 0 | AE174: 0 | AF174: 0 | AG174: 0 | AH174: 0 | AI174: 0 | AJ174: 0 | AK174: 0 | AL174: 0 | AM174: 0 | AN174: 0 | AO174: 0 | AP174: 0 | AQ174: 0
B175: Notes payable | D175: -17 | E175: -41 | F175: -25 | G175: 20 | H175: -63 | I175: -48 | J175: 81 | K175: -101 | L175: 1 | M175: -67 | N175: 21 | O175: 0 | P175: 3 | Q175: 303 | R175: 327 | S175: 9 | T175: 895 | U175: -1218 | V175: 327 | W175: 13 | X175: -321 | Y175: -6 | Z175: 7 | AA175: -5 | AB175: -325 | AC175: =AC122-AB122 -> 0 | AD175: =AD122-AC122 -> 0 | AE175: 0 | AF175: 0 | AG175: 0 | AH175: =AH122-AG122 -> 0 | AI175: =AI122-AH122 -> 0 | AJ175: =AJ122-AI122 -> 0 | AK175: =AK122-AJ122 -> 0 | AL175: 0 | AM175: =AM122-AL122 -> 0 | AN175: =AN122-AM122 -> 0 | AO175: =AO122-AN122 -> 0 | AP175: =AP122-AO122 -> 0 | AQ175: 0
B176: Payments on capital lease obligations | D176: -6 | E176: -6 | F176: -4 | G176: -3 | H176: -19 | I176: 0 | J176: -3 | K176: -2 | L176: -2 | M176: -7 | N176: -2 | O176: -4 | P176: -8 | Q176: -3 | R176: -17 | S176: -6 | T176: -5 | U176: -5 | V176: -7 | W176: -23 | X176: -6 | Y176: -8 | Z176: -7 | AA176: -6 | AB176: -27 | AG176: 0 | AL176: 0 | AQ176: 0
B177: Proceeds from exercise of options and other issuance | D177: 127 | E177: 186 | F177: 59 | G177: 142 | H177: 514 | I177: 128 | J177: 200 | K177: 42 | L177: 137 | M177: 507 | N177: 112 | O177: 126 | P177: 101 | Q177: 150 | R177: 489 | S177: 158 | T177: 162 | U177: 234 | V177: 179 | W177: 733 | X177: 187 | Y177: 153 | Z177: 147 | AA177: 213 | AB177: 700 | AG177: 0 | AL177: 0 | AQ177: 0
B178: Repurchase of common stock | D178: -819 | E178: -424 | F178: -612 | G178: -679 | H178: =SUM(D178:G178) -> -2534 | I178: -588 | J178: -652 | K178: -1458 | L178: -540 | M178: =SUM(I178:L178) -> -3238 | N178: -1054 | O178: -900 | P178: -475 | Q178: -794 | R178: =SUM(N178:Q178) -> -3223 | S178: -804 | T178: -972 | U178: -918 | V178: -1560 | W178: =SUM(S178:V178) -> -4254 | X178: -1360 | Y178: -1277 | Z178: -768 | AA178: -881 | AB178: =SUM(X178:AA178) -> -4286 | AC178: =-AC101 -> -200 | AD178: =-AD101 -> -200 | AE178: =-AE101 -> -200 | AF178: =-AF101 -> -200 | AG178: =SUM(AC178:AF178) -> -800 | AH178: =-AH101 -> -200 | AI178: =-AI101 -> -200 | AJ178: =-AJ101 -> -200 | AK178: =-AK101 -> -200 | AL178: =SUM(AH178:AK178) -> -800 | AM178: =-AM101 -> -200 | AN178: =-AN101 -> -200 | AO178: =-AO101 -> -200 | AP178: =-AP101 -> -200 | AQ178: =SUM(AM178:AP178) -> -800
B179: Dividends - common and preferred | D179: -209 | E179: -207 | F179: -242 | G179: -241 | H179: =SUM(D179:G179) -> -899 | I179: -240 | J179: -239 | K179: -273 | L179: -270 | M179: =SUM(I179:L179) -> -1022 | N179: -269 | O179: -267 | P179: -298 | Q179: -299 | R179: =SUM(N179:Q179) -> -1133 | S179: -300 | T179: -295 | U179: -325 | V179: -323 | W179: =SUM(S179:V179) -> -1243 | X179: -320 | Y179: -318 | Z179: -348 | AA179: -346 | AB179: =SUM(X179:AA179) -> -1332 | AC179: =AC30*-AC26 -> -361.8153272 | AD179: =AD30*-AD26 -> -337.6816278 | AE179: =AE30*-AE26 -> -364.7085365 | AF179: =AF30*-AF26 -> -341.6808708 | AG179: =SUM(AC179:AF179) -> -1405.886362 | AH179: =AH30*-AH26 -> -357.8577662 | AI179: =AI30*-AI26 -> -340.2524148 | AJ179: =AJ30*-AJ26 -> -360.7030568 | AK179: =AK30*-AK26 -> -344.2755567 | AL179: =SUM(AH179:AK179) -> -1403.088795 | AM179: =AM30*-AM26 -> -360.5687074 | AN179: =AN30*-AN26 -> -339.5558008 | AO179: =AO30*-AO26 -> -363.4288869 | AP179: =AP30*-AP26 -> -343.558819 | AQ179: =SUM(AM179:AP179) -> -1407.112214
B180: Other | D180: 44 | E180: 72 | F180: 34 | G180: 68 | H180: 218 | I180: 75 | J180: 126 | K180: 30 | L180: 50 | M180: 281 | N180: 59 | O180: 19 | P180: 47 | Q180: 52 | R180: =SUM(N180:Q180) -> 177 | S180: -54 | T180: 1 | U180: -1 | V180: -1 | W180: =SUM(S180:V180) -> -55 | X180: -11 | Y180: 0 | Z180: -6 | AA180: 0 | AB180: =SUM(X180:AA180) -> -17 | AG180: =SUM(AC180:AF180) -> 0 | AL180: =SUM(AH180:AK180) -> 0 | AQ180: =SUM(AM180:AP180) -> 0
B181: Net cash provided by (used for) financing | D181: =SUM(D173:D180) -> -882 | E181: -422 | F181: -791 | G181: -695 | H181: -2790 | I181: -674 | J181: =SUM(J173:J180) -> 392 | K181: -1763 | L181: -626 | M181: -2671 | N181: =SUM(N173:N180) -> -1135 | O181: 455 | P181: -670 | Q181: -592 | R181: -1942 | S181: -998 | T181: -216 | U181: -2234 | V181: -1387 | W181: -4835 | X181: -1832 | Y181: -1458 | Z181: -977 | AA181: -1026 | AB181: -5293 | AC181: -561.8153272 | AD181: -537.6816278 | AE181: -564.7085365 | AF181: -541.6808708 | AG181: -2205.886362 | AH181: =SUM(AH173:AH180) -> -557.8577662 | AI181: -540.2524148 | AJ181: -560.7030568 | AK181: -544.2755567 | AL181: -2203.088795 | AM181: =SUM(AM173:AM180) -> -560.5687074 | AN181: -539.5558008 | AO181: -563.4288869 | AP181: -543.558819 | AQ181: -2207.112214
B183: Cash flows from investing activities
B184: Purchase of short-term investments | D184: -1296 | E184: -1292 | F184: -1166 | G184: -1182 | H184: =SUM(D184:G184) -> -4936 | I184: -1188 | J184: -1663 | K184: -908 | L184: -1608 | M184: =SUM(I184:L184) -> -5367 | N184: -1279 | O184: -1079 | P184: -1671 | Q184: -1899 | R184: =SUM(N184:Q184) -> -5928 | S184: -1663 | T184: -1339 | U184: -642 | V184: -1139 | W184: =SUM(S184:V184) -> -4783 | X184: -980 | Y184: -791 | Z184: -613 | AA184: -553 | AB184: =SUM(X184:AA184) -> -2937 | AC184: =-(AC109-AB109) -> 0 | AD184: =-(AD109-AC109) -> 0 | AE184: =-(AE109-AD109) -> 0 | AF184: =-(AF109-AE109) -> 0 | AG184: =SUM(AC184:AF184) -> 0 | AH184: =-(AH109-AG109) -> 0 | AI184: =-(AI109-AH109) -> 0 | AJ184: =-(AJ109-AI109) -> 0 | AK184: =-(AK109-AJ109) -> 0 | AL184: =SUM(AH184:AK184) -> 0 | AM184: =-(AM109-AL109) -> 0 | AN184: =-(AN109-AM109) -> 0 | AO184: =-(AO109-AN109) -> 0 | AP184: =-(AP109-AO109) -> 0 | AQ184: =SUM(AM184:AP184) -> 0
B185: Maturities of short-term investments | D185: 1074 | E185: 788 | F185: 762 | G185: 1031 | H185: 3655 | I185: 721 | J185: 789 | K185: 511 | L185: 903 | M185: 2924 | N185: 562 | O185: 1181 | P185: 690 | Q185: 1190 | R185: 3623 | S185: 1403 | T185: 826 | U185: 872 | V185: 512 | W185: 3613 | X185: 400 | Y185: 781 | Z185: 432 | AA185: 102 | AB185: 1715 | AG185: 0 | AL185: 0 | AQ185: 0
B186: Sales of short-term investments | D186: 762 | E186: 283 | F186: 673 | G186: 498 | H186: 2216 | I186: 450 | J186: 800 | K186: 689 | L186: 447 | M186: 2386 | N186: 960 | O186: 444 | P186: 501 | Q186: 518 | R186: 2423 | S186: 518 | T186: 526 | U186: 753 | V186: 699 | W186: 2496 | X186: 586 | Y186: 385 | Z186: 520 | AA186: 581 | AB186: 2072 | AG186: 0 | AL186: 0 | AQ186: 0
B187: Investments in reverse repurchase agreements | D187: 0 | E187: 0 | F187: -250 | G187: 100 | H187: -150 | I187: -50 | J187: 50 | K187: 150 | L187: 0 | M187: 150 | N187: 0 | O187: 0 | P187: 0 | Q187: 0 | R187: 0 | S187: 0 | T187: 0 | U187: 0 | V187: 0 | W187: 0 | X187: 0 | Y187: 0 | Z187: 0 | AA187: 0 | AB187: 0 | AG187: 0 | AL187: 0 | AQ187: 0
B188: Net additions to PPE | D188: -260 | E188: -225 | F188: -235 | G188: -240 | H188: =SUM(D188:G188) -> -960 | I188: =-327+9 -> -318 | J188: -288 | K188: -286 | L188: -241 | M188: -1133 | N188: -277 | O188: -223 | P188: -263 | Q188: -329 | R188: -1092 | S188: -270 | T188: -227 | U188: -231 | V188: -297 | W188: -1025 | X188: -339 | Y188: -287 | Z188: -215 | AA188: -273 | AB188: -1114 | AC188: =AA188*(1+AC208) -> -305.76 | AD188: =AC188*(1+AD208) -> -342.4512 | AE188: =AD188*(1+AE208) -> -383.545344 | AF188: =AE188*(1+AF208) -> -429.5707853 | AG188: -1461.327329 | AH188: =AF188*(1+AH208) -> -481.1192795 | AI188: =AH188*(1+AI208) -> -538.8535931 | AJ188: =AI188*(1+AJ208) -> -603.5160242 | AK188: =AJ188*(1+AK208) -> -675.9379471 | AL188: -2299.426844 | AM188: =AK188*(1+AM208) -> -757.0505008 | AN188: =AM188*(1+AN208) -> -847.8965609 | AO188: =AN188*(1+AO208) -> -949.6441482 | AP188: =AO188*(1+AP208) -> -1063.601446 | AQ188: -3618.192656
B189: Proceeds from divestitures | D189: 0 | E189: 0 | F189: 0 | H189: 0 | M189: 0 | R189: 0 | W189: 0 | AB189: 0 | AG189: 0 | AL189: 0 | AQ189: 0
B190: Plug prior to 10-Q filing (please read comment in this cell) | M190: 0 | R190: 0 | W190: 0 | AB190: 0 | AG190: 0 | AL190: 0 | AQ190: 0
B191: Other | D191: 0 | E191: 0 | F191: 0 | H191: 0 | I191: 0 | J191: 0 | K191: -3 | L191: 9 | M191: 6 | N191: -42 | O191: -11 | P191: 19 | Q191: 0 | R191: -34 | S191: 0 | T191: 0 | U191: 0 | V191: -25 | W191: -25 | AB191: 0 | AC191: =-(AC115-AB115)-(AC116-AB116)-(AC117-AB117)+AC128-AB128 -> 0 | AD191: =-(AD115-AC115)-(AD116-AC116)-(AD117-AC117)+AD128-AC128 -> 0 | AE191: 0 | AF191: 0 | AG191: 0 | AH191: =-(AH115-AG115)-(AH116-AG116)-(AH117-AG117)+AH128-AG128 -> 0 | AI191: =-(AI115-AH115)-(AI116-AH116)-(AI117-AH117)+AI128-AH128 -> 0 | AJ191: =-(AJ115-AI115)-(AJ116-AI116)-(AJ117-AI117)+AJ128-AI128 -> 0 | AK191: =-(AK115-AJ115)-(AK116-AJ116)-(AK117-AJ117)+AK128-AJ128 -> 0 | AL191: 0 | AM191: =-(AM115-AL115)-(AM116-AL116)-(AM117-AL117)+AM128-AL128 -> 0 | AN191: =-(AN115-AM115)-(AN116-AM116)-(AN117-AM117)+AN128-AM128 -> 0 | AO191: =-(AO115-AN115)-(AO116-AN116)-(AO117-AN117)+AO128-AN128 -> 0 | AP191: =-(AP115-AO115)-(AP116-AO116)-(AP117-AO117)+AP128-AO128 -> 0 | AQ191: 0
B192: Net cash provided by (used for) investing | D192: =SUM(D184:D191) -> 280 | E192: =SUM(E184:E191) -> -446 | F192: -216 | G192: 207 | H192: =SUM(H184:H191) -> -175 | I192: -385 | J192: -312 | K192: 153 | L192: -490 | M192: =SUM(M184:M191) -> -1034 | N192: =SUM(N184:N191) -> -76 | O192: 312 | P192: -724 | Q192: -520 | R192: =SUM(R184:R191) -> -1008 | S192: =SUM(S184:S191) -> -12 | T192: -214 | U192: 752 | V192: -250 | W192: =SUM(W184:W191) -> 276 | X192: =SUM(X184:X191) -> -333 | Y192: 88 | Z192: 124 | AA192: -143 | AB192: =SUM(AB184:AB191) -> -264 | AC192: =SUM(AC184:AC191) -> -305.76 | AD192: =SUM(AD184:AD191) -> -342.4512 | AE192: -383.545344 | AF192: -429.5707853 | AG192: =SUM(AG184:AG191) -> -1461.327329 | AH192: =SUM(AH184:AH191) -> -481.1192795 | AI192: -538.8535931 | AJ192: -603.5160242 | AK192: -675.9379471 | AL192: =SUM(AL184:AL191) -> -2299.426844 | AM192: =SUM(AM184:AM191) -> -757.0505008 | AN192: -847.8965609 | AO192: -949.6441482 | AP192: -1063.601446 | AQ192: =SUM(AQ184:AQ191) -> -3618.192656
B193: Effect of exchange rates on cash | D193: 97 | E193: 191 | F193: -354 | G193: -17 | H193: -83 | I193: -38 | J193: -20 | K193: -73 | L193: 26 | M193: -105 | N193: 11 | O193: -50 | P193: 9 | Q193: 10 | R193: =SUM(N193:Q193) -> -20 | S193: 40 | T193: -2 | U193: 53 | V193: -46 | W193: =SUM(S193:V193) -> 45 | X193: -103 | Y193: -13 | Z193: 57 | AA193: -70 | AB193: =SUM(X193:AA193) -> -129 | AG193: =SUM(AC193:AF193) -> 0 | AL193: =SUM(AH193:AK193) -> 0 | AQ193: =SUM(AM193:AP193) -> 0
B194: Net increase (decrease) in cash and equivalents | D194: =D192+D181+D170+D193 -> 83 | E194: -30 | F194: 742 | G194: 837 | H194: 1632 | I194: -606 | J194: 605 | K194: -807 | L194: 94 | M194: -714 | N194: =N192+N181+N170+N193 -> -479 | O194: =O192+O181+O170+O193 -> 1680 | P194: -318 | Q194: -213 | R194: 670 | S194: -395 | T194: 891 | U194: -642 | V194: 587 | W194: 441 | X194: -967 | Y194: 141 | Z194: 272 | AA194: 771 | AB194: 217 | AC194: =AC192+AC181+AC170+AC193 -> 1015.338157 | AD194: -583.4454053 | AE194: 1416.078567 | AF194: 274.5372375 | AG194: 2122.508557 | AH194: =AH192+AH181+AH170+AH193 -> 2464.501505 | AI194: -2041.101086 | AJ194: 2840.666601 | AK194: -1131.11531 | AL194: 2132.951711 | AM194: =AM192+AM181+AM170+AM193 -> 3975.440551 | AN194: -3668.260504 | AO194: 4306.352852 | AP194: -2716.980425 | AQ194: 1896.552475
B195: Cash and equivalents at beginning of period | D195: 2220 | E195: =D196 -> 2303 | F195: =E196 -> 2273 | G195: 3015 | H195: =D195 -> 2220 | I195: =H196 -> 3852 | J195: =I196 -> 3246 | K195: 3851 | L195: 3044 | M195: =I195 -> 3852 | N195: =M196 -> 3138 | O195: =N196 -> 2659 | P195: =O196 -> 4339 | Q195: =P196 -> 4021 | R195: =N195 -> 3138 | S195: =R196 -> 3808 | T195: =S196 -> 3413 | U195: =T196 -> 4304 | V195: =U196 -> 3662 | W195: =S195 -> 3808 | X195: =W196 -> 4249 | Y195: =X196 -> 3282 | Z195: =Y196 -> 3423 | AA195: =Z196 -> 3695 | AB195: =X195 -> 4249 | AC195: =AB196 -> 4466 | AD195: =AC196 -> 5481.338157 | AE195: =AD196 -> 4897.892752 | AF195: =AE196 -> 6313.971319 | AG195: =AC195 -> 4466 | AH195: =AG196 -> 6588.508557 | AI195: =AH196 -> 9053.010062 | AJ195: =AI196 -> 7011.908976 | AK195: =AJ196 -> 9852.575577 | AL195: =AH195 -> 6588.508557 | AM195: =AL196 -> 8721.460268 | AN195: =AM196 -> 12696.90082 | AO195: =AN196 -> 9028.640315 | AP195: =AO196 -> 13334.99317 | AQ195: =AM195 -> 8721.460268
B196: Cash and equivalents at end of period | D196: =D195+D194 -> 2303 | E196: =E195+E194 -> 2273 | F196: =F195+F194 -> 3015 | G196: =G195+G194 -> 3852 | H196: =H195+H194 -> 3852 | I196: =I195+I194 -> 3246 | J196: =J195+J194 -> 3851 | K196: =K195+K194 -> 3044 | L196: =L195+L194 -> 3138 | M196: =M195+M194 -> 3138 | N196: =N195+N194 -> 2659 | O196: =O195+O194 -> 4339 | P196: 4021 | Q196: =Q195+Q194 -> 3808 | R196: =R195+R194 -> 3808 | S196: =S195+S194 -> 3413 | T196: =T195+T194 -> 4304 | U196: 3662 | V196: =V195+V194 -> 4249 | W196: =W195+W194 -> 4249 | X196: =X195+X194 -> 3282 | Y196: =Y195+Y194 -> 3423 | Z196: 3695 | AA196: =AA195+AA194 -> 4466 | AB196: =AB195+AB194 -> 4466 | AC196: =AC195+AC194 -> 5481.338157 | AD196: =AD195+AD194 -> 4897.892752 | AE196: 6313.971319 | AF196: =AF195+AF194 -> 6588.508557 | AG196: =AG195+AG194 -> 6588.508557 | AH196: =AH195+AH194 -> 9053.010062 | AI196: =AI195+AI194 -> 7011.908976 | AJ196: 9852.575577 | AK196: =AK195+AK194 -> 8721.460268 | AL196: =AL195+AL194 -> 8721.460268 | AM196: =AM195+AM194 -> 12696.90082 | AN196: =AN195+AN194 -> 9028.640315 | AO196: 13334.99317 | AP196: =AP195+AP194 -> 10618.01274 | AQ196: =AQ195+AQ194 -> 10618.01274
B197: Net cash per share | D197: =(D108+D109-D121-D127)/D27 -> 3.811780636 | E197: 3.977169982 | F197: 4.719393528 | G197: 5.385314844 | H197: 5.361851412 | I197: 4.813632737 | J197: 4.61801987 | K197: 1.756173372 | L197: 1.984794846 | M197: 2.624007366 | N197: 1.607285829 | O197: 1.432789983 | P197: 1.59046433 | Q197: 1.609674729 | R197: 1.596676902 | S197: 1.192313851 | T197: 1.750255885 | U197: 0.7859562673 | V197: 1.079088472 | W197: 1.067420647 | X197: 0.465236189 | Y197: 0.3510828654 | Z197: 0.3572316103 | AA197: 0.7421461897 | AB197: 0.7286876903 | AC197: 1.311503687 | AD197: 1.045834056 | AE197: 1.812200516 | AF197: 2.129412137 | AG197: 2.048961519 | AH197: 3.544155681 | AI197: 2.434856561 | AJ197: 4.048478725 | AK197: 3.54063793 | AL197: 3.442691335 | AM197: 5.846830006 | AN197: 3.832460952 | AO197: 6.264566266 | AP197: 4.880573215 | AQ197: 4.719888497
B198: DCF Period (approximate number of years) | H198: 0 | M198: 0 | AG198: 1 | AL198: =AG198+1 -> 2 | AQ198: =AL198+1 -> 3
B199: Free Cash Flow to Firm (FCFF)* | H199: =H170-(-H188)+($C$394*(H127+H121)) -> 3734.054547 | M199: =M170-(-M188)+($C$394*(M127+M121)) -> 1987.139218 | R199: =R170-(-R188)+($C$394*(R127+R121)) -> 2589.203761 | W199: =W170-(-W188)+($C$394*(W127+W121)) -> 3971.16821 | AB199: =AB170-(-AB188)+($C$394*(AB127+AB121)) -> 4830.120808 | AG199: =AG170-(-AG188)+($C$394*(AG127+AG121)) -> 4369.515727 | AL199: =AL170-(-AL188)+($C$394*(AL127+AL121)) -> 4377.161314 | AQ199: =AQ170-(-AQ188)+($C$394*(AQ127+AQ121)) -> 4144.785497
B200: Discounted FCFF | R200: =R199/(1+$C$395)^R198 -> 2589.203761 | W200: =W199/(1+$C$395)^W198 -> 3971.16821 | AB200: =AB199/(1+$C$395)^AB198 -> 4830.120808 | AG200: =AG199/(1+$C$395)^AG198 -> 4093.958664 | AL200: =AL199/(1+$C$395)^AL198 -> 3842.490877 | AQ200: =AQ199/(1+$C$395)^AQ198 -> 3409.043156
B202: Cash Flow Ratios & Assumptions | D202: Aug-14 | E202: Nov-14 | F202: Feb-15 | G202: May-15 | H202: May-15 | I202: Aug-15 | J202: Nov-15 | K202: Feb-16 | L202: May-16 | M202: May-16 | N202: Aug-16 | O202: Nov-16 | P202: Feb-17 | Q202: May-17 | R202: May-17 | S202: Aug-17 | T202: Nov-17 | U202: Feb-18 | V202: May-18 | W202: May-18 | X202: Aug-18 | Y202: Nov-18 | Z202: Feb-19 | AA202: May-19 | AB202: May-19 | AC202: Aug-19 | AD202: Nov-19 | AE202: Feb-20 | AF202: May-20 | AG202: May-20 | AH202: Aug-20 | AI202: Nov-20 | AJ202: Feb-21 | AK202: May-21 | AL202: May-21 | AM202: Aug-22 | AN202: Nov-22 | AO202: Feb-22 | AP202: May-22 | AQ202: May-22
D203: F1Q15 | E203: F2Q15 | F203: F3Q15 | G203: F4Q15 | H203: FY 2015 | I203: F1Q16 | J203: F2Q16 | K203: F3Q16 | L203: F4Q16 | M203: FY 2016 | N203: F1Q17 | O203: F2Q17 | P203: F3Q17 | Q203: F4Q17 | R203: FY 2017 | S203: F1Q18 | T203: F2Q18 | U203: F3Q18 | V203: F4Q18 | W203: FY 2018 | X203: F1Q19 | Y203: F2Q19 | Z203: F3Q19 | AA203: F4Q19 | AB203: FY 2019 | AC203: F1Q20E | AD203: F2Q20E | AE203: F3Q20E | AF203: F4Q20E | AG203: FY 2020 E | AH203: F1Q21E | AI203: F2Q21E | AJ203: F3Q21E | AK203: F4Q21E | AL203: FY 2021 E | AM203: F1Q22E | AN203: F2Q22E | AO203: F3Q22E | AP203: F4Q22E | AQ203: FY 2022 E
B204: Ratios
B205: Depreciation to PPE | E205: =E159/(AVERAGE(E114,D114)) -> 0.05290278255 | F205: =F159/(AVERAGE(F114,E114)) -> 0.05251338746 | G205: =G159/(AVERAGE(G114,F114)) -> 0.05210284352 | I205: =I159/(AVERAGE(I114,G114)) -> 0.05030213947 | J205: =J159/(AVERAGE(J114,I114)) -> 0.05041752009 | K205: =K159/(AVERAGE(K114,J114)) -> 0.05088360756 | L205: =L159/(AVERAGE(L114,K114)) -> 0.04905825668 | N205: =N159/(AVERAGE(N114,L114)) -> 0.04878736605 | O205: =O159/(AVERAGE(O114,N114)) -> 0.04847296161 | P205: =P159/(AVERAGE(P114,O114)) -> 0.04756080989 | Q205: =Q159/(AVERAGE(Q114,P114)) -> 0.04754561809 | S205: =S159/(AVERAGE(S114,Q114)) -> 0.04433436533 | T205: =T159/(AVERAGE(T114,S114)) -> 0.0455930757 | U205: =U159/(AVERAGE(U114,T114)) -> 0.04396910279 | V205: =V159/(AVERAGE(V114,U114)) -> 0.04478976234 | X205: 0.04878736605 | Y205: 0.04847296161 | Z205: 0.04756080989 | AA205: 0.04754561809 | AC205: =$C$331 -> 0.05 | AD205: =$C$331 -> 0.05 | AE205: =$C$331 -> 0.05 | AF205: =$C$331 -> 0.05 | AH205: =$C$331 -> 0.05 | AI205: =$C$331 -> 0.05 | AJ205: =$C$331 -> 0.05 | AK205: =$C$331 -> 0.05 | AM205: =$C$331 -> 0.05 | AN205: =$C$331 -> 0.05 | AO205: =$C$331 -> 0.05 | AP205: =$C$331 -> 0.05
B206: Net Cash from Operations growth rate | E206: =E170/D170-1 -> 0.1003401361 | F206: =F170/E170-1 -> 2.250386399 | G206: =G170/F170-1 -> -0.3618640038 | I206: =I170/G170-1 -> -0.6341281669 | J206: =J170/I170-1 -> 0.1099796334 | K206: =K170/J170-1 -> 0.6073394495 | L206: =L170/K170-1 -> 0.3515981735 | M206: =M170/H170-1 -> -0.3384615385 | N206: =N170/L170-1 -> -0.3910472973 | O206: =O170/N170-1 -> 0.3356449376 | P206: =P170/O170-1 -> 0.1079958463 | Q206: =Q170/P170-1 -> -0.1668228679 | R206: =R170/M170-1 -> 0.1757105943 | S206: =S170/Q170-1 -> -0.3532058493 | T206: =T170/S170-1 -> 1.300869565 | U206: =U170/T170-1 -> -0.4051398337 | V206: =V170/U170-1 -> 1.884371029 | W206: =W170/R170-1 -> 0.3612637363 | X206: -0.3910472973 | Y206: 0.3356449376 | Z206: 0.1079958463 | AA206: -0.1668228679 | AB206: =AB170/W170-1 -> 0.1913218971 | AC206: =AC170/AA170-1 -> -0.06322712219 | AD206: =AD170/AC170-1 -> -0.8424317288 | AE206: =AE170/AD170-1 -> 6.969102388 | AF206: =AF170/AE170-1 -> -0.4730906414 | AG206: =AG170/AB170-1 -> -0.01918986138 | AH206: =AH170/AF170-1 -> 1.812257012 | AI206: =AI170/AH170-1 -> -1.274582837 | AJ206: =AJ170/AI170-1 -> -5.163104129 | AK206: =AK170/AJ170-1 -> -0.9777526249 | AL206: =AL170/AG170-1 -> 0.1460769731 | AM206: =AM170/AK170-1 -> 58.40703758 | AN206: =AN170/AM170-1 -> -1.430905421 | AO206: =AO170/AN170-1 -> -3.551475409 | AP206: =AP170/AO170-1 -> -1.190709562 | AQ206: =AQ170/AL170-1 -> 0.1637247142
B207: Capex to sales | H207: =-H188/H14 -> 0.03137152381 | M207: =-M188/M14 -> 0.03499505807 | R207: =-R188/R14 -> 0.03179039301 | W207: =-W188/W14 -> 0.02816166168 | AB207: =-AB188/AB14 -> 0.02847866656 | AG207: =-AG188/AG14 -> 0.03486928965 | AL207: =-AL188/AL14 -> 0.05073585715 | AQ207: =-AQ188/AQ14 -> 0.07361558019
B208: Capex growth | E208: =E188/D188-1 -> -0.1346153846 | F208: =F188/E188-1 -> 0.04444444444 | G208: =G188/F188-1 -> 0.02127659574 | I208: =I188/G188-1 -> 0.325 | J208: =J188/I188-1 -> -0.09433962264 | K208: =K188/J188-1 -> -0.006944444444 | L208: =L188/K188-1 -> -0.1573426573 | N208: =N188/L188-1 -> 0.1493775934 | O208: =O188/N188-1 -> -0.1949458484 | P208: =P188/O188-1 -> 0.1793721973 | Q208: =Q188/P188-1 -> 0.2509505703 | S208: =S188/Q188-1 -> -0.179331307 | T208: =T188/S188-1 -> -0.1592592593 | U208: =U188/T188-1 -> 0.01762114537 | V208: =V188/U188-1 -> 0.2857142857 | X208: 0.1493775934 | Y208: -0.1949458484 | Z208: 0.1793721973 | AA208: 0.2509505703 | AC208: =$C$332 -> 0.12 | AD208: =$C$332 -> 0.12 | AE208: =$C$332 -> 0.12 | AF208: =$C$332 -> 0.12 | AH208: =$C$332 -> 0.12 | AI208: =$C$332 -> 0.12 | AJ208: =$C$332 -> 0.12 | AK208: =$C$332 -> 0.12 | AM208: =$C$332 -> 0.12 | AN208: =$C$332 -> 0.12 | AO208: =$C$332 -> 0.12 | AP208: =$C$332 -> 0.12
B212: Nike Model Scenario & Sensitivity Analysis
B214: Base Case | G214: Base Case: Sensitivity of forecast share price to changes in assumptions
B216: Depreciation to PPE | C216: 0.05 | L216: EBIT Margin- North America
B217: Capex growth | C217: 0.12 | G217: Footwear Growth Rate North America (%) | H217: 105.9839746 | I217: 0.27 | J217: 0.28 | K217: 0.29 | L217: 0.3 | M217: 0.31 | N217: 0.32 | O217: 0.33
... 179 more rows

Sheet Share Price History (hidden)
A1: Date | B1: Last Price | C1: Unadjusted Price | E1: Start Date | F1: End Date | G1: Quarter | H1: Average Price (Adj) | I1: Average Price (Unadj)
A2: 2013-06-21 | B2: 30.285 | C2: =B2*2 -> 60.57 | E2: =EOMONTH(F2,-3) -> 2014-05-31 | F2: 2014-08-31 | G2: F1Q15 | H2: =AVERAGE(OFFSET($A$1,MATCH($F2,$A:$A,1)-1,1,MATCH($E2,$A:$A,1)-MATCH($F2,$A:$A,1))) -> 38.61742187 | I2: =AVERAGE(OFFSET($A$1,MATCH($F2,$A:$A,1)-1,2,MATCH($E2,$A:$A,1)-MATCH($F2,$A:$A,1))) -> 77.23484375
A3: 2013-06-24 | B3: 29.975 | C3: =B3*2 -> 59.95 | E3: 2014-08-31 | F3: =EOMONTH(F2,3) -> 2014-11-30 | G3: F2Q15 | H3: 44.46365079 | I3: =AVERAGE(OFFSET($A$1,MATCH($F3,$A:$A,1)-1,2,MATCH($E3,$A:$A,1)-MATCH($F3,$A:$A,1))) -> 88.92730159
A4: 2013-06-25 | B4: 30.195 | C4: 60.39 | E4: 2014-11-30 | F4: 2015-02-28 | G4: F3Q15 | H4: 47.51147541 | I4: 95.02295082
A5: 2013-06-26 | B5: 30.925 | C5: 61.85 | E5: 2015-02-28 | F5: 2015-05-31 | G5: F4Q15 | H5: 50.14650794 | I5: 100.2930159
A6: 2013-06-27 | B6: 31.16 | C6: 62.32 | E6: 2015-05-31 | F6: 2015-08-31 | G6: F1Q16 | H6: 54.87653846 | I6: 109.7530769
A7: 2013-06-28 | B7: 31.84 | C7: 63.68 | E7: 2015-08-31 | F7: 2015-11-30 | G7: F2Q16 | H7: 62.05198413 | I7: 124.1039683
A8: 2013-07-01 | B8: 31.165 | C8: 62.33 | E8: 2015-11-30 | F8: 2016-02-29 | G8: F3Q16 | H8: 61.50245902 | I8: 123.004918
A9: 2013-07-02 | B9: 31.31 | C9: 62.62 | E9: 2016-02-29 | F9: 2016-05-31 | G9: F4Q16 | H9: 59.5209375 | I9: 119.041875
A10: 2013-07-03 | B10: 31.43 | C10: 62.86 | E10: 2016-05-31 | F10: 2016-08-31 | G10: F1Q17 | H10: 56.00461538 | I10: 112.0092308
A11: 2013-07-05 | B11: 31.82 | C11: 63.64 | E11: 2016-08-31 | F11: 2016-11-30 | G11: F2Q17 | H11: 52.62825397 | I11: 105.2565079
A12: 2013-07-08 | B12: 31.86 | C12: 63.72 | E12: 2016-11-30 | F12: 2017-02-28 | G12: F3Q17 | H12: 53.33316667 | I12: 106.6663333
A13: 2013-07-09 | B13: 31.965 | C13: 63.93 | E13: 2017-02-28 | F13: 2017-05-31 | G13: F4Q17 | H13: 55.20359375 | I13: 110.4071875
A14: 2013-07-10 | B14: 31.8 | C14: 63.6 | E14: 2017-05-31 | F14: 2017-08-31 | G14: F1Q18 | H14: 56.07723077 | I14: 112.1544615
A15: 2013-07-11 | B15: 31.86 | C15: 63.72 | E15: 2017-08-31 | F15: 2017-11-30 | G15: F2Q18 | H15: 54.46952381 | I15: 108.9390476
A16: 2013-07-12 | B16: 31.835 | C16: 63.67 | E16: 2017-11-30 | F16: 2018-02-28 | G16: F3Q18 | H16: 64.94533333 | I16: 129.8906667
A17: 2013-07-15 | B17: 31.675 | C17: 63.35 | E17: 2018-02-28 | F17: 2018-05-31 | G17: F4Q18 | H17: 67.68375 | I17: 135.3675
A18: 2013-07-16 | B18: 31.35 | C18: 62.7 | E18: 2018-05-31 | F18: 2018-08-31 | G18: F1Q19 | H18: 77.50123077 | I18: 155.0024615
A19: 2013-07-17 | B19: 31.665 | C19: 63.33 | E19: 2018-08-31 | F19: 2018-11-30 | G19: F2Q19 | H19: 77.99126984 | I19: 155.9825397
A20: 2013-07-18 | B20: 31.66 | C20: 63.32 | E20: 2018-11-30 | F20: 2019-02-28 | G20: F3Q19 | H20: 78.29661017 | I20: 156.5932203
A21: 2013-07-19 | B21: 31.675 | C21: 63.35 | E21: 2019-02-28 | F21: 2019-05-31 | G21: F4Q19 | H21: 84.90640625 | I21: 169.8128125
A22: 2013-07-22 | B22: 31.645 | C22: 63.29
A23: 2013-07-23 | B23: 31.595 | C23: 63.19
A24: 2013-07-24 | B24: 31.315 | C24: 62.63
A25: 2013-07-25 | B25: 31.245 | C25: 62.49
A26: 2013-07-26 | B26: 31.265 | C26: 62.53
A27: 2013-07-29 | B27: 31.355 | C27: 62.71
A28: 2013-07-30 | B28: 31.425 | C28: 62.85
A29: 2013-07-31 | B29: 31.46 | C29: 62.92
A30: 2013-08-01 | B30: 32.985 | C30: 65.97
A31: 2013-08-02 | B31: 33.15 | C31: 66.3
A32: 2013-08-05 | B32: 33.2 | C32: 66.4
A33: 2013-08-06 | B33: 33.27 | C33: 66.54
A34: 2013-08-07 | B34: 32.815 | C34: 65.63
A35: 2013-08-08 | B35: 33.025 | C35: 66.05
A36: 2013-08-09 | B36: 33.155 | C36: 66.31
A37: 2013-08-12 | B37: 33.255 | C37: 66.51
A38: 2013-08-13 | B38: 32.905 | C38: 65.81
A39: 2013-08-14 | B39: 32.175 | C39: 64.35
A40: 2013-08-15 | B40: 31.745 | C40: 63.49
A41: 2013-08-16 | B41: 31.825 | C41: 63.65
A42: 2013-08-19 | B42: 32.355 | C42: 64.71
A43: 2013-08-20 | B43: 32.315 | C43: 64.63
A44: 2013-08-21 | B44: 32.065 | C44: 64.13
A45: 2013-08-22 | B45: 32.43 | C45: 64.86
A46: 2013-08-23 | B46: 32.105 | C46: 64.21
A47: 2013-08-26 | B47: 31.96 | C47: 63.92
A48: 2013-08-27 | B48: 31.405 | C48: 62.81
A49: 2013-08-28 | B49: 31.685 | C49: 63.37
A50: 2013-08-29 | B50: 31.74 | C50: 63.48
A51: 2013-08-30 | B51: 31.41 | C51: 62.82
A52: 2013-09-03 | B52: 32.145 | C52: 64.29
A53: 2013-09-04 | B53: 32.565 | C53: 65.13
A54: 2013-09-05 | B54: 32.69 | C54: 65.38
A55: 2013-09-06 | B55: 32.49 | C55: 64.98
A56: 2013-09-09 | B56: 32.7 | C56: 65.4
A57: 2013-09-10 | B57: 33.41 | C57: 66.82
A58: 2013-09-11 | B58: 33.795 | C58: 67.59
A59: 2013-09-12 | B59: 34.04 | C59: 68.08
A60: 2013-09-13 | B60: 33.955 | C60: 67.91
A61: 2013-09-16 | B61: 34.095 | C61: 68.19
A62: 2013-09-17 | B62: 34.16 | C62: 68.32
A63: 2013-09-18 | B63: 34.74 | C63: 69.48
A64: 2013-09-19 | B64: 34.75 | C64: 69.5
A65: 2013-09-20 | B65: 34.685 | C65: 69.37
A66: 2013-09-23 | B66: 34.49 | C66: 68.98
A67: 2013-09-24 | B67: 34.715 | C67: =B67*2 -> 69.43
A68: 2013-09-25 | B68: 34.46 | C68: 68.92
A69: 2013-09-26 | B69: 35.17 | C69: 70.34
A70: 2013-09-27 | B70: 36.82 | C70: 73.64
A71: 2013-09-30 | B71: 36.32 | C71: 72.64
A72: 2013-10-01 | B72: 36.21 | C72: 72.42
A73: 2013-10-02 | B73: 35.945 | C73: 71.89
A74: 2013-10-03 | B74: 35.82 | C74: 71.64
A75: 2013-10-04 | B75: 36.07 | C75: 72.14
A76: 2013-10-07 | B76: 35.67 | C76: 71.34
A77: 2013-10-08 | B77: 35.14 | C77: 70.28
A78: 2013-10-09 | B78: 35.445 | C78: 70.89
A79: 2013-10-10 | B79: 36.72 | C79: 73.44
A80: 2013-10-11 | B80: 36.73 | C80: 73.46
A81: 2013-10-14 | B81: 37.03 | C81: 74.06
A82: 2013-10-15 | B82: 36.855 | C82: 73.71
A83: 2013-10-16 | B83: 37.26 | C83: 74.52
A84: 2013-10-17 | B84: 37.27 | C84: 74.54
A85: 2013-10-18 | B85: 37.965 | C85: 75.93
A86: 2013-10-21 | B86: 38.045 | C86: 76.09
A87: 2013-10-22 | B87: 37.98 | C87: 75.96
A88: 2013-10-23 | B88: 37.78 | C88: 75.56
A89: 2013-10-24 | B89: 37.755 | C89: 75.51
A90: 2013-10-25 | B90: 37.85 | C90: 75.7
A91: 2013-10-28 | B91: 37.755 | C91: 75.51
A92: 2013-10-29 | B92: 37.955 | C92: 75.91
A93: 2013-10-30 | B93: 38.065 | C93: 76.13
A94: 2013-10-31 | B94: 37.88 | C94: 75.76
A95: 2013-11-01 | B95: 38.03 | C95: 76.06
A96: 2013-11-04 | B96: 38.185 | C96: 76.37
A97: 2013-11-05 | B97: 38.6 | C97: 77.2
A98: 2013-11-06 | B98: 38.38 | C98: 76.76
A99: 2013-11-07 | B99: 37.85 | C99: 75.7
A100: 2013-11-08 | B100: 38.56 | C100: 77.12
A101: 2013-11-11 | B101: 38.58 | C101: 77.16
A102: 2013-11-12 | B102: 38.435 | C102: 76.87
A103: 2013-11-13 | B103: 38.925 | C103: 77.85
A104: 2013-11-14 | B104: 39.32 | C104: 78.64
A105: 2013-11-15 | B105: 39.61 | C105: 79.22
A106: 2013-11-18 | B106: 39.29 | C106: 78.58
A107: 2013-11-19 | B107: 38.905 | C107: 77.81
A108: 2013-11-20 | B108: 38.92 | C108: 77.84
A109: 2013-11-21 | B109: 39.045 | C109: 78.09
A110: 2013-11-22 | B110: 39.435 | C110: 78.87
A111: 2013-11-25 | B111: 39.565 | C111: 79.13
A112: 2013-11-26 | B112: 39.8 | C112: 79.6
A113: 2013-11-27 | B113: 39.665 | C113: 79.33
A114: 2013-11-29 | B114: 39.57 | C114: 79.14
A115: 2013-12-02 | B115: 39.545 | C115: 79.09
A116: 2013-12-03 | B116: 39.565 | C116: 79.13
A117: 2013-12-04 | B117: 39.41 | C117: 78.82
A118: 2013-12-05 | B118: 39.475 | C118: 78.95
A119: 2013-12-06 | B119: 39.93 | C119: 79.86
A120: 2013-12-09 | B120: 39.89 | C120: 79.78
A121: 2013-12-10 | B121: 39.61 | C121: 79.22
A122: 2013-12-11 | B122: 38.42 | C122: 76.84
A123: 2013-12-12 | B123: 38.115 | C123: 76.23
A124: 2013-12-13 | B124: 38.2 | C124: 76.4
A125: 2013-12-16 | B125: 38.22 | C125: 76.44
A126: 2013-12-17 | B126: 38.38 | C126: 76.76
A127: 2013-12-18 | B127: 39.275 | C127: 78.55
A128: 2013-12-19 | B128: 39.13 | C128: 78.26
A129: 2013-12-20 | B129: 38.67 | C129: 77.34
A130: 2013-12-23 | B130: 38.555 | C130: 77.11
A131: 2013-12-24 | B131: 38.83 | C131: =B131*2 -> 77.66
A132: 2013-12-26 | B132: 39.095 | C132: 78.19
A133: 2013-12-27 | B133: 39.08 | C133: 78.16
A134: 2013-12-30 | B134: 39.37 | C134: 78.74
A135: 2013-12-31 | B135: 39.32 | C135: 78.64
A136: 2014-01-02 | B136: 39.12 | C136: 78.24
A137: 2014-01-03 | B137: 39.015 | C137: 78.03
A138: 2014-01-06 | B138: 38.715 | C138: 77.43
A139: 2014-01-07 | B139: 38.745 | C139: 77.49
A140: 2014-01-08 | B140: 38.545 | C140: 77.09
A141: 2014-01-09 | B141: 38.545 | C141: 77.09
A142: 2014-01-10 | B142: 38.46 | C142: 76.92
A143: 2014-01-13 | B143: 37.59 | C143: 75.18
A144: 2014-01-14 | B144: 37.585 | C144: 75.17
A145: 2014-01-15 | B145: 37.715 | C145: 75.43
A146: 2014-01-16 | B146: 37.395 | C146: 74.79
A147: 2014-01-17 | B147: 36.695 | C147: 73.39
A148: 2014-01-21 | B148: 36.875 | C148: 73.75
A149: 2014-01-22 | B149: 36.75 | C149: 73.5
A150: 2014-01-23 | B150: 36.365 | C150: 72.73
A151: 2014-01-24 | B151: 35.825 | C151: 71.65
A152: 2014-01-27 | B152: 35.95 | C152: 71.9
A153: 2014-01-28 | B153: 36.355 | C153: 72.71
A154: 2014-01-29 | B154: 35.885 | C154: 71.77
A155: 2014-01-30 | B155: 36.97 | C155: 73.94
A156: 2014-01-31 | B156: 36.425 | C156: 72.85
A157: 2014-02-03 | B157: 35.44 | C157: 70.88
A158: 2014-02-04 | B158: 35.255 | C158: 70.51
A159: 2014-02-05 | B159: 35.3 | C159: 70.6
A160: 2014-02-06 | B160: 35.755 | C160: 71.51
A161: 2014-02-07 | B161: 36.345 | C161: 72.69
A162: 2014-02-10 | B162: 36.335 | C162: 72.67
A163: 2014-02-11 | B163: 36.99 | C163: 73.98
A164: 2014-02-12 | B164: 37.055 | C164: 74.11
A165: 2014-02-13 | B165: 37.435 | C165: 74.87
A166: 2014-02-14 | B166: 37.535 | C166: 75.07
A167: 2014-02-18 | B167: 37.605 | C167: 75.21
A168: 2014-02-19 | B168: 37.41 | C168: 74.82
A169: 2014-02-20 | B169: 37.79 | C169: 75.58
A170: 2014-02-21 | B170: 38.24 | C170: 76.48
A171: 2014-02-24 | B171: 38.92 | C171: 77.84
A172: 2014-02-25 | B172: 39.055 | C172: 78.11
A173: 2014-02-26 | B173: 39.21 | C173: 78.42
A174: 2014-02-27 | B174: 39.01 | C174: 78.02
A175: 2014-02-28 | B175: 39.15 | C175: 78.3
A176: 2014-03-03 | B176: 38.695 | C176: 77.39
A177: 2014-03-04 | B177: 39.31 | C177: 78.62
A178: 2014-03-05 | B178: 38.71 | C178: 77.42
A179: 2014-03-06 | B179: 39.11 | C179: 78.22
A180: 2014-03-07 | B180: 39.73 | C180: 79.46
A181: 2014-03-10 | B181: 39.49 | C181: 78.98
A182: 2014-03-11 | B182: 39.4 | C182: 78.8
A183: 2014-03-12 | B183: 39.485 | C183: 78.97
A184: 2014-03-13 | B184: 39.265 | C184: 78.53
A185: 2014-03-14 | B185: 39.16 | C185: 78.32
A186: 2014-03-17 | B186: 39.49 | C186: 78.98
A187: 2014-03-18 | B187: 39.82 | C187: 79.64
A188: 2014-03-19 | B188: 39.575 | C188: 79.15
A189: 2014-03-20 | B189: 39.635 | C189: 79.27
A190: 2014-03-21 | B190: 37.605 | C190: 75.21
A191: 2014-03-24 | B191: 37.43 | C191: 74.86
A192: 2014-03-25 | B192: 36.825 | C192: 73.65
A193: 2014-03-26 | B193: 36.61 | C193: 73.22
A194: 2014-03-27 | B194: 36.66 | C194: 73.32
A195: 2014-03-28 | B195: 36.77 | C195: =B195*2 -> 73.54
A196: 2014-03-31 | B196: 36.93 | C196: 73.86
A197: 2014-04-01 | B197: 37.195 | C197: 74.39
A198: 2014-04-02 | B198: 37.27 | C198: 74.54
A199: 2014-04-03 | B199: 36.995 | C199: 73.99
A200: 2014-04-04 | B200: 36.42 | C200: 72.84
... 1334 more rows

Sheet Beta Calculation (hidden)
A1: Start Date | B1: 2014-01-31 | D1: Start Date | E1: 2014-01-31
A2: End Date | D2: End Date
B4: NKE US Equity | E4: SPXT Index
B5: =_xll.BFieldInfo(B$6) ->  | E5: =_xll.BFieldInfo(E$6) -> 
A6: Dates | B6: TOT_RETURN_INDEX_NET_DVDS | D6: Dates | E6: TOT_RETURN_INDEX_NET_DVDS | I6: Date | J6: Nike TR Index | K6: S&P 500 TR Index | L6: Nike % Return | M6: S&P 500 % Return | O6: Beta | P6: =SLOPE(L8:L67,M8:M67) -> 0.7807545113
A7: =_xll.BDH(B$4,B$6,$B1,$B2,"Dir=V","FX=USD","Dts=S","cols=2;rows=1379") ->  | B7: 36.425 | D7: =_xll.BDH(E$4,E$6,$E1,$E2,"Dir=V","FX=USD","Dts=S","cols=2;rows=1379") ->  | E7: 3200.95 | I7: 2014-06-30 | J7: =VLOOKUP(I7,A:B,2,1) -> 39.0165 | K7: =VLOOKUP(I7,D:E,2,1) -> 3552.18 | O7: R2 | P7: =RSQ(L8:L67,M8:M67) -> 0.2225209745
A8: 2014-02-03 | B8: 35.44 | D8: 2014-02-03 | E8: 3127.87 | I8: =EOMONTH(I7,1) -> 2014-07-31 | J8: =VLOOKUP(I8,A:B,2,1) -> 38.8052 | K8: =VLOOKUP(I8,D:E,2,1) -> 3503.19 | L8: =((J8/J7)-1)*100 -> -0.5415657478 | M8: =((K8/K7)-1)*100 -> -1.379153083
A9: 2014-02-04 | B9: 35.255 | D9: 2014-02-04 | E9: 3151.94 | I9: =EOMONTH(I8,1) -> 2014-08-31 | J9: 39.6399 | K9: 3643.34 | L9: =((J9/J8)-1)*100 -> 2.151000381 | M9: =((K9/K8)-1)*100 -> 4.000639417
A10: 2014-02-05 | B10: 35.3 | D10: 2014-02-05 | E10: 3146.49 | I10: 2014-09-30 | J10: 45.0144 | K10: 3592.25 | L10: 13.55830867 | M10: -1.402284717
A11: 2014-02-06 | B11: 35.755 | D11: 2014-02-06 | E11: 3187.25 | I11: 2014-10-31 | J11: 46.9169 | K11: 3679.99 | L11: 4.226425322 | M11: 2.44248034
A12: 2014-02-07 | B12: 36.345 | D12: 2014-02-07 | E12: 3229.64 | I12: 2014-11-30 | J12: 50.1063 | K12: 3778.96 | L12: 6.797976848 | M12: 2.689409482
A13: 2014-02-10 | B13: 36.335 | D13: 2014-02-10 | E13: 3234.79 | I13: 2014-12-31 | J13: 48.6619 | K13: 3769.44 | L13: -2.882671441 | M13: -0.2519211635
A14: 2014-02-11 | B14: 36.99 | D14: 2014-02-11 | E14: 3270.74 | I14: 2015-01-31 | J14: 46.6881 | K14: 3656.28 | L14: -4.056150705 | M14: -3.002037438
A15: 2014-02-12 | B15: 37.055 | D15: 2014-02-12 | E15: 3271.47 | I15: 2015-02-28 | J15: 49.2947 | K15: 3866.42 | L15: 5.583007233 | M15: 5.747371645
A16: 2014-02-13 | B16: 37.435 | D16: 2014-02-13 | E16: 3290.82 | I16: 2015-03-31 | J16: 50.924 | K16: 3805.27 | L16: 3.305223482 | M16: -1.58156641
A17: 2014-02-14 | B17: 37.535 | D17: 2014-02-14 | E17: 3306.92 | I17: 2015-04-30 | J17: 50.1677 | K17: 3841.78 | L17: -1.485154348 | M17: 0.9594588557
A18: 2014-02-18 | B18: 37.605 | D18: 2014-02-18 | E18: 3311.27 | I18: 2015-05-31 | J18: 51.7454 | K18: 3891.18 | L18: 3.144852166 | M18: 1.285862283
A19: 2014-02-19 | B19: 37.41 | D19: 2014-02-19 | E19: 3289.83 | I19: 2015-06-30 | J19: 54.9772 | K19: 3815.85 | L19: 6.245579317 | M19: -1.935916611
A20: 2014-02-20 | B20: 37.79 | D20: 2014-02-20 | E20: 3310.27 | I20: 2015-07-31 | J20: 58.6417 | K20: 3895.8 | L20: 6.665490421 | M20: 2.095208145
A21: 2014-02-21 | B21: 38.24 | D21: 2014-02-21 | E21: 3304.36 | I21: 2015-08-31 | J21: 56.8756 | K21: 3660.75 | L21: -3.011679402 | M21: -6.033420607
A22: 2014-02-24 | B22: 38.92 | D22: 2014-02-24 | E22: 3324.84 | I22: 2015-09-30 | J22: 62.7442 | K22: 3570.171 | L22: 10.31830873 | M22: -2.474329031
A23: 2014-02-25 | B23: 39.055 | D23: 2014-02-25 | E23: 3320.43 | I23: 2015-10-31 | J23: 66.8567 | K23: 3871.33 | L23: 6.554390685 | M23: 8.435422281
A24: 2014-02-26 | B24: 39.21 | D24: 2014-02-26 | E24: 3321.15 | I24: 2015-11-30 | J24: 67.4945 | K24: 3882.84 | L24: 0.9539806781 | M24: 0.297313843
A25: 2014-02-27 | B25: 39.13 | D25: 2014-02-27 | E25: 3338.05 | I25: 2015-12-31 | J25: 63.935 | K25: 3821.6 | L25: -5.273763047 | M25: -1.577196073
A26: 2014-02-28 | B26: 39.2704 | D26: 2014-02-28 | E26: 3347.38 | I26: 2016-01-31 | J26: 63.4338 | K26: 3631.96 | L26: -0.7839211699 | M26: -4.962319447
A27: 2014-03-03 | B27: 38.814 | D27: 2014-03-03 | E27: 3322.85 | I27: 2016-02-29 | J27: 63.0041 | K27: 3627.06 | L27: -0.6773991153 | M27: -0.1349133801
A28: 2014-03-04 | B28: 39.4309 | D28: 2014-03-04 | E28: 3373.64 | I28: 2016-03-31 | J28: 63.0451 | K28: 3873.11 | L28: 0.06507513003 | M28: 6.783731176
A29: 2014-03-05 | B29: 38.8291 | D29: 2014-03-05 | E29: 3374.1 | I29: 2016-04-30 | J29: 60.4502 | K29: 3888.13 | L29: -4.115942397 | M29: 0.3878020505
A30: 2014-03-06 | B30: 39.2303 | D30: 2014-03-06 | E30: 3380.49 | I30: 2016-05-31 | J30: 56.6349 | K30: 3957.95 | L30: -6.311476223 | M30: 1.795721851
A31: 2014-03-07 | B31: 39.8522 | D31: 2014-03-07 | E31: 3382.57 | I31: 2016-06-30 | J31: 56.7805 | K31: 3968.21 | L31: 0.2570852955 | M31: 0.2592251039
A32: 2014-03-10 | B32: 39.6115 | D32: 2014-03-10 | E32: 3381.22 | I32: 2016-07-31 | J32: 57.0891 | K32: 4114.51 | L32: 0.5434964468 | M32: 3.68680085
A33: 2014-03-11 | B33: 39.5212 | D33: 2014-03-11 | E33: 3364.17 | I33: 2016-08-31 | J33: 59.2904 | K33: 4120.29 | L33: 3.85590244 | M33: 0.1404784531
A34: 2014-03-12 | B34: 39.6065 | D34: 2014-03-12 | E34: 3366.07 | I34: 2016-09-30 | J34: 54.3055 | K34: 4121.06 | L34: -8.407600556 | M34: 0.01868800497
A35: 2014-03-13 | B35: 39.3858 | D35: 2014-03-13 | E35: 3327.11 | I35: 2016-10-31 | J35: 51.7579 | K35: 4045.89 | L35: -4.691237536 | M35: -1.82404527
A36: 2014-03-14 | B36: 39.2805 | D36: 2014-03-14 | E36: 3317.81 | I36: 2016-11-30 | J36: 51.6444 | K36: 4195.73 | L36: -0.2192901953 | M36: 3.703511465
A37: 2014-03-17 | B37: 39.6115 | D37: 2014-03-17 | E37: 3349.71 | I37: 2016-12-31 | J37: 52.6146 | K37: 4278.66 | L37: 1.878616075 | M37: 1.976533285
A38: 2014-03-18 | B38: 39.9425 | D38: 2014-03-18 | E38: 3373.98 | I38: 2017-01-31 | J38: 54.7573 | K38: 4359.81 | L38: 4.07244377 | M38: 1.89662184
A39: 2014-03-19 | B39: 39.6967 | D39: 2014-03-19 | E39: 3353.29 | I39: 2017-02-28 | J39: 59.1669 | K39: 4532.93 | L39: 8.052990195 | M39: 3.970815242
A40: 2014-03-20 | B40: 39.7569 | D40: 2014-03-20 | E40: 3373.6 | I40: 2017-03-31 | J40: 57.8663 | K40: 4538.21 | L40: -2.198188514 | M40: 0.1164809516
A41: 2014-03-21 | B41: 37.7207 | D41: 2014-03-21 | E41: 3363.72 | I41: 2017-04-30 | J41: 57.534 | K41: 4584.82 | L41: -0.5742547908 | M41: 1.027056923
A42: 2014-03-24 | B42: 37.5451 | D42: 2014-03-24 | E42: 3347.36 | I42: 2017-05-31 | J42: 55.0213 | K42: 4649.34 | L42: -4.367330622 | M42: 1.407252629
A43: 2014-03-25 | B43: 36.9383 | D43: 2014-03-25 | E43: 3362.44 | I43: 2017-06-30 | J43: 61.4725 | K43: 4678.36 | L43: 11.72491381 | M43: 0.624174614
A44: 2014-03-26 | B44: 36.7226 | D44: 2014-03-26 | E44: 3339 | I44: 2017-07-31 | J44: 61.5246 | K44: 4774.56 | L44: 0.08475334499 | M44: 2.056276131
A45: 2014-03-27 | B45: 36.7728 | D45: 2014-03-27 | E45: 3333.23 | I45: 2017-08-31 | J45: 55.2106 | K45: 4789.18 | L45: -10.26256164 | M45: 0.3062062263
A46: 2014-03-28 | B46: 36.8831 | D46: 2014-03-28 | E46: 3348.83 | I46: 2017-09-30 | J46: 54.207 | K46: 4887.97 | L46: -1.817766878 | M46: 2.062774838
A47: 2014-03-31 | B47: 37.0436 | D47: 2014-03-31 | E47: 3375.51 | I47: 2017-10-31 | J47: 57.4897 | K47: 5002.03 | L47: 6.055859944 | M47: 2.333484043
A48: 2014-04-01 | B48: 37.3094 | D48: 2014-04-01 | E48: 3399.51 | I48: 2017-11-30 | J48: 63.1666 | K48: 5155.44 | L48: 9.874638413 | M48: 3.066954816
A49: 2014-04-02 | B49: 37.3846 | D49: 2014-04-02 | E49: 3409.8 | I49: 2017-12-31 | J49: 65.6118 | K49: 5212.76 | L49: 3.871033109 | M49: 1.111835265
A50: 2014-04-03 | B50: 37.1088 | D50: 2014-04-03 | E50: 3406 | I50: 2018-01-31 | J50: 71.5594 | K50: 5511.21 | L50: 9.06483285 | M50: 5.72537389
A51: 2014-04-04 | B51: 36.532 | D51: 2014-04-04 | E51: 3363.41 | I51: 2018-02-28 | J51: 70.3111 | K51: 5308.09 | L51: -1.744424911 | M51: -3.685579029
A52: 2014-04-07 | B52: 35.5239 | D52: 2014-04-07 | E52: 3327.27 | I52: 2018-03-31 | J52: 69.9038 | K52: 5173.19 | L52: -0.5792826453 | M52: -2.541403782
A53: 2014-04-08 | B53: 36.5722 | D53: 2014-04-08 | E53: 3340.84 | I53: 2018-04-30 | J53: 71.9554 | K53: 5193.04 | L53: 2.934890521 | M53: 0.3837090847
A54: 2014-04-09 | B54: 36.8931 | D54: 2014-04-09 | E54: 3377.61 | I54: 2018-05-31 | J54: 75.5432 | K54: 5318.1 | L54: 4.986144195 | M54: 2.408223314
A55: 2014-04-10 | B55: 36.3364 | D55: 2014-04-10 | E55: 3307.08 | I55: 2018-06-30 | J55: 84.0645 | K55: 5350.83 | L55: 11.28003579 | M55: 0.6154453658
A56: 2014-04-11 | B56: 35.7346 | D56: 2014-04-11 | E56: 3276.04 | I56: 2018-07-31 | J56: 81.142 | K56: 5549.96 | L56: -3.476497213 | M56: 3.721478724
A57: 2014-04-14 | B57: 36.3013 | D57: 2014-04-14 | E57: 3302.98 | I57: 2018-08-31 | J57: 86.9341 | K57: 5730.8 | L57: 7.138226812 | M57: 3.258401862
A58: 2014-04-15 | B58: 36.2512 | D58: 2014-04-15 | E58: 3325.3 | I58: 2018-09-30 | J58: 89.5993 | K58: 5763.42 | L58: 3.065770509 | M58: 0.5692049976
A59: 2014-04-16 | B59: 36.6624 | D59: 2014-04-16 | E59: 3360.27 | I59: 2018-10-31 | J59: 79.3618 | K59: 5369.49 | L59: -11.42587051 | M59: -6.835004216
A60: 2014-04-17 | B60: 37.1289 | D60: 2014-04-17 | E60: 3365 | I60: 2018-11-30 | J60: 79.679 | K60: 5478.91 | L60: 0.3996885151 | M60: 2.037809922
A61: 2014-04-21 | B61: 37.0637 | D61: 2014-04-21 | E61: 3377.75 | I61: 2018-12-31 | J61: 78.6396 | K61: 4984.22 | L61: -1.304484243 | M61: -9.028985692
A62: 2014-04-22 | B62: 37.2894 | D62: 2014-04-22 | E62: 3391.58 | I62: 2019-01-31 | J62: 86.8493 | K62: 5383.63 | L62: 10.43965127 | M62: 8.013490576
A63: 2014-04-23 | B63: 37.164 | D63: 2014-04-23 | E63: 3384.5 | I63: 2019-02-28 | J63: 90.933 | K63: 5556.49 | L63: 4.702052866 | M63: 3.210844727
A64: 2014-04-24 | B64: 36.8079 | D64: 2014-04-24 | E64: 3390.39 | I64: 2019-03-31 | J64: 89.5462 | K64: 5664.46 | L64: -1.525078904 | M64: 1.943133165
A65: 2014-04-25 | B65: 36.4618 | D65: 2014-04-25 | E65: 3362.95 | I65: 2019-04-30 | J65: 93.3956 | K65: 5893.81 | L65: 4.298786548 | M65: 4.048929642
A66: 2014-04-28 | B66: 35.9452 | D66: 2014-04-28 | E66: 3374.04 | I66: 2019-05-31 | J66: 82.2621 | K66: 5519.27 | L66: -11.92079713 | M66: -6.354802751
A67: 2014-04-29 | B67: 36.3515 | D67: 2014-04-29 | E67: 3390.16 | I67: 2019-06-30 | J67: 89.5243 | K67: 5908.25 | L67: 8.828123765 | M67: 7.047671159
A68: 2014-04-30 | B68: 36.5872 | D68: 2014-04-30 | E68: 3400.46
A69: 2014-05-01 | B69: 36.5722 | D69: 2014-05-01 | E69: 3400.2
A70: 2014-05-02 | B70: 36.6073 | D70: 2014-05-02 | E70: 3395.61
A71: 2014-05-05 | B71: 36.7577 | D71: 2014-05-05 | E71: 3402.23
A72: 2014-05-06 | B72: 36.2361 | D72: 2014-05-06 | E72: 3371.72
A73: 2014-05-07 | B73: 36.201 | D73: 2014-05-07 | E73: 3392.1
A74: 2014-05-08 | B74: 36.6374 | D74: 2014-05-08 | E74: 3388.29
A75: 2014-05-09 | B75: 36.838 | D75: 2014-05-09 | E75: 3394.05
A76: 2014-05-12 | B76: 37.4298 | D76: 2014-05-12 | E76: 3427.01
A77: 2014-05-13 | B77: 37.4097 | D77: 2014-05-13 | E77: 3429.3
A78: 2014-05-14 | B78: 36.9032 | D78: 2014-05-14 | E78: 3413.84
A79: 2014-05-15 | B79: 36.5822 | D79: 2014-05-15 | E79: 3382.52
A80: 2014-05-16 | B80: 37.0837 | D80: 2014-05-16 | E80: 3395.21
A81: 2014-05-19 | B81: 37.3596 | D81: 2014-05-19 | E81: 3408.52
A82: 2014-05-20 | B82: 36.7427 | D82: 2014-05-20 | E82: 3386.48
A83: 2014-05-21 | B83: 37.2191 | D83: 2014-05-21 | E83: 3414.45
A84: 2014-05-22 | B84: 37.5552 | D84: 2014-05-22 | E84: 3422.99
A85: 2014-05-23 | B85: 38.0417 | D85: 2014-05-23 | E85: 3437.58
A86: 2014-05-27 | B86: 38.4228 | D86: 2014-05-27 | E86: 3458.19
A87: 2014-05-28 | B87: 38.2523 | D87: 2014-05-28 | E87: 3454.88
A88: 2014-05-29 | B88: 38.4278 | D88: 2014-05-29 | E88: 3473.86
A89: 2014-05-30 | B89: 38.6945 | D89: 2014-05-30 | E89: 3480.29
A90: 2014-06-02 | B90: 38.5989 | D90: 2014-06-02 | E90: 3483.14
A91: 2014-06-03 | B91: 38.0103 | D91: 2014-06-03 | E91: 3482
A92: 2014-06-04 | B92: 38.3021 | D92: 2014-06-04 | E92: 3489.21
A93: 2014-06-05 | B93: 38.1713 | D93: 2014-06-05 | E93: 3512.21
A94: 2014-06-06 | B94: 38.3524 | D94: 2014-06-06 | E94: 3528.98
A95: 2014-06-09 | B95: 38.5737 | D95: 2014-06-09 | E95: 3532.47
A96: 2014-06-10 | B96: 38.3926 | D96: 2014-06-10 | E96: 3531.62
A97: 2014-06-11 | B97: 37.804 | D97: 2014-06-11 | E97: 3519.52
A98: 2014-06-12 | B98: 37.6178 | D98: 2014-06-12 | E98: 3495.57
A99: 2014-06-13 | B99: 37.5424 | D99: 2014-06-13 | E99: 3506.58
A100: 2014-06-16 | B100: 37.5071 | D100: 2014-06-16 | E100: 3509.54
A101: 2014-06-17 | B101: 37.7788 | D101: 2014-06-17 | E101: 3517.23
A102: 2014-06-18 | B102: 38.3423 | D102: 2014-06-18 | E102: 3544.42
A103: 2014-06-19 | B103: 38.0555 | D103: 2014-06-19 | E103: 3549.44
A104: 2014-06-20 | B104: 37.7839 | D104: 2014-06-20 | E104: 3555.6
A105: 2014-06-23 | B105: 37.96 | D105: 2014-06-23 | E105: 3555.14
A106: 2014-06-24 | B106: 37.7235 | D106: 2014-06-24 | E106: 3532.57
A107: 2014-06-25 | B107: 38.4731 | D107: 2014-06-25 | E107: 3549.96
A108: 2014-06-26 | B108: 38.6693 | D108: 2014-06-26 | E108: 3546.38
A109: 2014-06-27 | B109: 39.0819 | D109: 2014-06-27 | E109: 3553.35
A110: 2014-06-30 | B110: 39.0165 | D110: 2014-06-30 | E110: 3552.18
A111: 2014-07-01 | B111: 39.2429 | D111: 2014-07-01 | E111: 3576.55
A112: 2014-07-02 | B112: 39.1372 | D112: 2014-07-02 | E112: 3579.11
A113: 2014-07-03 | B113: 39.4693 | D113: 2014-07-03 | E113: 3598.73
A114: 2014-07-07 | B114: 39.5699 | D114: 2014-07-07 | E114: 3584.75
A115: 2014-07-08 | B115: 39.0769 | D115: 2014-07-08 | E115: 3560.53
A116: 2014-07-09 | B116: 39.59 | D116: 2014-07-09 | E116: 3577.28
A117: 2014-07-10 | B117: 38.9913 | D117: 2014-07-10 | E117: 3562.49
A118: 2014-07-11 | B118: 38.8857 | D118: 2014-07-11 | E118: 3568.08
A119: 2014-07-14 | B119: 39.2177 | D119: 2014-07-14 | E119: 3585.37
A120: 2014-07-15 | B120: 39.258 | D120: 2014-07-15 | E120: 3578.46
A121: 2014-07-16 | B121: 38.6995 | D121: 2014-07-16 | E121: 3593.91
A122: 2014-07-17 | B122: 38.5033 | D122: 2014-07-17 | E122: 3551.73
A123: 2014-07-18 | B123: 39.0014 | D123: 2014-07-18 | E123: 3588.21
A124: 2014-07-21 | B124: 38.6492 | D124: 2014-07-21 | E124: 3579.99
A125: 2014-07-22 | B125: 38.7599 | D125: 2014-07-22 | E125: 3597.95
A126: 2014-07-23 | B126: 38.9259 | D126: 2014-07-23 | E126: 3604.3
A127: 2014-07-24 | B127: 39.5448 | D127: 2014-07-24 | E127: 3606.1
A128: 2014-07-25 | B128: 39.102 | D128: 2014-07-25 | E128: 3588.68
A129: 2014-07-28 | B129: 39.4441 | D129: 2014-07-28 | E129: 3589.73
A130: 2014-07-29 | B130: 39.2932 | D130: 2014-07-29 | E130: 3573.65
A131: 2014-07-30 | B131: 40.0529 | D131: 2014-07-30 | E131: 3574.45
A132: 2014-07-31 | B132: 38.8052 | D132: 2014-07-31 | E132: 3503.19
A133: 2014-08-01 | B133: 38.6291 | D133: 2014-08-01 | E133: 3493.18
A134: 2014-08-04 | B134: 38.8203 | D134: 2014-08-04 | E134: 3518.31
A135: 2014-08-05 | B135: 38.6995 | D135: 2014-08-05 | E135: 3484.56
A136: 2014-08-06 | B136: 38.8102 | D136: 2014-08-06 | E136: 3485.67
A137: 2014-08-07 | B137: 38.4128 | D137: 2014-08-07 | E137: 3467.14
A138: 2014-08-08 | B138: 38.77 | D138: 2014-08-08 | E138: 3507.21
A139: 2014-08-11 | B139: 38.77 | D139: 2014-08-11 | E139: 3517.53
A140: 2014-08-12 | B140: 38.6039 | D140: 2014-08-12 | E140: 3511.96
A141: 2014-08-13 | B141: 38.8656 | D141: 2014-08-13 | E141: 3536.42
A142: 2014-08-14 | B142: 38.8907 | D142: 2014-08-14 | E142: 3551.97
A143: 2014-08-15 | B143: 38.8052 | D143: 2014-08-15 | E143: 3552.17
A144: 2014-08-18 | B144: 39.5196 | D144: 2014-08-18 | E144: 3582.7
A145: 2014-08-19 | B145: 39.4995 | D145: 2014-08-19 | E145: 3601.33
A146: 2014-08-20 | B146: 39.7007 | D146: 2014-08-20 | E146: 3610.49
A147: 2014-08-21 | B147: 39.7158 | D147: 2014-08-21 | E147: 3621.23
A148: 2014-08-22 | B148: 39.8919 | D148: 2014-08-22 | E148: 3614.5
A149: 2014-08-25 | B149: 40.2542 | D149: 2014-08-25 | E149: 3631.86
A150: 2014-08-26 | B150: 39.9875 | D150: 2014-08-26 | E150: 3635.71
A151: 2014-08-27 | B151: 40.1082 | D151: 2014-08-27 | E151: 3636.64
A152: 2014-08-28 | B152: 39.7762 | D152: 2014-08-28 | E152: 3630.98
A153: 2014-08-29 | B153: 39.6399 | D153: 2014-08-29 | E153: 3643.34
A154: 2014-09-02 | B154: 40.0083 | D154: 2014-09-02 | E154: 3641.52
A155: 2014-09-03 | B155: 39.7762 | D155: 2014-09-03 | E155: 3639.35
A156: 2014-09-04 | B156: 40.3313 | D156: 2014-09-04 | E156: 3633.87
A157: 2014-09-05 | B157: 41.4012 | D157: 2014-09-05 | E157: 3652.26
A158: 2014-09-08 | B158: 41.5828 | D158: 2014-09-08 | E158: 3641.66
A159: 2014-09-09 | B159: 41.3002 | D159: 2014-09-09 | E159: 3617.89
A160: 2014-09-10 | B160: 41.6181 | D160: 2014-09-10 | E160: 3631.45
A161: 2014-09-11 | B161: 41.2901 | D161: 2014-09-11 | E161: 3635.66
A162: 2014-09-12 | B162: 41.3002 | D162: 2014-09-12 | E162: 3614.06
A163: 2014-09-15 | B163: 41.1842 | D163: 2014-09-15 | E163: 3611.52
A164: 2014-09-16 | B164: 40.9772 | D164: 2014-09-16 | E164: 3638.6
A165: 2014-09-17 | B165: 41.1337 | D165: 2014-09-17 | E165: 3643.4
A166: 2014-09-18 | B166: 41.3658 | D166: 2014-09-18 | E166: 3661.73
A167: 2014-09-19 | B167: 41.2851 | D167: 2014-09-19 | E167: 3660.03
A168: 2014-09-22 | B168: 40.73 | D168: 2014-09-22 | E168: 3630.7
A169: 2014-09-23 | B169: 40.4322 | D169: 2014-09-23 | E169: 3610.1
A170: 2014-09-24 | B170: 40.7956 | D170: 2014-09-24 | E170: 3638.44
A171: 2014-09-25 | B171: 40.2455 | D171: 2014-09-25 | E171: 3579.61
A172: 2014-09-26 | B172: 45.1658 | D172: 2014-09-26 | E172: 3610.98
A173: 2014-09-29 | B173: 44.974 | D173: 2014-09-29 | E173: 3602.09
A174: 2014-09-30 | B174: 45.0144 | D174: 2014-09-30 | E174: 3592.25
A175: 2014-10-01 | B175: 44.2574 | D175: 2014-10-01 | E175: 3544.98
A176: 2014-10-02 | B176: 45.0649 | D176: 2014-10-02 | E176: 3545.3
A177: 2014-10-03 | B177: 45.5645 | D177: 2014-10-03 | E177: 3584.94
A178: 2014-10-06 | B178: 45.0245 | D178: 2014-10-06 | E178: 3579.42
A179: 2014-10-07 | B179: 44.4442 | D179: 2014-10-07 | E179: 3525.29
A180: 2014-10-08 | B180: 44.8277 | D180: 2014-10-08 | E180: 3588.07
A181: 2014-10-09 | B181: 44.0203 | D181: 2014-10-09 | E181: 3514.12
A182: 2014-10-10 | B182: 44.0001 | D182: 2014-10-10 | E182: 3474.23
A183: 2014-10-13 | B183: 43.0917 | D183: 2014-10-13 | E183: 3417.01
A184: 2014-10-14 | B184: 42.9403 | D184: 2014-10-14 | E184: 3422.43
A185: 2014-10-15 | B185: 42.9857 | D185: 2014-10-15 | E185: 3395.03
A186: 2014-10-16 | B186: 43.9244 | D186: 2014-10-16 | E186: 3395.64
A187: 2014-10-17 | B187: 43.995 | D187: 2014-10-17 | E187: 3439.39
A188: 2014-10-20 | B188: 44.863 | D188: 2014-10-20 | E188: 3470.89
A189: 2014-10-21 | B189: 45.7411 | D189: 2014-10-21 | E189: 3538.9
A190: 2014-10-22 | B190: 45.3475 | D190: 2014-10-22 | E190: 3513.47
A191: 2014-10-23 | B191: 45.6049 | D191: 2014-10-23 | E191: 3556.7
A192: 2014-10-24 | B192: 45.8723 | D192: 2014-10-24 | E192: 3581.82
A193: 2014-10-27 | B193: 46.2458 | D193: 2014-10-27 | E193: 3576.47
A194: 2014-10-28 | B194: 46.6545 | D194: 2014-10-28 | E194: 3619.16
A195: 2014-10-29 | B195: 46.4022 | D195: 2014-10-29 | E195: 3614.53
A196: 2014-10-30 | B196: 46.9321 | D196: 2014-10-30 | E196: 3637.3
A197: 2014-10-31 | B197: 46.9169 | D197: 2014-10-31 | E197: 3679.99
A198: 2014-11-03 | B198: 47.1592 | D198: 2014-11-03 | E198: 3679.58
A199: 2014-11-04 | B199: 47.4115 | D199: 2014-11-04 | E199: 3669.18
A200: 2014-11-05 | B200: 47.7799 | D200: 2014-11-05 | E200: 3691.38
A201: 2014-11-06 | B201: 47.7395 | D201: 2014-11-06 | E201: 3706.45
... 1184 more rows
